Workbook

Sheet Lean To
W1: Main Material | X1: =IF(E13=W3,5,IF(E13=W4,6,IF(E13=W5,6))) -> 5 | Y1: Material cost | Z1: 11.35 | AA1: Sails
W2: Tri Material | X2: =IF(E14=W3,5,IF(E14=W4,6,IF(E14=W5,6))) -> 5 | Y2: PE | Z2: 2.5 | AA2: 1
W3: Solid ISX | X3: 5 | Y3: PN | Z3: 3.5 | AA3: 2
D4: Select no. of sails | E4: 2 | W4: Duplex ISX | X4: 6 | Y4: IP | Z4: 2 | AA4: 3
D5: Left triangle sail | E5: Yes | W5: Solid ISXFR | X5: 6 | Y5: No. of vents | Z5: Y fit points | AA5: X fit points
D6: Right triangle sail | E6: No | W6: Shape | X6: =IF(AA9=W7,X7,IF(AA9=W8,X8,IF(AA9=W9,X9))) -> 1 | Y6: 0 | Z6: None | AA6: None
W7: Triangle | X7: 0.6 | Y7: 1 | Z7: Standard | AA7: Standard
D8: Reduce left gap size | E8: Standard | W8: Diamond | X8: 0.6 | Y8: 2 | Z8: No. of corners | AA8: 4
D9: Reduce right gap size | E9: Standard | W9: Other | X9: 1 | Y9: 3 | Z9: Shape | AA9: Other
D10: Additional X-Axis fitting points | E10: None | W10: Overlap left | X10: =IF(E8=W11,X11,IF(E8=W12,X12,IF(E8=W13,X13))) -> 0 | Y10: 4 | Z10: Curve allowance | AA10: 0.4
D11: Additional Y-Axis fitting points | E11: None | W11: Standard | X11: 0 | Y11: Triangles | Z11: Roof area | AA11: =AA14*Z30 -> 0.5452829787
W12: 0.5 | X12: =IF(E4=1,0,IF(E4=2,(X28/2)+AA19,IF(E4=3,(X28*0.67)+AA19))) -> 0.04467010715 | Y12: No | Z12: Area of each sail | AA12: =AA11/E4 -> 0.2726414894
D13: Select material for main sails | E13: Solid ISX | W13: 1 | X13: =IF(E4=1,0,IF(E4=2,X28+AA19,IF(E4=3,(X28*1.34)+AA19))) -> 0.08318907194 | Y13: Yes | Z13: Sail perimeter | AA13: =((AA15+0.07)*2)+((AA16+0.07)*2) -> 2.321356819
D14: Select material for triangles | E14: Solid ISX | W14: Overlap right | X14: =IF(E4=AA3,X10,IF(E9=W11,X11,IF(E9=W12,X12,IF(E9=W13,X13)))) -> 0 | Y14: Warnings | Z14: Glazing bar length | AA14: =SQRT((Z29-Z28)^2+Z31^2) -> 0.5452829787
D15: Select no. of window vents | E15: 0 | W15: Warning 1 | X15: Warning: Sail too narrow, increase no. of sails, add X-Axis fittings or increase gap size | Y15: =MAX(X21:Z21) -> 3.102660149 | Z15: Length of sail | AA15: =AA14-(0.07/(B25/1000)) -> 0.532980694
W16: Warning 2 | X16: Warning: Sail too narrow, decrease no. of sails, add Y-Axis fittings or reduce gap size | Y16: =MAX(X22:Z22) -> 2.845 | Z16: Width left | AA16: =(Z30/E4)-(0.07/(B25/1000))+X10 -> 0.4876977153 | AB16: ->
D17: Max length of a sail | E17: =(MAX(X21:Z21))*1000 -> 3102.660149 | J17: Plan view - looking from above | W17: Warning 3 | X17: Warning: Sail too wide for standard fabric, please add more sails or increase gap size | Z17: Width middle | AA17: =((Z30/E4)-(0.07/(B25/1000))+X10) -> 0.4876977153 | AB17: =((Z30/E4)-(0.07/(B25/1000))+X14) -> 0.4876977153
D18: Max width of a sail | E18: =(MAX(X22:Z22))*1000 -> 2845 | W18: Warning 4 | X18: Warning: Conservatory too long for standard fabric, contact office for more details | Z18: Width right | AA18: =(Z30/E4)-(0.07/(B25/1000))+X14 -> 0.4876977153
Z19: 50mm links | AA19: =0.035/(B25/1000) -> 0.006151142355
D20: Please note that sails larger than 2100mm in both directions, will require a colour matched seam. | W20: Costs | X20: left | Y20: mid | Z20: right | AA20: tri
H21: Total budget cost incl. Installation+VAT+Delivery | K21: =X24+Y24+Z24+12.15+(E15*50)+IF(AND(E5=Y13,E4<>AA2),AA24,)+IF(AND(E6=Y13,E4=AA4),AA24,) -> 1949.748704 | W21: length | X21: =AA14*(B25/1000) -> 3.102660149 | Y21: =X21 -> 3.102660149 | Z21: =Y21 -> 3.102660149 | AA21: =Z21 -> 3.102660149
B22: All dims in mm | K22: =' '!P1 -> 2242.21101 | W22: width | X22: =((E49-E45)+(0.07/(B25/1000)))*(B25/1000) -> 2.845 | Y22: =IF(E4<>AA4,MIN(X22,Z22),(I49-I45+(0.07/(B25/1000)))*(B25/1000)) -> 2.845 | Z22: =IF(E4<>AA2,(G49-G45+(0.07/(B25/1000)))*(B25/1000),X22) -> 2.845 | AA22: =(W26*(B25/1000))+0.07 -> 2.192862104
A23: H1 | B23: 2280 | D23: =IF(((X28*(B25/1000))*(IF(E11=AA7,0.5,2)))>((MIN(X22:Z22))*AA10),X16,IF(AND(Y16>4,Y15>4),X17,IF(Y15>6,X18,""))) ->  | G23: =' '!A8 -> 0 | W23: perimeter | X23: =(X21*2)+(X22*2) -> 11.8953203 | Y23: =(Y21*2)+(Y22*2) -> 11.8953203 | Z23: =(Z21*2)+(Z22*2) -> 11.8953203 | AA23: =(AA21*2)+AA22 -> 8.398182402
A24: H2 | B24: 3210 | X24: =((X1*((X6*X21*X22*Z1)+(X23*Z2)+(AA8*Z3)+Z4))+7.2*AA8)+IF(E10=Z7,24.7*2,)+IF(E11=AA7,24.7*2,) -> 758.4276198 | Y24: =IF(E4=AA4,((X1*((X6*Y21*Y22*Z1)+(Y23*Z2)+(AA8*Z3)+Z4))+7.2*AA8)+IF(E10=Z7,24.7*2,)+IF(E11=AA7,24.7*2,),) -> 0 | Z24: =IF(E4<>AA2,((X1*((X6*Z21*Z22*Z1)+(Z23*Z2)+(AA8*Z3)+Z4))+7.2*AA8)+IF(E10=Z7,24.7*2,)+IF(E11=AA7,24.7*2,),) -> 758.4276198 | AA24: =IF(AND(E4<>AA2,OR(E5=Y13,AND(E6=Y13,E4<>AA3))),((X2*((X7*AA21*AA22*Z1)+(AA23*Z2)+(3*Z3)+Z4))+7.2*3),) -> 420.7434647
A25: X1 | B25: 5690 | W25: tri width | X25: tri length | Y25: tri mid | Z25: tri quarter
A26: Y1 | B26: 2960 | G26: =' '!A11 -> 0 | W26: =IF(X26*0.7<Z30,X26*0.7,Z30) -> 0.3730864858 | X26: =P47-(AA19*2) -> 0.532980694 | Y26: =W26*0.13 -> 0.04850124316 | Z26: =Y26*0.75 -> 0.03637593237
X27: Mid | Y27: Quarters | Z27: Dims in m
W28: Horizontal | X28: =(((AA15+(0.07/(B25/1000)))*0.13)+AA19) -> 0.07703792959 | Y28: =(X28)*0.75 -> 0.05777844719 | Z28: =B23/B25 -> 0.4007029877
W29: Vertical left | X29: =((AA16+(0.07/(B25/1000)))*0.13)+AA19 -> 0.07115114236 | Y29: =X29*0.75 -> 0.05336335677 | Z29: =B24/B25 -> 0.5641476274
W30: Vertical mid | X30: =((AVERAGE(AA17:AB17)+(0.07/(B25/1000)))*0.13)+AA19 -> 0.07115114236 | Y30: =X30*0.75 -> 0.05336335677 | Z30: =B25/B25 -> 1
W31: Vertical right | X31: =((AA18+(0.07/(B25/1000)))*0.13)+AA19 -> 0.07115114236 | Y31: =X31*0.75 -> 0.05336335677 | Z31: =B26/B25 -> 0.5202108963
E43: x | F43: y | G43: x | H43: y | I43: x | J43: y | K43: x | L43: y | M43: x | N43: y | O43: Roof plan | Q43: X-Axis fitting points
E44: Left sail | G44: Right sail | I44: Mid sail | K44: tri 1 | M44: tri 2 | O44: x-axis | P44: y-axis | Q44: Sail 1 | S44: Sail 2 | U44: Sail 3
E45: =AA19 -> 0.006151142355 | F45: =AA19 -> 0.006151142355 | G45: =IF(E4=1,0,IF(E4=2,G49-AA18,IF(E4=3,(G49-AA18)))) -> 0.5061511424 | H45: =IF(E4=1,0,IF(E4=2,AA19,IF(E4=3,AA19))) -> 0.006151142355 | I45: =IF(E4=1,0,IF(E4=2,0,IF(E4=3,(Z30/2)-(AA17/2)))) -> 0 | J45: =IF(E4=1,0,IF(E4=2,0,IF(E4=3,AA19))) -> 0 | K45: =IF(E5=Y13,IF(E4<>AA2,K47-(W26/2),),) -> 0.3134567571 | L45: =IF(E5=Y13,IF(E4<>AA2,AA19,),) -> 0.006151142355 | M45: =IF(E6=Y13,IF(E4=AA4,M47-(W26/2),),) -> 0 | N45: =IF(E6=Y13,IF(E4=AA4,AA19,),) -> 0 | O45: 0 | P45: 0 | Q45: =IF(E10=Z7,E47,) -> 0 | R45: 0 | S45: =G47 -> 0.75 | T45: 0 | U45: =I47 -> 0 | V45: 0
E46: =E45+(AA16/4) -> 0.1280755712 | F46: =F47*0.75 -> 0.05336335677 | G46: =IF(E4=1,0,IF(E4=2,G47-(AA18/4),IF(E4=3,G45+(AA18/4)))) -> 0.6280755712 | H46: =IF(E4=1,0,IF(E4=2,H48,IF(E4=3,H48))) -> 0.05336335677 | I46: =IF(E4=1,0,IF(E4=2,0,IF(E4=3,I45+(MAX(AA17:AB17)/4)))) -> 0 | J46: =IF(E4=1,0,IF(E4=2,0,IF(E4=3,Y30))) -> 0 | K46: =IF(E5=Y13,IF(E4<>AA2,K45+(W26/4),),) -> 0.4067283785 | L46: =IF(E5=Y13,IF(E4<>AA2,Z26,),) -> 0.03637593237 | M46: =IF(E6=Y13,IF(E4=AA4,M47-(W26/4),),) -> 0 | N46: =IF(E6=Y13,IF(E4=AA4,Z26,),) -> 0 | O46: =Z30/Z30 -> 1 | P46: 0 | Q46: =Q45 -> 0 | R46: =IF(E10=Z7,0.03,0) -> 0 | S46: =S45 -> 0.75 | T46: =IF(E4=1,0,IF(E10=Z7,0.03,)) -> 0 | U46: =U45 -> 0 | V46: =IF(E4<2.5,0,IF(E10=Z7,0.03,)) -> 0
E47: =IF(E4=1,(Z30/2),IF(E4=2,E49-(AA16/2),IF(E4=3,(E49-AA19)-(AA16/2)))) -> 0.25 | F47: =X29 -> 0.07115114236 | G47: =IF(E4=1,0,IF(E4=2,G49-(AA18/2),IF(E4=3,G49-AA19-(AA18/2)))) -> 0.75 | H47: =IF(E4=1,0,IF(E4=2,X31,IF(E4=3,X31))) -> 0.07115114236 | I47: =IF(E4=1,0,IF(E4=2,0,IF(E4=3,I49-((I49-I45)/2)))) -> 0 | J47: =IF(E4=1,0,IF(E4=2,0,IF(E4=3,X30))) -> 0 | K47: =IF(E5=Y13,IF(E4=AA3,O46/2,IF(E4=AA4,O46/3)),) -> 0.5 | L47: =IF(E5=Y13,IF(E4<>AA2,Y26,),) -> 0.04850124316 | M47: =IF(E6=Y13,IF(E4=AA4,O47*(2/3),),) -> 0 | N47: =IF(E6=Y13,IF(E4=AA4,Y26,),) -> 0 | O47: =Z30/Z30 -> 1 | P47: =AA14/Z30 -> 0.5452829787 | Q47: =Q45 -> 0 | R47: =IF(E10=Z6,0,IF(E10=Z7,AA14)) -> 0 | S47: =S45 -> 0.75 | T47: =IF(E4=1,0,IF(E10=Z7,AA14,)) -> 0 | U47: =U45 -> 0 | V47: =IF(E4<2.5,0,IF(E10=Z7,AA14,)) -> 0
E48: =E49-(AA16/4) -> 0.3719244288 | F48: =F46 -> 0.05336335677 | G48: =G49-(AA18/4) -> 0.8719244288 | H48: =IF(E4=1,0,IF(E4=2,Y31,IF(E4=3,Y31))) -> 0.05336335677 | I48: =IF(E4=1,0,IF(E4=2,0,IF(E4=3,I49-(MAX(AA17:AB17)/4)))) -> 0 | J48: =IF(E4=AA4,Y30,) -> 0 | K48: =IF(E5=Y13,IF(E4<>AA2,K47+(W26/4),),) -> 0.5932716215 | L48: =IF(E5=Y13,IF(E4<>AA2,Z26,),) -> 0.03637593237 | M48: =IF(E6=Y13,IF(E4=AA4,M47+(W26/4),),) -> 0 | N48: =IF(E6=Y13,IF(E4=AA4,N46,),) -> 0 | O48: 0 | P48: =AA14/Z30 -> 0.5452829787 | Q48: =Q45 -> 0 | R48: =IF(E10=Z6,0,IF(E10=Z7,R47-0.03)) -> 0 | S48: =S45 -> 0.75 | T48: =IF(E4=1,0,IF(E10=Z7,R47-0.03,)) -> 0 | U48: =U45 -> 0 | V48: =IF(E4<2.5,0,IF(E10=Z7,R47-0.03,)) -> 0
E49: =IF(E4=1,E45+AA16,IF(E4=2,AA16+E45,IF(E4=3,E45+AA16))) -> 0.4938488576 | F49: =AA19 -> 0.006151142355 | G49: =IF(E4=1,0,IF(E4=2,Z30-AA19,IF(E4=3,Z30-AA19))) -> 0.9938488576 | H49: =IF(E4=1,0,IF(E4=2,AA19,IF(E4=3,AA19))) -> 0.006151142355 | I49: =IF(E4=1,0,IF(E4=2,0,IF(E4=3,Z30/2+(AB17/2)))) -> 0 | J49: =IF(E4=1,0,IF(E4=2,0,IF(E4=3,AA19))) -> 0 | K49: =IF(E5=Y13,IF(E4<>AA2,K47+(W26/2),),) -> 0.6865432429 | L49: =IF(E5=Y13,IF(E4<>AA2,AA19,),) -> 0.006151142355 | M49: =IF(E6=Y13,IF(E4=AA4,M47+(W26/2),),) -> 0 | N49: =IF(E6=Y13,IF(E4=AA4,N45,),) -> 0 | O49: 0 | P49: 0 | Q49: Y-Axis fitting points
E50: =E49-Y28 -> 0.4360704105 | F50: =AA14/4 -> 0.1363207447 | G50: =IF(E4=1,0,IF(E4=2,G49-Y28,IF(E4=3,(G49-Y28)))) -> 0.9360704105 | H50: =IF(E4=1,0,IF(E4=2,F60,IF(E4=3,F60))) -> 0.1363207447 | I50: =IF(E4=1,0,IF(E4=2,0,IF(E4=3,I49-Y28))) -> 0 | J50: =IF(E4=1,0,IF(E4=2,0,IF(E4=3,H50))) -> 0 | K50: =IF(E5=Y13,IF(E4<>AA2,K49-((K49-K53)/2),),) -> 0.5932716215 | L50: =IF(E5=Y13,IF(E4<>AA2,P47/4,),) -> 0.1363207447 | M50: =IF(E6=Y13,IF(E4=AA4,M49-((M49-M53)/2),),) -> 0 | N50: =IF(E6=Y13,IF(E4=AA4,P47/4,),) -> 0 | Q50: Sail 1 | S50: Sail 2 | U50: Sail 3
E51: =E49-X28 -> 0.4168109281 | F51: =AA14/2 -> 0.2726414894 | G51: =IF(E4=1,0,IF(E4=2,G49-X28,IF(E4=3,(G49-X28)))) -> 0.9168109281 | H51: =IF(E4=1,0,IF(E4=2,F51,IF(E4=3,F51))) -> 0.2726414894 | I51: =IF(E4=1,0,IF(E4=2,0,IF(E4=3,I49-X28))) -> 0 | J51: =IF(E4=1,0,IF(E4=2,0,IF(E4=3,F51))) -> 0 | K51: =IF(E5=Y13,IF(E4<>AA2,K49-((K49-K53)*0.75),),) -> 0.5466358107 | L51: =IF(E5=Y13,IF(E4<>AA2,P47/2,),) -> 0.2726414894 | M51: =IF(E6=Y13,IF(E4=AA4,M49-((M49-M53)*0.75),),) -> 0 | N51: =IF(E6=Y13,IF(E4=AA4,P47/2,),) -> 0 | Q51: 0 | R51: =AA14/2 -> 0.2726414894 | S51: =IF(AND(E4=2,E11=AA7),(Z30/2)-0.015) -> FALSE | T51: =H51 -> 0.2726414894 | U51: =IF(AND(E4=3,E11=AA7),(Z30/3)-0.015+IF(E8=W12,0.03,IF(E8=W13,0.04)),0) -> 0 | V51: =J51 -> 0
E52: =E50 -> 0.4360704105 | F52: =(AA14*0.75) -> 0.408962234 | G52: =G50 -> 0.9360704105 | H52: =IF(E4=1,0,IF(E4=2,F58,IF(E4=3,F58))) -> 0.408962234 | I52: =I50 -> 0 | J52: =IF(E4=1,0,IF(E4=2,0,IF(E4=3,H52))) -> 0 | K52: =IF(E5=Y13,IF(E4<>AA2,K53+((K49-K53)*0.1),),) -> 0.5186543243 | L52: =IF(E5=Y13,IF(E4<>AA2,P47*0.75,),) -> 0.408962234 | M52: =IF(E6=Y13,IF(E4=AA4,M53+((M49-M53)*0.1),),) -> 0 | N52: =IF(E6=Y13,IF(E4=AA4,P47*0.75,),) -> 0 | Q52: =IF(E11=AA7,0.03,0) -> 0 | R52: =R51 -> 0.2726414894 | S52: =IF(AND(E4=2,E11=AA7),S51+0.03,0) -> 0 | T52: =T51 -> 0.2726414894 | U52: =IF(AND(E4=3,E11=AA7),U51+0.03,0) -> 0 | V52: =V51 -> 0
E53: =E49 -> 0.4938488576 | F53: =AA14-AA19 -> 0.5391318364 | G53: =IF(E4=1,0,IF(E4=2,G49,IF(E4=3,G49))) -> 0.9938488576 | H53: =IF(E4=1,0,IF(E4=2,F57,IF(E4=3,AA14-AA19))) -> 0.5391318364 | I53: =IF(E4=1,0,IF(E4=2,0,IF(E4=3,I49))) -> 0 | J53: =IF(E4=1,0,IF(E4=2,0,IF(E4=3,H57))) -> 0 | K53: =IF(E5=Y13,IF(E4<>AA2,K47,),) -> 0.5 | L53: =IF(E5=Y13,IF(E4<>AA2,P48-AA19,),) -> 0.5391318364 | M53: =IF(E6=Y13,IF(E4=AA4,M47,),) -> 0 | N53: =IF(E6=Y13,IF(E4=AA4,P48-AA19,),) -> 0 | Q53: =IF(AND(E4=1,E11=AA7),Q54-0.03,0) -> 0 | R53: =R52 -> 0.2726414894 | S53: =IF(AND(E4>1.5,E11=AA7),S54-0.03,0) -> 0 | T53: =T52 -> 0.2726414894 | U53: =IF(AND(E4=3,E11=AA7),(Z30*(2/3))-0.015-IF(E9=W12,0.03,IF(E9=W13,0.04)),0) -> 0 | V53: =V52 -> 0
E54: =E48 -> 0.3719244288 | F54: =AA14-F46 -> 0.491919622 | G54: =G48 -> 0.8719244288 | H54: =IF(E4=1,0,IF(E4=2,AA14-Y31,IF(E4=3,AA14-Y31))) -> 0.491919622 | I54: =I48 -> 0 | J54: =IF(E4=1,0,IF(E4=2,0,IF(E4=3,AA14-Y30))) -> 0 | K54: =IF(E5=Y13,IF(E4<>AA2,K53-((K53-K57)*0.1),),) -> 0.4813456757 | L54: =IF(E5=Y13,IF(E4<>AA2,L52,),) -> 0.408962234 | M54: =IF(E6=Y13,IF(E4=AA4,M53-((M53-M57)*0.1),),) -> 0 | N54: =IF(E6=Y13,IF(E4=AA4,N52,),) -> 0 | Q54: =IF(AND(E4=1,E11=AA7),Z30,0) -> 0 | R54: =R53 -> 0.2726414894 | S54: =IF(AND(E4>1.5,E11=AA7),Z30,0) -> 0 | T54: =T53 -> 0.2726414894 | U54: =IF(AND(E4=3,E11=AA7),U53+0.03,0) -> 0 | V54: =V53 -> 0
E55: =E47 -> 0.25 | F55: =AA14-F47 -> 0.4741318364 | G55: =IF(E4=1,0,IF(E4=2,G47,IF(E4=3,G47))) -> 0.75 | H55: =IF(E4=1,0,IF(E4=2,AA14-X31,IF(E4=3,AA14-X31))) -> 0.4741318364 | I55: =IF(E4=1,0,IF(E4=2,0,IF(E4=3,I47))) -> 0 | J55: =IF(E4=1,0,IF(E4=2,0,IF(E4=3,AA14-X30))) -> 0 | K55: =IF(E5=Y13,IF(E4<>AA2,K57+((K53-K57)*0.75),),) -> 0.4533641893 | L55: =IF(E5=Y13,IF(E4<>AA2,L51,),) -> 0.2726414894 | M55: =IF(E6=Y13,IF(E4=AA4,M57+((M53-M57)*0.75),),) -> 0 | N55: =IF(E6=Y13,IF(E4=AA4,N51,),) -> 0
E56: =E46 -> 0.1280755712 | F56: =F54 -> 0.491919622 | G56: =G46 -> 0.6280755712 | H56: =IF(E4=1,0,IF(E4=2,H54,IF(E4=3,H54))) -> 0.491919622 | I56: =I46 -> 0 | J56: =J54 -> 0 | K56: =IF(E5=Y13,IF(E4<>AA2,K57+((K53-K57)/2),),) -> 0.4067283785 | L56: =IF(E5=Y13,IF(E4<>AA2,L50,),) -> 0.1363207447 | M56: =IF(E6=Y13,IF(E4=AA4,M57+((M53-M57)/2),),) -> 0 | N56: =IF(E6=Y13,IF(E4=AA4,N50,),) -> 0
E57: =E45 -> 0.006151142355 | F57: =F53 -> 0.5391318364 | G57: =IF(E4=1,0,IF(E4=2,G45,IF(E4=3,G45))) -> 0.5061511424 | H57: =IF(E4=1,0,IF(E4=2,H53,IF(E4=3,H53))) -> 0.5391318364 | I57: =IF(E4=1,0,IF(E4=2,0,IF(E4=3,I45))) -> 0 | J57: =IF(E4=1,0,IF(E4=2,0,IF(E4=3,J53))) -> 0 | K57: =IF(E5=Y13,IF(E4<>AA2,K45,),) -> 0.3134567571 | L57: =IF(E5=Y13,IF(E4<>AA2,L45,),) -> 0.006151142355 | M57: =IF(E6=Y13,IF(E4=AA4,M45,),) -> 0 | N57: =IF(E6=Y13,IF(E4=AA4,N45,),) -> 0
E58: =E45+Y28 -> 0.06392958955 | F58: =F52 -> 0.408962234 | G58: =IF(E4=1,0,IF(E4=2,G57+Y28,IF(E4=3,(G45+Y28)))) -> 0.5639295895 | H58: =H52 -> 0.408962234 | I58: =IF(E4=1,0,IF(E4=2,0,IF(E4=3,(I45+Y28)))) -> 0 | J58: =J52 -> 0
E59: =E45+X28 -> 0.08318907194 | F59: =F51 -> 0.2726414894 | G59: =IF(E4=1,0,IF(E4=2,G57+X28,IF(E4=3,(G45+X28)))) -> 0.5831890719 | H59: =IF(E4=1,0,IF(E4=2,H51,IF(E4=3,H51))) -> 0.2726414894 | I59: =IF(E4=1,0,IF(E4=2,0,IF(E4=3,I45+X28))) -> 0 | J59: =IF(E4=1,0,IF(E4=2,0,IF(E4=3,F51))) -> 0
E60: =E58 -> 0.06392958955 | F60: =F50 -> 0.1363207447 | G60: =G58 -> 0.5639295895 | H60: =H50 -> 0.1363207447 | I60: =I58 -> 0 | J60: =J50 -> 0
E61: =E45 -> 0.006151142355 | F61: =AA19 -> 0.006151142355 | G61: =IF(E4=1,0,IF(E4=2,G57,IF(E4=3,G57))) -> 0.5061511424 | H61: =IF(E4=1,0,IF(E4=2,AA19,IF(E4=3,AA19))) -> 0.006151142355 | I61: =IF(E4=1,0,IF(E4=2,0,IF(E4=3,I57))) -> 0 | J61: =IF(E4=1,0,IF(E4=2,0,IF(E4=3,AA19))) -> 0

Sheet Lean To Hipped
W1: Main material | X1: =IF(E13=W3,5,IF(E13=W4,6,IF(E13=W5,6))) -> 5 | Y1: Material cost | Z1: 11.35 | AA1: Sails | AB1: Warnings left/right | AC1: Warnings mid | AD1: Warnings mid tri
W2: Tri Material | X2: =IF(E14=W3,5,IF(E14=W4,6,IF(E14=W5,6))) -> 5 | Y2: PE | Z2: 2.5 | AA2: 1 | AB2: =Z32 -> 3.112073264 | AC2: =AA32 -> 3.112073264 | AD2: =IF(OR(E5=AB6,E6=AB6),1,0.00001)*AC32 -> 3.182073264
W3: Solid ISX | X3: 5 | Y3: PN | Z3: 3.5 | AA3: 2 | AB3: =IF(E4=AA2,Z33,MIN(Z33,AB33)) -> 2.953708573 | AC3: =AA33*IF(E4<>AA4,1000,1) -> 2.953708573 | AD3: =AC33 -> 2.199451285
D4: Select no. of sails per side | E4: 3 | W4: Duplex ISX | X4: 6 | Y4: IP | Z4: 2 | AA4: 3 | AB4: Tri sails | AC4: Warning 1 | AD4: Warning: Sail too narrow, increase no. of sails, add X-Axis fittings or increase gap size
D5: Left triangle sails | E5: Yes | W5: Solid ISXFR | X5: 6 | Y5: No. of vents | Z5: X fit points | AA5: Y fit points | AB5: No | AC5: Warning 2 | AD5: Warning: Sail too narrow, decrease no. of sails, add Y-Axis fittings or reduce gap size
D6: Right triangle sails | E6: No | W6: Shape | X6: =IF(AA9=W7,X7,IF(AA9=W8,X8,IF(AA9=W9,X9))) -> 1 | Y6: 0 | Z6: None | AA6: None | AB6: Yes | AC6: Warning 3 | AD6: Warning: Sail too wide for standard fabric, please add more sails or increase gap size
W7: Triangle | X7: 0.6 | Y7: 1 | Z7: Standard | AA7: Standard | AB7: Coverage | AC7: Warning 4 | AD7: Warning: Conservatory too long for standard fabric, contact office for more detailed price
D8: Reduce left gap size | E8: 1 | W8: Diamond | X8: 0.6 | Y8: 2 | Z8: No. of corners | AA8: 4 | AB8: Cover one side | AC8: Warning 5 | AD8: Warning: Ridge is too short for a 3 sails roof solution, reduce no. of sails
D9: Reduce right gap size | E9: 1 | W9: Other | X9: 1 | Y9: 3 | Z9: Shape | AA9: Other | AB9: Cover both sides
D10: Additional X-Axis fitting points | E10: None | W10: Overlap middle left | X10: =IF(E8=W11,X11,IF(E8=W12,X12,IF(E8=W13,X13))) -> 0.2820226194 | Y10: 4 | Z10: Curve allowance | AA10: 0.4
D11: Additional Y-Axis fitting points | E11: None | W11: Standard | X11: 0 | Y11: 5 | Z11: Front | AA11: Mid | AB11: Quarters | AC11: Back | AD11: Mid | AE11: Quarters
W12: 0.5 | X12: =IF(E4=AA2,0,(AA12*1.5)+(0.035/(B24/1000))) -> 0.144657143 | Y12: 6 | Z12: Horizontal | AA12: =((Z26+(0.07/(B24/1000)))*0.13)+Z24 -> 0.09157698423 | AB12: =(AA12)*0.75 -> 0.06868273817 | AC12: Horizontal | AD12: =((AC26+(0.07/(B24/1000)))*0.13)+Z24 -> 0.09157698423 | AE12: =(AD12)*0.75 -> 0.06868273817
D13: Select material for main sails | E13: Solid ISX | W13: 1 | X13: =IF(E4=AA2,0,(AA12*1.5)*2+(0.035/(B24/1000))) -> 0.2820226194 | Z13: Horizontal overlaped | AA13: =((AA26+(0.07/(B24/1000)))*0.13)+Z24 -> 0.09157698423 | AB13: =(AA13)*0.75 -> 0.06868273817 | AC13: Horizontal overlaped | AD13: =((AC26+(0.07/(B24/1000)))*0.13)+Z24 -> 0.09157698423 | AE13: =(AD13)*0.75 -> 0.06868273817
D14: Select material for triangles | E14: Solid ISX | W14: Overlap middle right | X14: =IF(E4=AA3,X10,IF(E9=W11,X11,IF(E9=W12,X12,IF(E9=W13,X13)))) -> 0.2820226194 | Z14: Vertical | AA14: =IF(E4=AA2,((Z27+(0.07/(B24/1000)))*0.13)+Z24,((Z27+(0.07/(B24/1000)))*0.13)+Z24) -> 0.050625 | AB14: =AA14*0.75 -> 0.03796875 | AC14: Vertical | AD14: =IF(E4=AA2,((AB27+(0.07/(B24/1000)))*0.13)+Z24,((AB27+(0.07/(B24/1000)))*0.13)+Z24) -> 0.050625 | AE14: =AD14*0.75 -> 0.03796875
D15: Select no. of window vents | E15: 0 | X15: Dims in m | Z15: Vertical overlaped | AA15: =IF(E4=AA2,((AA27+(0.07/(B24/1000)))*0.13)+Z24,((AA27+(0.07/(B24/1000)))*0.13)+Z24) -> 0.08728794052 | AB15: =AA15*0.75 -> 0.06546595539 | AC15: Vertical overlaped | AD15: =IF(E4=AA2,((AC27+(0.07/(B24/1000)))*0.13)+Z24,((AC27+(0.07/(B24/1000)))*0.13)+Z24) -> 0.08728794052 | AE15: =AD15*0.75 -> 0.06546595539
W16: h1 | X16: =B22/B24 -> 0.4166666667 | Z16: Mid | AA16: Mid | AB16: Quarters
D17: Max length of sail | E17: =(MAX(Z32:AB32))*1000 -> 3112.073264 | I17: Plan view - looking from above | W17: h2 | X17: =B23/B24 -> 0.6770833333 | Z17: Horizontal | AA17: =((Z29+(0.07/(B24/1000)))*0.13)+Z24 -> 0.09157698423 | AB17: =(AA17)*0.75 -> 0.06868273817
D18: Max width of sail | E18: =(MAX(Z33:AB33))*1000 -> 2953.708573 | W18: x1 | X18: =B24/B24 -> 1 | Z18: Vertical | AA18: =((Z30+(0.07/(B24/1000)))*0.13)+Z24 -> 0.050625 | AB18: =AA18*0.75 -> 0.03796875
W19: y1 | X19: =B25/B24 -> 0.59375 | Z19: Vertical overlaped | AA19: =((AVERAGE(Z30:AB30)+(0.07/(B24/1000)))*0.13)+Z24 -> 0.07506696034 | AB19: =AA19*0.75 -> 0.05630022026
D20: Please note that sails larger than 2100mm in both directions, will require a colour matched seam. | W20: r1 | X20: =B26/B24 -> 0.3333333333 | Z20: front | AA20: mid | AB20: tri front | AC20: tri mid
B21: All dims in mm | H21: Total budget cost incl. Installation+VAT+Delivery | K21: =12.15+(E15*50)+Z35+AA35+AB35+IF(E5=AB6,AC35,)+IF(AND(E4=AA4,E6=AB6),AC35,) -> 2737.139005 | Y21: Sail perimeter | Z21: =((AA26+0.07)*2)+((AA27+0.07)*2) -> 2.749075765 | AA21: =((Z29+0.07)*2)+AA30+0.07+Z30+0.07 -> 2.467053146 | AB21: =((AD26+0.07)*2)+AD27+0.07 -> 0.21 | AC21: =((AC29+0.07)*2)+AC30+0.07 -> 1.921166211
A22: H1 | B22: 2000 | K22: =' '!P2 -> 3147.709856 | Y22: Roof area (m^2) | Z22: =Z23*X18 -> 0.6483485966 | AA22: Tri | AB22: Mid | AC22: Quarters
A23: H2 | B23: 3250 | D23: =IF(((MAX(AA12,AA17,AD12)*(B24/1000))*(IF(E11=AA7,0.5,2)))>(MIN(AB3:AC3)*AA10),AD5,IF(AND((X20*(B24/1000))<0.75,E4=AA4),AD8,IF(AND(AB3>4,AB2>4),AD6,""))) ->  | G23: =' '!A8 -> 0 | Y23: Glazing bar length | Z23: =SQRT((X17-X16)^2+(X19^2)) -> 0.6483485966 | AA23: Vertical Back | AB23: =((AC30+(0.07/(B24/1000)))*0.13)+Z24 -> 0.06686013896 | AC23: =AB23*0.75 -> 0.05014510422
A24: X1 | B24: 4800 | Y24: 50mm links | Z24: =(0.035/(B24/1000)) -> 0.007291666667 | AA24: Vertical Front | AB24: =((AD27+(0.07/(B24/1000)))*0.13)+Z24 -> 0.0091875 | AC24: =AB24*0.75 -> 0.006890625
A25: Y1 | B25: 2850 | Z25: front + overlaped | AB25: back + overlaped
A26: R1 | B26: 1600 | G26: =' '!A11 -> 0 | Y26: Sail length | Z26: =Z23-(0.07/(B24/1000)) -> 0.6337652633 | AA26: =Z26 -> 0.6337652633 | AB26: =Z23-(0.07/(B24/1000)) -> 0.6337652633 | AC26: =AB26 -> 0.6337652633
Y27: Sail width | Z27: =IF(E4=AA2,O65-(0.07/(B24/1000)),IF(E4=AA3,O69-(X20/2)-(0.07/(B24/1000)),O68-(0.07/(B24/1000)))) -> 0.31875 | AA27: =Z27+X10 -> 0.6007726194 | AB27: =IF(E4=AA2,O65-(0.07/(B24/1000)),IF(E4=AA3,O69-(X20/2)-(0.07/(B24/1000)),O68-(0.07/(B24/1000)))) -> 0.31875 | AC27: =AB27+X14 -> 0.6007726194
Z28: mid + overlaped | AC28: tri mid
Y29: Sail length | Z29: =Z26 -> 0.6337652633 | AA29: <- | AB29: -> | AC29: =Z23-(0.07/(B24/1000)) -> 0.6337652633
Y30: Sail width | Z30: =O69-O68-(0.07/(B24/1000)) -> 0.31875 | AA30: =Z30+X10 -> 0.6007726194 | AB30: =Z30+X14 -> 0.6007726194 | AC30: =IF(AC29*0.7<X18,AC29*0.7,X18) -> 0.4436356843
Y31: Costs | Z31: front | AA31: mid | AB31: back | AC31: tri mid left/right
Y32: length | Z32: =((F75-F79)*(B24/1000))+0.07 -> 3.112073264 | AA32: =(Z23*(B24/1000)) -> 3.112073264 | AB32: =((J71-J67)*(B24/1000))+0.07 -> 3.112073264 | AC32: =(Z23*(B24/1000))+0.07 -> 3.182073264
Y33: width | Z33: =((E67-E63)*(B24/1000))+0.07 -> 2.953708573 | AA33: =IF(E4<>AA4,Z30*(B24/1000),((G67-G63)*(B24/1000))+0.07) -> 2.953708573 | AB33: =((I67-I63)*(B24/1000))+0.07 -> 2.953708573 | AC33: =(AC30*(B24/1000))+0.07 -> 2.199451285
Y34: perimeter | Z34: =Z32+Z33+((Z26*(B24/1000))+0.07)+((Z27*(B24/1000))+0.07) -> 10.7778551 | AA34: =(AA32*2)+((Z30*(B24/1000)+0.07))+AA33 -> 10.7778551 | AB34: =AB32+AB33+((AB26*(B24/1000))+0.07)+((AB27*(B24/1000))+0.07) -> 10.7778551 | AC34: =(AC32*2)+AC33 -> 8.563597813
Z35: =(((X1*((X6*Z32*Z33*Z1)+(Z34*Z2)+(AA8*Z3)+Z4))+7.2*AA8)+IF(E11=AA7,24.7*2,)+IF(E10=AA7,24.7*2,)) -> 765.1781257 | AA35: =IF(E4<>AA4,0,(((X1*((X6*AA32*AA33*Z1)+(AA34*Z2)+(AA8*Z3)+Z4))+7.2*AA8)+IF(E10=AA7,24.7*2,)+IF(E11=AA7,24.7*2,))) -> 765.1781257 | AB35: =IF(E4=AA2,0,(((X1*((X6*AB32*AB33*Z1)+(AB34*Z2)+(AA8*Z3)+Z4))+7.2*AA8)+IF(E10=AA7,24.7*2,)+IF(E11=AA7,24.7*2,))) -> 765.1781257 | AC35: =IF(OR(E5=AB6,E6=AB6),(X2*((X7*AC32*AC33*Z1)+(AC34*Z2)+(3*Z3)+Z4))+7.2*3,) -> 429.4546278
E61: x | F61: y | G61: x | H61: y | I61: x | J61: y | K61: x | L61: y | M61: x | N61: y | O61: Roof plan | Q61: Y-Axis fitting points
E62: down front | G62: down mid | I62: down left | K62: left tri 1 | M62: right tri 2 | O62: x-axis | P62: y-axis | Q62: Sail 1 | S62: Sail 2
E63: =Z24 -> 0.007291666667 | F63: =Z24 -> 0.007291666667 | G63: =IF(E4=AA4,X18/2-(AA30/2),) -> 0.1996136903 | H63: =IF(E4=AA4,Z24,) -> 0.007291666667 | I63: =IF(E4<>AA2,I67-AC27,) -> 0.391935714 | J63: =IF(E4<>AA2,Z24,) -> 0.007291666667 | K63: =IF(E4=AA2,0,IF(E5=AB6,K65-(AC30/2),)) -> 0.1115154912 | L63: =IF(E4=AA2,0,IF(E5=AB6,Z24,)) -> 0.007291666667 | M63: =IF(E4<>AA4,0,IF(E6=AB6,M65-(AC30/2),)) -> 0 | N63: =IF(E4<>AA4,0,IF(E6=AB6,Z24,)) -> 0 | O63: 0 | P63: 0 | Q63: 0 | R63: =F77 -> 0.3241742983 | S63: =IF(AND(E4<>AA2,E11=AA7),O68-0.015,0) -> 0 | T63: =H69 -> 0.3241742983
E64: =IF(E4=AA2,E63+(AA27/4),E63+(AA27/4)) -> 0.1574848215 | F64: =F65*0.75 -> 0.06546595539 | G64: =IF(E4=AA4,G63+(MAX(AA30:AB30)/4),) -> 0.3498068452 | H64: =IF(E4=AA4,AB19,) -> 0.05630022026 | I64: =IF(E4<>AA2,I63+(AC27/4),0) -> 0.5421288688 | J64: =IF(E4<>AA2,AE15,) -> 0.06546595539 | K64: =IF(E4=AA2,0,IF(E5=AB6,K65-(AC30/4),)) -> 0.2224244123 | L64: =IF(E4=AA2,0,IF(E5=AB6,AC23,)) -> 0.05014510422 | M64: =IF(E4<>AA4,0,IF(E6=AB6,M65-(AC30/4),)) -> 0 | N64: =IF(E4<>AA4,0,IF(E6=AB6,AC23,)) -> 0 | O64: =X18 -> 1 | P64: 0 | Q64: =IF(E11=AA7,0.03,0) -> 0 | R64: =R63 -> 0.3241742983 | S64: =IF(AND(E4<>AA2,E11=AA7),S63+0.03,0) -> 0 | T64: =T63 -> 0.3241742983
E65: =IF(E4=AA2,E63+(AA27/2),E63+(AA27/2)) -> 0.3076779763 | F65: =AA15 -> 0.08728794052 | G65: =IF(E4=AA4,G67-(G67-G63)/2,) -> 0.5 | H65: =IF(E4=AA4,AA19,) -> 0.07506696034 | I65: =IF(E4<>AA2,I63+(AC27/2),0) -> 0.6923220237 | J65: =IF(E4<>AA2,AD15,) -> 0.08728794052 | K65: =IF(E4=AA2,0,IF(E5=AB6,K71,)) -> 0.3333333333 | L65: =IF(E4=AA2,0,IF(E5=AB6,AB23,)) -> 0.06686013896 | M65: =IF(E4<>AA4,0,IF(E6=AB6,M71,)) -> 0 | N65: =IF(E4<>AA4,0,IF(E6=AB6,AB23,)) -> 0 | O65: =X18 -> 1 | P65: =Z23 -> 0.6483485966 | Q65: =IF(OR(E11=AA6,E4=AA2),0,I75-Z24-0.015) -> 0 | R65: =F69 -> 0.3241742983 | S65: =IF(AND(E4>1.5,E11=AA7),S66-0.03,0) -> 0 | T65: =J69 -> 0.3241742983
E66: =IF(E4=AA2,E65+(AA27/4),E65+(AA27/4)) -> 0.4578711312 | F66: =F64 -> 0.06546595539 | G66: =IF(E4=AA4,G67-(MAX(AA30:AB30)/4),) -> 0.6501931548 | H66: =IF(E4=AA4,H64,) -> 0.05630022026 | I66: =IF(E4<>AA2,I65+(AC27/4),0) -> 0.8425151785 | J66: =IF(E4<>AA2,J64,) -> 0.06546595539 | K66: =IF(E4=AA2,0,IF(E5=AB6,K65+(AC30/4),)) -> 0.4442422544 | L66: =IF(E4=AA2,0,IF(E5=AB6,AC23,)) -> 0.05014510422 | M66: =IF(E4<>AA4,0,IF(E6=AB6,M65+(AC30/4),)) -> 0 | N66: =IF(E4<>AA4,0,IF(E6=AB6,AC23,)) -> 0 | O66: 0 | P66: =Z23 -> 0.6483485966 | Q66: =IF(OR(E11=AA6,E4=AA2),0,Q65+0.03) -> 0 | R66: =R65 -> 0.3241742983 | S66: =IF(AND(E4>1.5,E11=AA7),X18,0) -> 0 | T66: =T65 -> 0.3241742983
E67: =IF(E4=AA2,E63+AA27,E63+AA27) -> 0.608064286 | F67: =Z24 -> 0.007291666667 | G67: =IF(E4=AA4,X18/2+(AB30/2),) -> 0.8003863097 | H67: =IF(E4=AA4,Z24,) -> 0.007291666667 | I67: =IF(E4<>AA2,X18-Z24,0) -> 0.9927083333 | J67: =J63 -> 0.007291666667 | K67: =IF(E4=AA2,0,IF(E5=AB6,K65+(AC30/2),)) -> 0.5551511755 | L67: =L63 -> 0.007291666667 | M67: =IF(E4<>AA4,0,IF(E6=AB6,M65+(AC30/2),)) -> 0 | N67: =IF(E4<>AA4,0,IF(E6=AB6,N63,)) -> 0 | O67: 0 | P67: 0
E68: =E67-AB12-(X10/4) -> 0.468875893 | F68: =IF(E4=AA2,F78,Z26/4) -> 0.1584413158 | G68: =IF(E4=AA4,G67-AB17-(X14/8),) -> 0.6964507441 | H68: =IF(E4=AA4,F68,) -> 0.1584413158 | I68: =IF(E4<>AA2,I67-AE13,) -> 0.9240255952 | J68: =IF(E4<>AA2,J69-(AC26/4),) -> 0.1657329825 | K68: =IF(E4=AA2,0,IF(E5=AB6,K67-((K67-K71)/2),)) -> 0.4442422544 | L68: =IF(E4=AA2,0,IF(E5=AB6,L69-(AC29/4),)) -> 0.1657329825 | M68: =IF(E4<>AA4,0,IF(E6=AB6,M67-((M67-M71)/2),)) -> 0 | N68: =IF(E4<>AA4,0,IF(E6=AB6,N69-(AC29/4),)) -> 0 | O68: =(X18/2)-(X20/2) -> 0.3333333333 | P68: =Z23 -> 0.6483485966 | Q68: X-Axis fitting points
E69: =E67-AA12-(X10/2) -> 0.3754759921 | F69: =IF(E4=AA2,F77,Z23/2) -> 0.3241742983 | G69: =IF(E4=AA4,G67-AA17-(X14/4),) -> 0.6383036706 | H69: =IF(E4=AA4,F69,) -> 0.3241742983 | I69: =IF(E4<>AA2,I67-AD13,) -> 0.9011313491 | J69: =IF(E4<>AA2,J70-(AC26/4),) -> 0.3241742983 | K69: =IF(E4=AA2,0,IF(E5=AB6,K67-((K67-K71)*0.75),)) -> 0.3887877939 | L69: =IF(E4=AA2,0,IF(E5=AB6,Z23-(Z23/2),)) -> 0.3241742983 | M69: =IF(E4<>AA4,0,IF(E6=AB6,M67-((M67-M71)*0.75),)) -> 0 | N69: =IF(E4<>AA4,0,IF(E6=AB6,Z23-(Z23/2),)) -> 0 | O69: =(X18/2)+(X20/2) -> 0.6666666667 | P69: =P68 -> 0.6483485966 | Q69: Sail 1 | S69: Sail 2 | U69: Sail 3
E70: =E71-AB12+(X10/4) -> 0.3278645833 | F70: =IF(E4=AA2,F76,Z26*0.75) -> 0.4753239475 | G70: =IF(E4=AA4,G71-AB17+(X14/6),) -> 0.6376960317 | H70: =IF(E4=AA4,F70,) -> 0.4753239475 | I70: =IF(E4<>AA2,I67-AE13,) -> 0.9240255952 | J70: =IF(E4<>AA2,J71-(AC26/4),) -> 0.4826156142 | K70: =IF(E4=AA2,0,IF(E5=AB6,K71+((K67-K71)*0.1),)) -> 0.3555151175 | L70: =IF(E4=AA2,0,IF(E5=AB6,L69+(AC29/4),)) -> 0.4826156142 | M70: =IF(E4<>AA4,0,IF(E6=AB6,M71+((M67-M71)*0.1),)) -> 0 | N70: =IF(E4<>AA4,0,IF(E6=AB6,N69+(AC29/4),)) -> 0 | O70: =X18 -> 1 | P70: 0 | Q70: =E65 -> 0.3076779763 | R70: 0 | S70: =O65-E65 -> 0.6923220237 | T70: 0 | U70: =G65 -> 0.5 | V70: 0
E71: =IF(E4=AA2,E63+AA27,E63+Z27) -> 0.3260416667 | F71: =IF(E4=AA2,F75,Z23-Z24) -> 0.64105693 | G71: =IF(E4=AA4,O69-Z24,) -> 0.659375 | H71: =IF(E4=AA4,Z23-Z24,) -> 0.64105693 | I71: =IF(E4<>AA2,I67,0) -> 0.9927083333 | J71: =IF(E4<>AA2,J67+AC26,) -> 0.64105693 | K71: =IF(E4=AA2,0,IF(E5=AB6,O68+IF(E4=AA3,X20/2,),)) -> 0.3333333333 | L71: =IF(E4=AA2,0,IF(E5=AB6,P68-Z24,)) -> 0.64105693 | M71: =IF(E4<>AA4,0,IF(E6=AB6,X20+O68,)) -> 0 | N71: =IF(E4<>AA4,0,IF(E6=AB6,P68-Z24,)) -> 0 | Q71: =Q70 -> 0.3076779763 | R71: =IF(E10=Z7,0.03,0) -> 0 | S71: =S70 -> 0.6923220237 | T71: =IF(E10=Z7,0.03,0) -> 0 | U71: =U70 -> 0.5 | V71: =IF(E4<AA3,0,IF(E10=Z7,0.03,)) -> 0
E72: =IF(E4=AA2,E65+(AA27/4),E71-(Z27/4)) -> 0.2463541667 | F72: =IF(E4=AA2,F74,F71-AB14) -> 0.60308818 | G72: =IF(E4=AA4,G71-(Z30/4),) -> 0.5796875 | H72: =IF(E4=AA4,Z23-AB18,) -> 0.6103798466 | I72: =IF(E4<>AA2,I71-(Z27/4),) -> 0.9130208333 | J72: =IF(E4<>AA2,J71-AE14,) -> 0.60308818 | K72: =IF(E5=AB6,K71-((K67-K71)*0.1),) -> 0.3111515491 | L72: =L70 -> 0.4826156142 | M72: =IF(E4<>AA4,0,IF(E6=AB6,M71-((M67-M71)*0.1),)) -> 0 | N72: =IF(E4<>AA4,0,IF(E6=AB6,N70,)) -> 0 | Q72: =E73 -> 0.1666666667 | R72: =IF(E10=Z7,Z23,0) -> 0 | S72: =O64-E73 -> 0.8333333333 | T72: =IF(E10=Z7,Z23,0) -> 0 | U72: =G73 -> 0.5 | V72: =IF(E4<AA3,0,IF(E10=Z7,Z23,)) -> 0
E73: =IF(E4=AA2,E63+(AA27/2),E72-(Z27/4)) -> 0.1666666667 | F73: =F75-AA14 -> 0.59043193 | G73: =IF(E4=AA4,X18/2,) -> 0.5 | H73: =IF(E4=AA4,Z23-AA18,) -> 0.5977235966 | I73: =IF(E4<>AA2,I71-(Z27/2),0) -> 0.8333333333 | J73: =IF(E4<>AA2,J71-AD14,) -> 0.59043193 | K73: =IF(E5=AB6,K75+((K71-K75)*0.75),) -> 0.2778788728 | L73: =L69 -> 0.3241742983 | M73: =IF(E4<>AA4,0,IF(E6=AB6,M75+((M71-M75)*0.75),)) -> 0 | N73: =IF(E4<>AA4,0,IF(E6=AB6,N69,)) -> 0 | Q73: =Q72 -> 0.1666666667 | R73: =IF(E10=Z7,R72-0.03,0) -> 0 | S73: =S72 -> 0.8333333333 | T73: =IF(E10=Z7,R72-0.03,0) -> 0 | U73: =U72 -> 0.5 | V73: =IF(E4<AA3,0,IF(E10=Z7,R72-0.03,)) -> 0
E74: =IF(E4=AA2,E63+(AA27/4),E73-(Z27/4)) -> 0.08697916667 | F74: =F75-AB14 -> 0.60308818 | G74: =IF(E4=AA4,G73-(Z30/4),) -> 0.4203125 | H74: =IF(E4=AA4,Z23-AB18,) -> 0.6103798466 | I74: =IF(E4<>AA2,I75+(Z27/4),0) -> 0.7536458333 | J74: =IF(E4<>AA2,J71-AE14,) -> 0.60308818 | K74: =K75+((K71-K75)/2) -> 0.2224244123 | L74: =L68 -> 0.1657329825 | M74: =IF(E4<>AA4,0,IF(E6=AB6,M75+((M71-M75)/2),)) -> 0 | N74: =IF(E4<>AA4,0,IF(E6=AB6,N68,)) -> 0
E75: =E63 -> 0.007291666667 | F75: =F63+AA26 -> 0.64105693 | G75: =IF(E4=AA4,G71-Z30,) -> 0.340625 | H75: =IF(E4=AA4,H71,) -> 0.64105693 | I75: =IF(E4=AA3,O68+(X20/2)+Z24,IF(E4<>AA2,O69+Z24,)) -> 0.6739583333 | J75: =IF(E4<>AA2,P69-Z24,) -> 0.64105693 | K75: =K63 -> 0.1115154912 | L75: =L63 -> 0.007291666667 | M75: =IF(E4<>AA4,0,IF(E6=AB6,M63,)) -> 0 | N75: =IF(E4<>AA4,0,IF(E6=AB6,N63,)) -> 0
E76: =E63+AB13 -> 0.07597440484 | F76: =F75-(AA26/4) -> 0.4826156142 | G76: =IF(E4=AA4,G75+AB17-(X10/6),) -> 0.3623039683 | H76: =H70 -> 0.4753239475 | I76: =IF(E4<>AA2,I75+AB12-(X14/4),) -> 0.6721354167 | J76: =IF(E4<>AA2,(Z26*0.75),) -> 0.4753239475
E77: =E63+AA13 -> 0.0988686509 | F77: =F76-(AA26/4) -> 0.3241742983 | G77: =IF(E4=AA4,G79+AA17+(X10/4),) -> 0.3616963294 | H77: =IF(E4=AA4,H69,) -> 0.3241742983 | I77: =IF(E4<>AA2,I79+AA12+(X14/2),) -> 0.6245240079 | J77: =IF(E4<>AA2,Z23/2,) -> 0.3241742983
E78: =E76 -> 0.07597440484 | F78: =F77-(AA26/4) -> 0.1657329825 | G78: =IF(E4=AA4,G79+AB17+(X10/8),) -> 0.3035492559 | H78: =H68 -> 0.1584413158 | I78: =IF(E4<>AA2,I79+AB12+(X14/4),) -> 0.531124107 | J78: =IF(E4<>AA2,Z26/4,) -> 0.1584413158
E79: =E63 -> 0.007291666667 | F79: =Z24 -> 0.007291666667 | G79: =IF(E4=AA4,G63,) -> 0.1996136903 | H79: =IF(E4=AA4,Z24,) -> 0.007291666667 | I79: =I63 -> 0.391935714 | J79: =J63 -> 0.007291666667

Sheet Georgian Gable
S1: Main material | T1: =IF(E14=S3,5,IF(E14=S4,6,IF(E14=S5,6))) -> 5 | U1: Material cost | V1: 11.35 | W1: Sails | X1: Warning 1 | Y1: Warning: Sail too narrow, increase no. of sails, add X-Axis fittings or increase gap size | Z1: Sails
S2: Tri material | T2: =IF(E15=S3,5,IF(E15=S4,6,IF(E15=S5,6))) -> 5 | U2: PE | V2: 2.5 | W2: 1 - Front | X2: Warning 2 | Y2: Warning: Sail too narrow, decrease no. of sails, add Y-Axis fittings or reduce gap size | Z2: =IF(E5=W2,2,IF(E5=W3,1,E5)) -> 3
S3: Solid ISX | T3: 5 | U3: PN | V3: 3.5 | W3: 1 - Full | X3: Warning 3 | Y3: Warning: Sail too wide for standard fabric, please add more sails or increase gap size
D4: Select coverage | E4: Cover both sides | S4: Duplex ISX | T4: 6 | U4: IP | V4: 2 | W4: 2 | X4: Warning 4 | Y4: Warning: Conservatory too long for standard fabric, contact office for more detailed price
D5: Select no. of sails per side | E5: 3 | S5: Solid ISXFR | T5: 6 | U5: No. of vents | W5: 3
D6: Left triangle sail | E6: Yes | S6: Shape | T6: =IF(W10=S7,T7,IF(W10=S8,T8,IF(W10=S9,T9))) -> 1 | U6: 0 | V6: Y fit points | W6: X fit points
D7: Right triangle sail | E7: Yes | S7: Triangle | T7: 0.6 | U7: 1 | V7: None | W7: None | Y7: Dims in m
S8: Diamond | T8: 0.6 | U8: 2 | V8: Standard | W8: Standard | X8: h1 | Y8: =B24/B27 -> 0.4461206897
D9: Reduce left gap size | E9: Standard | S9: Other | T9: 1 | U9: 3 | V9: No. of corners | W9: 4 | X9: h2 | Y9: =B25/B27 -> 0.7004310345
D10: Reduce right gap size | E10: Standard | S10: Overlap left | T10: =IF(E9=S11,T11,IF(E9=S12,T12,IF(E9=S13,T13,))) -> 0 | U10: 4 | V10: Shape | W10: Other | X10: y1 | Y10: =B27/B27 -> 1
D11: Additional X-Axis fitting points | E11: None | S11: Standard | T11: 0 | V11: Curve allowance | W11: 0.4 | X11: x1 | Y11: =B26/B27 -> 0.8189655172
D12: Additional Y-Axis fitting points | E12: None | S12: 0.5 | T12: =IF(E5=W3,0,IF(OR(E5=W4,E5=W2),(U16/2)+(0.035/(B27/1000)),IF(E5=W5,(U16*0.67)+Y23))) -> 0.05458152112
S13: 1 | T13: =IF(E5=W3,0,IF(OR(E5=W4,E5=W2),U16+(0.035/(B27/1000)),IF(E5=W5,(U16*1.34)+(0.035/(B27/1000))))) -> 0.1016199388 | U13: tri width | V13: tri length | W13: tri mid | X13: tri quarter | Y13: tri perimeter
D14: Select material for main sails | E14: Solid ISX | S14: Overlap right | T14: =IF(E5=W4,T10,IF(E10=S11,T11,IF(E10=S12,T12,IF(E10=S13,T13)))) -> 0 | U14: =IF(V14*0.7<Y10,V14*0.7,Y10) -> 0.326858448 | V14: =R66-(0.07/(B27/1000)) -> 0.46694064 | W14: =U14*0.13 -> 0.04249159824 | X14: =W14*0.75 -> 0.03186869868 | Y14: =(U14+(0.07/(B27/1000)))+((V14+(0.07/(B27/1000)))*2) -> 1.305998349
D15: Select material for triangles | E15: Solid ISX | T15: Warnings | U15: Mid | V15: Quarters | W15: Coverage | X15: Roof area (m^2) | Y15: =Y18*Y10 -> 0.4820268469
D16: Select no. of window vents | E16: 0 | S16: Width | T16: =(IF(OR(E5=W2,E5=W3),T23,IF(OR(E5=W4,E5=W5),MIN(T23:V23),))) -> 1.546666667 | U16: =((Y19+(0.07/(B27/1000)))*0.13)+Y23 -> 0.07020659354 | V16: =(U16)*0.75 -> 0.05265494516 | W16: Cover one side | X16: Area of each sail | Y16: =Y15/Z2 -> 0.1606756156
H17: Plan view - looking from above | S17: Length | T17: =(Y19*(B27/1000))+0.07 -> 2.236604569 | U17: - | V17: - | W17: Cover both sides | X17: Sail perimeter | Y17: =((Y19+0.07)*2)+((Y20+0.07)*2) -> 1.850375533
D18: Max length of sail | E18: =(MAX(T22:V22))*1000 -> 2236.604569 | S18: Vertical left | T18: =((Y20+(0.07/(B27/1000)))*0.13)+Y23 -> 0.05087643678 | U18: =T18*0.75 -> 0.03815732759 | W18: triangles | X18: Glazing bar length | Y18: =SQRT((Y9-Y8)^2+(Y11/2)^2) -> 0.4820268469
D19: Max width of sail | E19: =T16*1000 -> 1546.666667 | S19: Vertical mid | T19: =((AVERAGE(Y21:Z21)+(0.07/(B27/1000)))*0.13)+Y23 -> 0.05087643678 | U19: =T19*0.75 -> 0.03815732759 | W19: No | X19: Length of sail | Y19: =Y18-(0.07/(B27/1000)) -> 0.46694064
S20: Vertical right | T20: =((Y22+(0.07/(B27/1000)))*0.13)+Y23 -> 0.05087643678 | U20: =T20*0.75 -> 0.03815732759 | W20: Yes | X20: Width left | Y20: =(Y10/Z2)-(0.07/(B27/1000))+T10 -> 0.3182471264 | Z20: ->
D21: Please note that sails larger than 2100mm in both directions, will require a colour matched seam. | H21: Total budget cost incl. Installation+VAT+Delivery | K21: =T25+U25+V25+12.15+(E16*50)+IF(AND(E6=W20,E5<>W3),W25,)+IF(AND(E7=W20,E5=W5),W25,) -> 3533.043685 | S21: Costs | T21: left | U21: mid | V21: right | W21: tri | X21: Width middle | Y21: =(Y10/Z2)-(0.07/(B27/1000))+T10 -> 0.3182471264 | Z21: =(Y10/Z2)-(0.07/(B27/1000))+T14 -> 0.3182471264
K22: =' '!P3 -> 4063.000238 | S22: length | T22: =(Y19*(B27/1000))+0.07 -> 2.236604569 | U22: =T22 -> 2.236604569 | V22: =U22 -> 2.236604569 | W22: =V22 -> 2.236604569 | X22: Width right | Y22: =(Y10/Z2)-(0.07/(B27/1000))+T14 -> 0.3182471264
B23: All dims in mm | G23: =' '!A8 -> 0 | S23: width | T23: =((D68-D64)*(B27/1000))+0.07 -> 1.546666667 | U23: =IF(E5<>W5,MIN(T23,V23),((H68-H64)*(B27/1000))+0.07) -> 1.546666667 | V23: =((F68-F64)*(B27/1000))+0.07*IF(E5<>W3,1,1000) -> 1.546666667 | W23: =(U14*(B27/1000))+0.07 -> 1.586623199 | X23: 50mm links | Y23: =0.035/(B27/1000) -> 0.007543103448
A24: H1 | B24: 2070 | D24: =IF(((T18*(B26/1000))*(IF(E11=V8,0.5,2)))>(T17*W11),Y1,IF(((U16*(B26/1000))*(IF(E12=W8,0.5,2)))>(T16*W11),Y2,IF(AND(T16>4,T17>4),Y3,""))) ->  | S24: perimeter | T24: =(T22*2)+(T23*2) -> 7.566542472 | U24: =(U22*2)+(U23*2) -> 7.566542472 | V24: =(V22*2)+(V23*2) -> 7.566542472 | W24: =(W22*2)+W23 -> 6.059832337
A25: H2 | B25: 3250 | T25: =IF(E4=W17,2,1)*(((T1*((T6*T22*T23*V1)+(T24*V2)+(W9*V3)+V4))+7.2*W9)+IF(E11=V8,24.7*2,)+IF(E12=W8,24.7*2*IF(E5=W2,0.5,1),)) -> 799.3920386 | U25: =IF(E4=W17,2,1)*IF(E5=W5,((T1*((T6*U23*U22*V1)+(U24*V2)+(W9*V3)+V4))+7.2*W9)+IF(E12=V8,24.7*2,)+IF(E11=W8,24.7*2,),) -> 799.3920386 | V25: =IF(E4=W17,2,1)*IF(OR(E5=W4,E5=W5),((T1*((T6*V22*V23*V1)+(V24*V2)+(W9*V3)+V4))+7.2*W9)+IF(E11=V8,24.7*2,)+IF(E12=W8,24.7*2,),0) -> 799.3920386 | W25: =IF(AND(E5<>W3,OR(E6=W20,AND(E7=W20,E5<>W4))),((T2*((T7*W23*W22*V1)+(W24*V2)+(3*V3)+V4))+7.2*3),)*IF(E4=W17,2,1) -> 561.3587846
A26: X1 | B26: 3800 | G26: =' '!A11 -> 0
A27: Y1 | B27: 4640
D42: x | E42: y | F42: x | G42: y | H42: x | I42: y | K42: triangles
D43: Left up | F43: Right up | H43: Mid up | K43: x | L43: y | M43: x | N43: y | O43: x | P43: y | Q43: x | R43: y
D44: =IF(E4=W16,0,Y23) -> 0.007543103448 | E44: =IF(E4=W16,0,Y23+Y18) -> 0.4895699503 | F44: =IF(E4=W16,0,IF(E5=W3,0,IF(E5=W4,F48-Y22,IF(E5=W5,(F48-Y22))))) -> 0.6742097701 | G44: =IF(E5=W3,0,IF(E5=W4,E44,IF(E5=W5,E44))) -> 0.4895699503 | H44: =IF(E4=W16,0,IF(OR(E5=W2,E5=W3),0,IF(E5=W4,0,IF(E5=W5,(Y10/2)-(Y21/2))))) -> 0.3408764368 | I44: =IF(OR(E5=W2,E5=W3),0,IF(E5=W4,0,IF(E5=W5,E44))) -> 0.4895699503 | K44: down left | M44: down right | O44: up left | Q44: up right
D45: =IF(E4=W16,0,D64+(Y20/4)) -> 0.08710488506 | E45: =IF(E4=W16,0,(E66*0.75)+Y18) -> 0.5201841744 | F45: =IF(E4=W16,0,IF(E5=W3,0,IF(E5=W4,F46-(Y22/4),IF(E5=W5,F46-Y23-(Y22/4))))) -> 0.7386853448 | G45: =IF(E4=W16,0,IF(E5=W3,0,IF(E5=W4,Y18+U20,IF(E5=W5,Y18+U20)))) -> 0.5201841744 | H45: =IF(E4=W16,0,IF(OR(E5=W2,E5=W3),0,IF(E5=W4,0,IF(E5=W5,H44+(MAX(Y21:Z21)/4))))) -> 0.4204382184 | I45: =IF(E4=W16,0,IF(OR(E5=W2,E5=W3),0,IF(E5=W4,0,IF(E5=W5,Y18+U19)))) -> 0.5201841744 | K45: =IF(E6=W20,IF(E5<>W3,K47-(U14/2),),) -> 0.1699041093 | L45: =IF(E6=W20,IF(E5<>W3,Y23,),) -> 0.007543103448 | M45: =IF(E7=W20,IF(E5=W5,M47-(U14/2),),) -> 0.5032374427 | N45: =IF(E7=W20,IF(E5=W5,Y23,),) -> 0.007543103448 | O45: =IF(E4=W16,0,IF(E6=W20,IF(E5<>W3,K47-(U14/2),),)) -> 0.1699041093 | P45: =IF(E4=W16,0,IF(E6=W20,IF(E5<>W3,R64-Y23,),)) -> 0.9565105903 | Q45: =IF(E4=W16,0,IF(E7=W20,IF(E5=W5,M47-(U14/2),),)) -> 0.5032374427 | R45: =IF(E7=W20,IF(E5=W5,R64-Y23,),) -> 0.9565105903
D46: =IF(E4=W16,0,IF(E5=W3,(Y10/2),IF(OR(E5=W2,E5=W4),D68-(Y20/2),IF(E5=W5,D68-(Y20/2))))) -> 0.1666666667 | E46: =IF(E4=W16,0,T18+Y18) -> 0.5329032836 | F46: =IF(E4=W16,0,IF(E5=W3,0,IF(E5=W4,F48-(Y22/2),IF(E5=W5,F48-Y23-(Y22/2))))) -> 0.8257902299 | G46: =IF(E4=W16,0,IF(E5=W3,0,IF(E5=W4,Y18+T20,IF(E5=W5,Y18+T20)))) -> 0.5329032836 | H46: =IF(E4=W16,0,IF(OR(E5=W2,E5=W3),0,IF(E5=W4,0,IF(E5=W5,H48-((H48-H44)/2))))) -> 0.5 | I46: =IF(E4=W16,0,IF(OR(E5=W2,E5=W3),0,IF(E5=W4,0,IF(E5=W5,Y18+T19)))) -> 0.5329032836 | K46: =IF(E6=W20,IF(E5<>W3,K45+(U14/4),),) -> 0.2516187213 | L46: =IF(E6=W20,IF(E5<>W3,X14,),) -> 0.03186869868 | M46: =IF(E7=W20,IF(E5=W5,M47-(U14/4),),) -> 0.5849520547 | N46: =IF(E7=W20,IF(E5=W5,X14,),) -> 0.03186869868 | O46: =IF(E4=W16,0,IF(E6=W20,IF(E5<>W3,K45+(U14/4),),)) -> 0.2516187213 | P46: =IF(E4=W16,0,IF(E6=W20,IF(E5<>W3,R64-X14,),)) -> 0.932184995 | Q46: =IF(E4=W16,0,IF(E7=W20,IF(E5=W5,M47-(U14/4),),)) -> 0.5849520547 | R46: =IF(E7=W20,IF(E5=W5,R64-X14,),) -> 0.932184995
D47: =IF(E4=W16,0,D68-(Y20/4)) -> 0.2462284483 | E47: =IF(E4=W16,0,E65+Y18) -> 0.5201841744 | F47: =F46+Y23+(F46-F45) -> 0.9204382184 | G47: =IF(E5=W3,0,IF(E5=W4,G45,IF(E5=W5,G45))) -> 0.5201841744 | H47: =IF(E4=W16,0,IF(OR(E5=W2,E5=W3),0,IF(E5=W4,0,IF(E5=W5,H48-(MAX(Y21:Z21)/4))))) -> 0.5795617816 | I47: =I45 -> 0.5201841744 | K47: =IF(E6=W20,IF(OR(E5=W2,E5=W4),Y10/2,IF(E5=W5,Y10/3,)),) -> 0.3333333333 | L47: =IF(E6=W20,IF(E5<>W3,W14,),) -> 0.04249159824 | M47: =IF(E7=W20,IF(E5=W5,Y10*(2/3),),) -> 0.6666666667 | N47: =IF(E7=W20,IF(E5=W5,W14,),) -> 0.04249159824 | O47: =IF(E4=W16,0,IF(E6=W20,IF(OR(E5=W2,E5=W4),Y10/2,IF(E5=W5,Y10/3)),)) -> 0.3333333333 | P47: =IF(E4=W16,0,IF(E6=W20,IF(E5<>W3,R64-W14,),)) -> 0.9215620955 | Q47: =IF(E4=W16,0,IF(E7=W20,IF(E5=W5,Y10*(2/3),),)) -> 0.6666666667 | R47: =IF(E7=W20,IF(E5=W5,R64-W14,),) -> 0.9215620955
D48: =IF(E4=W16,0,IF(E5=W3,D64+Y20,IF(OR(E5=W2,E5=W4),Y20+D64,IF(E5=W5,D64+Y20)))) -> 0.3257902299 | E48: =IF(E4=W16,0,E44) -> 0.4895699503 | F48: =IF(E4=W16,0,IF(E5=W3,0,IF(E5=W4,Y10-Y23,IF(E5=W5,Y10-Y23)))) -> 0.9924568966 | G48: =IF(E5=W3,0,IF(E5=W4,E44,IF(E5=W5,E44))) -> 0.4895699503 | H48: =IF(E4=W16,0,IF(OR(E5=W2,E5=W3),0,IF(E5=W4,0,IF(E5=W5,(Y10/2)+(Z21/2))))) -> 0.6591235632 | I48: =IF(OR(E5=W2,E5=W3),0,IF(E5=W4,0,IF(E5=W5,E44))) -> 0.4895699503 | K48: =IF(E6=W20,IF(E5<>W3,K47+(U14/4),),) -> 0.4150479453 | L48: =IF(E6=W20,IF(E5<>W3,X14,),) -> 0.03186869868 | M48: =IF(E7=W20,IF(E5=W5,M47+(U14/4),),) -> 0.7483812787 | N48: =IF(E7=W20,IF(E5=W5,X14,),) -> 0.03186869868 | O48: =IF(E4=W16,0,IF(E6=W20,IF(E5<>W3,K47+(U14/4),),)) -> 0.4150479453 | P48: =IF(E4=W16,0,IF(E6=W20,IF(E5<>W3,R64-X14,),)) -> 0.932184995 | Q48: =IF(E4=W16,0,IF(E7=W20,IF(E5=W5,M47+(U14/4),),)) -> 0.7483812787 | R48: =IF(E7=W20,IF(E5=W5,R46,),) -> 0.932184995
D49: =IF(E4=W16,0,D68-V16) -> 0.2731352847 | E49: =IF(E4=W16,0,(Y19/4)+Y18) -> 0.5987620069 | F49: =IF(E4=W16,0,IF(E5=W3,0,IF(E5=W4,F48-V16,IF(E5=W5,(F48-V16))))) -> 0.9398019514 | G49: =IF(E5=W3,0,IF(E5=W4,E59,IF(E5=W5,E59))) -> 0.5987620069 | H49: =IF(E4=W16,0,IF(OR(E5=W2,E5=W3),0,IF(E5=W4,0,IF(E5=W5,H48-V16)))) -> 0.6064686181 | I49: =IF(OR(E5=W2,E5=W3),0,IF(E5=W4,0,IF(E5=W5,G49))) -> 0.5987620069 | K49: =IF(E6=W20,IF(E5<>W3,K47+(U14/2),),) -> 0.4967625573 | L49: =IF(E6=W20,IF(E5<>W3,Y23,),) -> 0.007543103448 | M49: =IF(E7=W20,IF(E5=W5,M47+(U14/2),),) -> 0.8300958907 | N49: =IF(E7=W20,IF(E5=W5,N45,),) -> 0.007543103448 | O49: =IF(E4=W16,0,IF(E6=W20,IF(E5<>W3,K47+(U14/2),),)) -> 0.4967625573 | P49: =IF(E4=W16,0,IF(E6=W20,IF(E5<>W3,R64-Y23,),)) -> 0.9565105903 | Q49: =IF(E4=W16,0,IF(E7=W20,IF(E5=W5,M47+(U14/2),),)) -> 0.8300958907 | R49: =IF(E7=W20,IF(E5=W5,R45,),) -> 0.9565105903
D50: =IF(E4=W16,0,D68-U16) -> 0.2555836363 | E50: =IF(E4=W16,0,(Y18/2)+Y18) -> 0.7230402703 | F50: =IF(E4=W16,0,IF(E5=W3,0,IF(E5=W4,F48-U16,IF(E5=W5,(F48-U16))))) -> 0.922250303 | G50: =IF(E5=W3,0,IF(E5=W4,E50,IF(E5=W5,E50))) -> 0.7230402703 | H50: =IF(E4=W16,0,IF(OR(E5=W2,E5=W3),0,IF(E5=W4,0,IF(E5=W5,H48-U16)))) -> 0.5889169697 | I50: =IF(OR(E5=W2,E5=W3),0,IF(E5=W4,0,IF(E5=W5,E50))) -> 0.7230402703 | K50: =IF(E6=W20,IF(E5<>W3,K49-((K49-K53)/2),),) -> 0.4150479453 | L50: =IF(E6=W20,IF(E5<>W3,R66/4,),) -> 0.1205067117 | M50: =IF(E7=W20,IF(E5=W5,M49-((M49-M53)/2),),) -> 0.7483812787 | N50: =IF(E7=W20,IF(E5=W5,R66/4,),) -> 0.1205067117 | O50: =IF(E4=W16,0,IF(E6=W20,IF(E5<>W3,K49-((K49-K53)/2),),)) -> 0.4150479453 | P50: =IF(E4=W16,0,IF(E6=W20,IF(E5<>W3,R66+R66*0.75,),)) -> 0.843546982 | Q50: =IF(E4=W16,0,IF(E7=W20,IF(E5=W5,M49-((M49-M53)/2),),)) -> 0.7483812787 | R50: =IF(E7=W20,IF(E5=W5,R66+R66*0.75,),) -> 0.843546982
D51: =IF(E4=W16,0,D69) -> 0.2731352847 | E51: =IF(E4=W16,0,(Y19*0.75)+Y18) -> 0.8322323268 | F51: =F49 -> 0.9398019514 | G51: =IF(E5=W3,0,IF(E5=W4,E57,IF(E5=W5,E57))) -> 0.8322323268 | H51: =H49 -> 0.6064686181 | I51: =IF(OR(E5=W2,E5=W3),0,IF(E5=W4,0,IF(E5=W5,G51))) -> 0.8322323268 | K51: =IF(E6=W20,IF(E5<>W3,K49-((K49-K53)*0.75),),) -> 0.3741906393 | L51: =IF(E6=W20,IF(E5<>W3,R66/2,),) -> 0.2410134234 | M51: =IF(E7=W20,IF(E5=W5,M49-((M49-M53)*0.75),),) -> 0.7075239727 | N51: =IF(E7=W20,IF(E5=W5,R66/2,),) -> 0.2410134234 | O51: =IF(E4=W16,0,IF(E6=W20,IF(E5<>W3,K49-((K49-K53)*0.75),),)) -> 0.3741906393 | P51: =IF(E4=W16,0,IF(E6=W20,IF(E5<>W3,R66+R66/2,),)) -> 0.7230402703 | Q51: =IF(E4=W16,0,IF(E7=W20,IF(E5=W5,M49-((M49-M53)*0.75),),)) -> 0.7075239727 | R51: =IF(E7=W20,IF(E5=W5,R66+R66/2,),) -> 0.7230402703
D52: =IF(E4=W16,0,D68) -> 0.3257902299 | E52: =IF(E4=W16,0,(Y18*2)-Y23) -> 0.9565105903 | F52: =IF(E5=W3,0,IF(E5=W4,F48,IF(E5=W5,F48))) -> 0.9924568966 | G52: =IF(E5=W3,0,IF(E5=W4,E56,IF(E5=W5,E52))) -> 0.9565105903 | H52: =IF(OR(E5=W2,E5=W3),0,IF(E5=W4,0,IF(E5=W5,H48))) -> 0.6591235632 | I52: =IF(OR(E5=W2,E5=W3),0,IF(E5=W4,0,IF(E5=W5,G56))) -> 0.9565105903 | K52: =IF(E6=W20,IF(E5<>W3,K53+((K49-K53)*0.1),),) -> 0.3496762557 | L52: =IF(E6=W20,IF(E5<>W3,R66*0.75,),) -> 0.3615201351 | M52: =IF(E7=W20,IF(E5=W5,M53+((M49-M53)*0.1),),) -> 0.6830095891 | N52: =IF(E7=W20,IF(E5=W5,R66*0.75,),) -> 0.3615201351 | O52: =IF(E4=W16,0,IF(E6=W20,IF(E5<>W3,K53+((K49-K53)*0.1),),)) -> 0.3496762557 | P52: =IF(E4=W16,0,IF(E6=W20,IF(E5<>W3,R66+R66/4,),)) -> 0.6025335586 | Q52: =IF(E4=W16,0,IF(E7=W20,IF(E5=W5,M53+((M49-M53)*0.1),),)) -> 0.6830095891 | R52: =IF(E7=W20,IF(E5=W5,R66+R66/4,),) -> 0.6025335586
D53: =IF(E4=W16,0,D67) -> 0.2462284483 | E53: =IF(E4=W16,0,(Y18-E65)+Y18) -> 0.9258963661 | F53: =F47 -> 0.9204382184 | G53: =IF(E4=W16,0,IF(E5=W3,0,IF(E5=W4,R64-U20,IF(E5=W5,R64-U20)))) -> 0.9258963661 | H53: =H47 -> 0.5795617816 | I53: =IF(E4=W16,0,IF(OR(E5=W2,E5=W3),0,IF(E5=W4,0,IF(E5=W5,R64-U19)))) -> 0.9258963661 | K53: =IF(E6=W20,IF(E5<>W3,K47,),) -> 0.3333333333 | L53: =IF(E6=W20,IF(E5<>W3,R66-Y23,),) -> 0.4744837434 | M53: =IF(E7=W20,IF(E5=W5,M47,),) -> 0.6666666667 | N53: =IF(E7=W20,IF(E5=W5,R66-Y23,),) -> 0.4744837434 | O53: =IF(E4=W16,0,IF(E6=W20,IF(E5<>W3,K47,),)) -> 0.3333333333 | P53: =IF(E4=W16,0,IF(E6=W20,IF(E5<>W3,R66+Y23,),)) -> 0.4895699503 | Q53: =IF(E4=W16,0,IF(E7=W20,IF(E5=W5,M47,),)) -> 0.6666666667 | R53: =IF(E7=W20,IF(E5=W5,R66+Y23,),) -> 0.4895699503
D54: =IF(E4=W16,0,D66) -> 0.1666666667 | E54: =IF(E4=W16,0,(Y18-E66)+Y18) -> 0.9131772569 | F54: =IF(E5=W3,0,IF(E5=W4,F46,IF(E5=W5,F46))) -> 0.8257902299 | G54: =IF(E4=W16,0,IF(E5=W3,0,IF(E5=W4,R64-T20,IF(E5=W5,R64-T20)))) -> 0.9131772569 | H54: =IF(OR(E5=W2,E5=W3),0,IF(E5=W4,0,IF(E5=W5,H46))) -> 0.5 | I54: =IF(E4=W16,0,IF(OR(E5=W2,E5=W3),0,IF(E5=W4,0,IF(E5=W5,R64-T19)))) -> 0.9131772569 | K54: =IF(E6=W20,IF(E5<>W3,K53-((K53-K57)*0.1),),) -> 0.3169904109 | L54: =IF(E6=W20,IF(E5<>W3,L52,),) -> 0.3615201351 | M54: =IF(E7=W20,IF(E5=W5,M53-((M53-M57)*0.1),),) -> 0.6503237443 | N54: =IF(E7=W20,IF(E5=W5,N52,),) -> 0.3615201351 | O54: =IF(E4=W16,0,IF(E6=W20,IF(E5<>W3,K53-((K53-K57)*0.1),),)) -> 0.3169904109 | P54: =IF(E4=W16,0,IF(E6=W20,IF(E5<>W3,P52,),)) -> 0.6025335586 | Q54: =IF(E4=W16,0,IF(E7=W20,IF(E5=W5,M53-((M53-M57)*0.1),),)) -> 0.6503237443 | R54: =IF(E7=W20,IF(E5=W5,R52,),) -> 0.6025335586
D55: =IF(E4=W16,0,D65) -> 0.09464798851 | E55: =E53 -> 0.9258963661 | F55: =F45 -> 0.7386853448 | G55: =IF(E5=W3,0,IF(E5=W4,G53,IF(E5=W5,G53))) -> 0.9258963661 | H55: =H45 -> 0.4204382184 | I55: =I53 -> 0.9258963661 | K55: =IF(E6=W20,IF(E5<>W3,K57+((K53-K57)*0.75),),) -> 0.2924760273 | L55: =IF(E6=W20,IF(E5<>W3,L51,),) -> 0.2410134234 | M55: =IF(E7=W20,IF(E5=W5,M57+((M53-M57)*0.75),),) -> 0.6258093607 | N55: =IF(E7=W20,IF(E5=W5,N51,),) -> 0.2410134234 | O55: =IF(E4=W16,0,IF(E6=W20,IF(E5<>W3,K57+((K53-K57)*0.75),),)) -> 0.2924760273 | P55: =IF(E6=W20,IF(E5<>W3,P51,),) -> 0.7230402703 | Q55: =IF(E4=W16,0,IF(E7=W20,IF(E5=W5,M57+((M53-M57)*0.75),),)) -> 0.6258093607 | R55: =IF(E7=W20,IF(E5=W5,R51,),) -> 0.7230402703
D56: =IF(E4=W16,0,D64) -> 0.007543103448 | E56: =E52 -> 0.9565105903 | F56: =IF(E5=W3,0,IF(E5=W4,F44,IF(E5=W5,F44))) -> 0.6742097701 | G56: =IF(E5=W3,0,IF(E5=W4,G52,IF(E5=W5,G52))) -> 0.9565105903 | H56: =IF(OR(E5=W2,E5=W3),0,IF(E5=W4,0,IF(E5=W5,H44))) -> 0.3408764368 | I56: =IF(OR(E5=W2,E5=W3),0,IF(E5=W4,0,IF(E5=W5,I52))) -> 0.9565105903 | K56: =IF(E6=W20,IF(E5<>W3,K57+((K53-K57)/2),),) -> 0.2516187213 | L56: =IF(E6=W20,IF(E5<>W3,L50,),) -> 0.1205067117 | M56: =IF(E7=W20,IF(E5=W5,M57+((M53-M57)/2),),) -> 0.5849520547 | N56: =IF(E7=W20,IF(E5=W5,N50,),) -> 0.1205067117 | O56: =IF(E4=W16,0,IF(E6=W20,IF(E5<>W3,K57+((K53-K57)/2),),)) -> 0.2516187213 | P56: =IF(E6=W20,IF(E5<>W3,P50,),) -> 0.843546982 | Q56: =IF(E4=W16,0,IF(E7=W20,IF(E5=W5,M57+((M53-M57)/2),),)) -> 0.5849520547 | R56: =IF(E7=W20,IF(E5=W5,R50,),) -> 0.843546982
D57: =IF(E4=W16,0,D64+V16) -> 0.0601980486 | E57: =E51 -> 0.8322323268 | F57: =IF(E4=W16,0,IF(E5=W3,0,IF(E5=W4,F56+V16,IF(E5=W5,(F44+V16))))) -> 0.7268647153 | G57: =G51 -> 0.8322323268 | H57: =IF(E4=W16,0,IF(OR(E5=W2,E5=W3),0,IF(E5=W4,0,IF(E5=W5,(H44+V16))))) -> 0.3935313819 | I57: =I51 -> 0.8322323268 | K57: =IF(E6=W20,IF(E5<>W3,K45,),) -> 0.1699041093 | L57: =IF(E6=W20,IF(E5<>W3,L45,),) -> 0.007543103448 | M57: =IF(E7=W20,IF(E5=W5,M45,),) -> 0.5032374427 | N57: =IF(E7=W20,IF(E5=W5,N45,),) -> 0.007543103448 | O57: =IF(E4=W16,0,IF(E6=W20,IF(E5<>W3,K45,),)) -> 0.1699041093 | P57: =IF(E6=W20,IF(E5<>W3,P45,),) -> 0.9565105903 | Q57: =IF(E4=W16,0,IF(E7=W20,IF(E5=W5,M45,),)) -> 0.5032374427 | R57: =IF(E7=W20,IF(E5=W5,R49,),) -> 0.9565105903
D58: =IF(E4=W16,0,D64+U16) -> 0.07774969699 | E58: =E50 -> 0.7230402703 | F58: =IF(E4=W16,0,IF(E5=W3,0,IF(E5=W4,F56+U16,IF(E5=W5,(F44+U16))))) -> 0.7444163637 | G58: =IF(E5=W3,0,IF(E5=W4,G50,IF(E5=W5,G50))) -> 0.7230402703 | H58: =IF(E4=W16,0,IF(OR(E5=W2,E5=W3),0,IF(E5=W4,0,IF(E5=W5,H44+U16)))) -> 0.4110830303 | I58: =IF(OR(E5=W2,E5=W3),0,IF(E5=W4,0,IF(E5=W5,E50))) -> 0.7230402703
D59: =IF(E4=W16,0,D77) -> 0.0601980486 | E59: =E49 -> 0.5987620069 | F59: =F57 -> 0.7268647153 | G59: =G49 -> 0.5987620069 | H59: =H57 -> 0.3935313819 | I59: =I49 -> 0.5987620069 | K59: X-Axis fitting points | Q59: Roof plan
D60: =IF(E4=W16,0,D64) -> 0.007543103448 | E60: =E44 -> 0.4895699503 | F60: =IF(E5=W3,0,IF(E5=W4,F56,IF(E5=W5,F56))) -> 0.6742097701 | G60: =IF(E5=W3,0,IF(E5=W4,E44,IF(E5=W5,E44))) -> 0.4895699503 | H60: =IF(OR(E5=W2,E5=W3),0,IF(E5=W4,0,IF(E5=W5,H56))) -> 0.3408764368 | I60: =IF(OR(E5=W2,E5=W3),0,IF(E5=W4,0,IF(E5=W5,E44))) -> 0.4895699503 | K60: Sail 1 | M60: Sail 2 | O60: Sail 3 | Q60: x-axis | R60: y-axis
K61: =D74 -> 0.1666666667 | L61: 0 | M61: =F66 -> 0.8257902299 | N61: 0 | O61: =H66 -> 0.5 | P61: 0 | Q61: 0 | R61: 0
D62: x | E62: y | F62: x | G62: y | H62: x | I62: y | K62: =K61 -> 0.1666666667 | L62: =IF(E11=V8,0.03,0) -> 0 | M62: =M61 -> 0.8257902299 | N62: =IF(E5<W4,0,IF(E11=V8,0.03,)) -> 0 | O62: =O61 -> 0.5 | P62: =IF(E5<W5,0,IF(E11=V8,0.03,)) -> 0 | Q62: =Y10 -> 1 | R62: 0
D63: Left down | F63: Right down | H63: Mid down | K63: =K61 -> 0.1666666667 | L63: =IF(E11=V8,Y18,0) -> 0 | M63: =M61 -> 0.8257902299 | N63: =IF(E5<W4,0,IF(E11=V8,Y18,)) -> 0 | O63: =O61 -> 0.5 | P63: =IF(E5<W5,0,IF(E11=V8,Y18,)) -> 0 | Q63: =Y10 -> 1 | R63: =Y18*2 -> 0.9640536937
D64: =Y23 -> 0.007543103448 | E64: =Y23 -> 0.007543103448 | F64: =IF(E5=W3,0,IF(E5=W4,F68-Y22,IF(E5=W5,(F68-Y22)))) -> 0.6742097701 | G64: =IF(E5=W3,0,IF(E5=W4,Y23,IF(E5=W5,Y23))) -> 0.007543103448 | H64: =IF(OR(E5=W2,E5=W3),0,IF(E5=W4,0,IF(E5=W5,(Y10/2)-(Y21/2)))) -> 0.3408764368 | I64: =IF(OR(E5=W2,E5=W3),0,IF(E5=W4,0,IF(E5=W5,Y23))) -> 0.007543103448 | K64: =K61 -> 0.1666666667 | L64: =IF(E11=V8,L63-0.03,0) -> 0 | M64: =M61 -> 0.8257902299 | N64: =IF(E5<W4,0,IF(E11=V8,L63-0.03,)) -> 0 | O64: =O61 -> 0.5 | P64: =IF(E5<W5,0,IF(E11=V8,L63-0.03,)) -> 0 | Q64: 0 | R64: =Y18*2 -> 0.9640536937
D65: =D64+(Y20/4)+Y23 -> 0.09464798851 | E65: =E66*0.75 -> 0.03815732759 | F65: =IF(E5=W3,0,IF(E5=W4,F66-(Y22/4),IF(E5=W5,F66-Y23-(Y22/4)))) -> 0.7386853448 | G65: =IF(E5=W3,0,IF(E5=W4,U20,IF(E5=W5,U20))) -> 0.03815732759 | H65: =IF(OR(E5=W2,E5=W3),0,IF(E5=W4,0,IF(E5=W5,H64+(MAX(Y21:Z21)/4)))) -> 0.4204382184 | I65: =IF(OR(E5=W2,E5=W3),0,IF(E5=W4,0,IF(E5=W5,U19))) -> 0.03815732759 | K65: =K61 -> 0.1666666667 | L65: =IF(E4=W16,0,IF(E11=V8,Y18,0)) -> 0 | M65: =M61 -> 0.8257902299 | N65: =IF(E4=W16,0,IF(E5<W4,0,IF(E11=V8,Y18,))) -> 0 | O65: =O61 -> 0.5 | P65: =IF(E4=W16,0,IF(E5<W5,0,IF(E11=V8,Y18,))) -> 0 | Q65: 0 | R65: 0
D66: =IF(E5=W3,(Y10/2),IF(OR(E5=W2,E5=W4),D68-(Y20/2),IF(E5=W5,(D68-(Y20/2))))) -> 0.1666666667 | E66: =T18 -> 0.05087643678 | F66: =IF(E5=W3,0,IF(E5=W4,F68-(Y22/2),IF(E5=W5,F68-Y23-(Y22/2)))) -> 0.8257902299 | G66: =IF(E5=W3,0,IF(E5=W4,T20,IF(E5=W5,T20))) -> 0.05087643678 | H66: =IF(OR(E5=W2,E5=W3),0,IF(E5=W4,0,IF(E5=W5,H68-((H68-H64)/2)))) -> 0.5 | I66: =IF(OR(E5=W2,E5=W3),0,IF(E5=W4,0,IF(E5=W5,T19))) -> 0.05087643678 | K66: =K61 -> 0.1666666667 | L66: =IF(E4=W16,0,IF(E11=V8,L63+0.03,0)) -> 0 | M66: =M61 -> 0.8257902299 | N66: =IF(E4=W16,0,IF(E5<W4,0,IF(E11=V8,L63+0.03,))) -> 0 | O66: =O61 -> 0.5 | P66: =IF(E4=W16,0,IF(E5<W5,0,IF(E11=V8,L63+0.03,))) -> 0 | Q66: 0 | R66: =Y18 -> 0.4820268469
D67: =D68-(Y20/4) -> 0.2462284483 | E67: =E65 -> 0.03815732759 | F67: =F66+Y23+(F66-F65) -> 0.9204382184 | G67: =IF(E5=W3,0,IF(E5=W4,U20,IF(E5=W5,U20))) -> 0.03815732759 | H67: =IF(OR(E5=W2,E5=W3),0,IF(E5=W4,0,IF(E5=W5,H68-(MAX(Y21:Z21)/4)))) -> 0.5795617816 | I67: =I65 -> 0.03815732759 | K67: =K61 -> 0.1666666667 | L67: =IF(E4=W16,0,IF(E11=V8,Y18*2,0)) -> 0 | M67: =M61 -> 0.8257902299 | N67: =IF(E4=W16,0,IF(E5<W4,0,IF(E11=V8,Y18*2,))) -> 0 | O67: =O61 -> 0.5 | P67: =IF(E4=W16,0,IF(E5<W5,0,IF(E11=V8,Y18*2,))) -> 0 | Q67: =Q63 -> 1 | R67: =R66 -> 0.4820268469
D68: =IF(E5=W3,D64+Y20,IF(OR(E5=W2,E5=W4),Y20+D64,IF(E5=W5,D64+Y20))) -> 0.3257902299 | E68: =Y23 -> 0.007543103448 | F68: =IF(E5=W3,0,IF(E5=W4,Y10-Y23,IF(E5=W5,Y10-Y23))) -> 0.9924568966 | G68: =IF(E5=W3,0,IF(E5=W4,Y23,IF(E5=W5,Y23))) -> 0.007543103448 | H68: =IF(OR(E5=W2,E5=W3),0,IF(E5=W4,0,IF(E5=W5,(Y10/2)+(Z21/2)))) -> 0.6591235632 | I68: =IF(OR(E5=W2,E5=W3),0,IF(E5=W4,0,IF(E5=W5,Y23))) -> 0.007543103448 | K68: =K61 -> 0.1666666667 | L68: =IF(E4=W16,0,IF(E11=V8,L67-0.03,0)) -> 0 | M68: =M61 -> 0.8257902299 | N68: =IF(E4=W16,0,IF(E5<W4,0,IF(E11=V8,N67-0.03,))) -> 0 | O68: =O61 -> 0.5 | P68: =IF(E4=W16,0,IF(E5<W5,0,IF(E11=V8,P67-0.03,))) -> 0
D69: =D68-V16 -> 0.2731352847 | E69: =Y19/4 -> 0.11673516 | F69: =IF(E5=W3,0,IF(E5=W4,F68-V16,IF(E5=W5,(F68-V16)))) -> 0.9398019514 | G69: =IF(E5=W3,0,IF(E5=W4,E79,IF(E5=W5,E79))) -> 0.11673516 | H69: =IF(OR(E5=W2,E5=W3),0,IF(E5=W4,0,IF(E5=W5,H68-V16))) -> 0.6064686181 | I69: =IF(OR(E5=W2,E5=W3),0,IF(E5=W4,0,IF(E5=W5,G69))) -> 0.11673516 | K69: Y-Axis fitting points
D70: =D68-U16 -> 0.2555836363 | E70: =Y18/2 -> 0.2410134234 | F70: =IF(E5=W3,0,IF(E5=W4,F68-U16,IF(E5=W5,(F68-U16)))) -> 0.922250303 | G70: =IF(E5=W3,0,IF(E5=W4,E70,IF(E5=W5,E70))) -> 0.2410134234 | H70: =IF(OR(E5=W2,E5=W3),0,IF(E5=W4,0,IF(E5=W5,H68-U16))) -> 0.5889169697 | I70: =IF(OR(E5=W2,E5=W3),0,IF(E5=W4,0,IF(E5=W5,E70))) -> 0.2410134234 | K70: Sail 1 | M70: Sail 2 | O70: Sail 3
D71: =D69 -> 0.2731352847 | E71: =(Y19*0.75) -> 0.35020548 | F71: =F69 -> 0.9398019514 | G71: =IF(E5=W3,0,IF(E5=W4,E77,IF(E5=W5,E77))) -> 0.35020548 | H71: =H69 -> 0.6064686181 | I71: =IF(OR(E5=W2,E5=W3),0,IF(E5=W4,0,IF(E5=W5,G71))) -> 0.35020548 | K71: 0 | L71: =Y18/2 -> 0.2410134234 | M71: =IF(AND(E5=W4,E12=W8),(Y10/2)-0.015,0) -> 0 | N71: =G70 -> 0.2410134234 | O71: =IF(AND(E5=W5,E12=W8),(Y10/3)-0.015+IF(E9=S12,0.02,IF(E9=S13,0.03)),0) -> 0 | P71: =I70 -> 0.2410134234
D72: =D68 -> 0.3257902299 | E72: =Y18-Y23 -> 0.4744837434 | F72: =IF(E5=W3,0,IF(E5=W4,F68,IF(E5=W5,F68))) -> 0.9924568966 | G72: =IF(E5=W3,0,IF(E5=W4,E76,IF(E5=W5,Y18-Y23))) -> 0.4744837434 | H72: =IF(OR(E5=W2,E5=W3),0,IF(E5=W4,0,IF(E5=W5,H68))) -> 0.6591235632 | I72: =IF(OR(E5=W2,E5=W3),0,IF(E5=W4,0,IF(E5=W5,G76))) -> 0.4744837434 | K72: =IF(E12=W8,0.03,0) -> 0 | L72: =L71 -> 0.2410134234 | M72: =IF(AND(E5=W4,E12=W8),M71+0.03,0) -> 0 | N72: =N71 -> 0.2410134234 | O72: =IF(AND(E5=W5,E12=W8),O71+0.03,0) -> 0 | P72: =P71 -> 0.2410134234
D73: =D67 -> 0.2462284483 | E73: =Y18-E65 -> 0.4438695193 | F73: =F67 -> 0.9204382184 | G73: =IF(E5=W3,0,IF(E5=W4,Y18-U20,IF(E5=W5,Y18-U20))) -> 0.4438695193 | H73: =H67 -> 0.5795617816 | I73: =IF(OR(E5=W2,E5=W3),0,IF(E5=W4,0,IF(E5=W5,Y18-U19))) -> 0.4438695193 | K73: =IF(AND(E5=W3,E12=W8),K74-0.03,0) -> 0 | L73: =L72 -> 0.2410134234 | M73: =IF(AND(E5>1.5,E12=W8),M74-0.03,0) -> 0 | N73: =N72 -> 0.2410134234 | O73: =IF(AND(E5=W5,E12=W8),(Y10*(2/3))-0.015-IF(E10=S12,0.02,IF(E10=S13,0.03)),0) -> 0 | P73: =P72 -> 0.2410134234
D74: =D66 -> 0.1666666667 | E74: =Y18-E66 -> 0.4311504101 | F74: =IF(E5=W3,0,IF(E5=W4,F66,IF(E5=W5,F66))) -> 0.8257902299 | G74: =IF(E5=W3,0,IF(E5=W4,Y18-T20,IF(E5=W5,Y18-T20))) -> 0.4311504101 | H74: =IF(OR(E5=W2,E5=W3),0,IF(E5=W4,0,IF(E5=W5,H66))) -> 0.5 | I74: =IF(OR(E5=W2,E5=W3),0,IF(E5=W4,0,IF(E5=W5,Y18-T19))) -> 0.4311504101 | K74: =IF(AND(E5=W3,E12=W8),Y10,0) -> 0 | L74: =L73 -> 0.2410134234 | M74: =IF(AND(E5>1.5,E12=W8),Y10,0) -> 0 | N74: =N73 -> 0.2410134234 | O74: =IF(AND(E5=W5,E12=W8),O73+0.03,0) -> 0 | P74: =P73 -> 0.2410134234
D75: =D65 -> 0.09464798851 | E75: =E73 -> 0.4438695193 | F75: =F65 -> 0.7386853448 | G75: =IF(E5=W3,0,IF(E5=W4,G73,IF(E5=W5,G73))) -> 0.4438695193 | H75: =H65 -> 0.4204382184 | I75: =I73 -> 0.4438695193 | K75: 0 | L75: =E50 -> 0.7230402703 | M75: =IF(AND(E5=W4,E12=W8),(Y10/2)-0.015,0) -> 0 | N75: =G50 -> 0.7230402703 | O75: =IF(E4=W16,0,IF(AND(E5=W5,E12=W8),(Y10/3)-0.015+IF(E9=S12,0.02,IF(E9=S13,0.03)),0)) -> 0 | P75: =I50 -> 0.7230402703
D76: =D64 -> 0.007543103448 | E76: =E72 -> 0.4744837434 | F76: =IF(E5=W3,0,IF(E5=W4,F64,IF(E5=W5,F64))) -> 0.6742097701 | G76: =IF(E5=W3,0,IF(E5=W4,G72,IF(E5=W5,G72))) -> 0.4744837434 | H76: =IF(OR(E5=W2,E5=W3),0,IF(E5=W4,0,IF(E5=W5,H64))) -> 0.3408764368 | I76: =IF(OR(E5=W2,E5=W3),0,IF(E5=W4,0,IF(E5=W5,I72))) -> 0.4744837434 | K76: =IF(E4=W16,0,IF(E12=W8,0.03,0)) -> 0 | L76: =L75 -> 0.7230402703 | M76: =IF(AND(E5=W4,E12=W8),M71+0.03,0) -> 0 | N76: =N75 -> 0.7230402703 | O76: =IF(E4=W16,0,IF(AND(E5=W5,E12=W8),O71+0.03,0)) -> 0 | P76: =P75 -> 0.7230402703
D77: =D64+V16 -> 0.0601980486 | E77: =E71 -> 0.35020548 | F77: =IF(E5=W3,0,IF(E5=W4,F76+V16,IF(E5=W5,(F64+V16)))) -> 0.7268647153 | G77: =G71 -> 0.35020548 | H77: =IF(OR(E5=W2,E5=W3),0,IF(E5=W4,0,IF(E5=W5,(H64+V16)))) -> 0.3935313819 | I77: =I71 -> 0.35020548 | K77: =IF(AND(E5=W3,E12=W8),K74-0.03,0) -> 0 | L77: =L76 -> 0.7230402703 | M77: =IF(E4=W16,0,IF(AND(E5>1.5,E12=W8),M74-0.03,0)) -> 0 | N77: =N76 -> 0.7230402703 | O77: =IF(E4=W16,0,IF(AND(E5=W5,E12=W8),(Y10*(2/3))-0.015-IF(E10=S12,0.02,IF(E10=S13,0.03)),0)) -> 0 | P77: =P76 -> 0.7230402703
D78: =D64+U16 -> 0.07774969699 | E78: =E70 -> 0.2410134234 | F78: =IF(E5=W3,0,IF(E5=W4,F76+U16,IF(E5=W5,(F64+U16)))) -> 0.7444163637 | G78: =IF(E5=W3,0,IF(E5=W4,G70,IF(E5=W5,G70))) -> 0.2410134234 | H78: =IF(OR(E5=W2,E5=W3),0,IF(E5=W4,0,IF(E5=W5,H64+U16))) -> 0.4110830303 | I78: =IF(OR(E5=W2,E5=W3),0,IF(E5=W4,0,IF(E5=W5,E70))) -> 0.2410134234 | K78: =IF(AND(E5=W3,E12=W8),Y10,0) -> 0 | L78: =L77 -> 0.7230402703 | M78: =IF(E4=W16,0,IF(AND(E5>1.5,E12=W8),Y10,0)) -> 0 | N78: =N77 -> 0.7230402703 | O78: =IF(E4=W16,0,IF(AND(E5=W5,E12=W8),O73+0.03,0)) -> 0 | P78: =P77 -> 0.7230402703
D79: =D77 -> 0.0601980486 | E79: =E69 -> 0.11673516 | F79: =F77 -> 0.7268647153 | G79: =G69 -> 0.11673516 | H79: =H77 -> 0.3935313819 | I79: =I69 -> 0.11673516
D80: =D64 -> 0.007543103448 | E80: =Y23 -> 0.007543103448 | F80: =IF(E5=W3,0,IF(E5=W4,F76,IF(E5=W5,F76))) -> 0.6742097701 | G80: =IF(E5=W3,0,IF(E5=W4,Y23,IF(E5=W5,Y23))) -> 0.007543103448 | H80: =IF(OR(E5=W2,E5=W3),0,IF(E5=W4,0,IF(E5=W5,H76))) -> 0.3408764368 | I80: =IF(OR(E5=W2,E5=W3),0,IF(E5=W4,0,IF(E5=W5,Y23))) -> 0.007543103448

Sheet Georgian Hipped
T1: Main material | U1: =IF(E16=T3,5,IF(E16=T4,6,IF(E16=T5,6))) -> 5 | V1: Material cost | W1: 11.35 | X1: Sails | Y1: Warning 1 | Z1: Warning: Sail too narrow, decrease no. of sails, add X-Axis fittings or increase gap size | AA1: Triangles
T2: Tri material | U2: =IF(E17=T3,5,IF(E17=T4,6,IF(E17=T5,6))) -> 5 | V2: PE | W2: 2.5 | X2: 1 - Front | Y2: Warning 2 | Z2: Warning: Sail too narrow, increase no. of sails, add Y-Axis fittings or increase gap size | AA2: No
T3: Solid ISX | U3: 5 | V3: PN | W3: 3.5 | X3: 1 - Full | Y3: Warning 3 | Z3: Warning: Sail too wide for standard fabric, please add more sails or increase gap size | AA3: Yes
D4: Select coverage | E4: Cover both sides | T4: Duplex ISX | U4: 6 | V4: IP | W4: 2 | X4: 2 | Y4: Warning 4 | Z4: Warning: Conservatory too long for standard fabric, contact office for more detailed price | AA4: Coverage
D5: Select no. of sails per side | E5: 2 | T5: Solid ISXFR | U5: 6 | X5: 3 | Y5: Warning 5 | Z5: Warning: Ridge is too short for a 3 sails per side solution, reduce no. of sails | AA5: Cover one side
D6: Front triangle sail | E6: Yes | T6: Shape | U6: =IF(X10=T7,U7,IF(X10=T8,U8,IF(X10=T9,U9))) -> 1 | V6: No. of vents | W6: Y fit points | X6: X fit points | Y6: Warning 6 | Z6: Warning: Some triangular sails are too thin for this conservatory | AA6: Cover both sides
D7: Middle triangle sails | E7: Yes | T7: Triangle | U7: 0.6 | V7: 0 | W7: None | X7: None
D8: Back triangle sails | E8: No | T8: Diamond | U8: 0.6 | V8: 1 | W8: Standard | X8: Standard | Y8: Warnings front | Z8: Warnings mid | AA8: Warnings back | AB8: Warnings front tri | AC8: Warnings back tri
T9: Other | U9: 1 | V9: 2 | W9: No. of corners | X9: 4 | Y9: =W30 -> 2.079663434 | Z9: =IF(OR(E5=X2,E5=X3),Y9,X30) -> 2.079663434 | AA9: =Y30 -> 2.079663434 | AB9: =IF(E6=AA2,0.001,1)*Z30 -> 1.9 | AC9: =IF(OR(E6=AA3,E7=AA3),1,0.0001)*AA30 -> 2.079663434
D10: Reduce front gap size | E10: Standard | T10: Overlap front | U10: =IF(E10=T11,U11,IF(E10=T12,U12,IF(E10=T13,U13,))) -> 0 | V10: 3 | W10: Shape | X10: Other | Y10: =W31 -> 1.9 | Z10: =IF(OR(E5=X2,E5=X3),Y10,X31) -> 1.2 | AA10: =IF(E5<>X5,Y10,Y31) -> 1.9 | AB10: =Z31+IF(E5=X3,1000) -> 1.351 | AC10: =AA31 -> 1.476764404
D11: Reduce middle gap size | E11: Standard | T11: Point to point | U11: 0 | V11: 4 | W11: Curve allowance | X11: 0.4 | Y11: Tri | Z11: Mid | AA11: Quarters
D12: Reduce back gap size | E12: Standard | T12: 0.5 | U12: =(W15*1.5)/2+(0.035/(B27/1000)) -> 0.07951612903 | V12: Front | W12: Mid | X12: Quarters | Y12: Vertical Back | Z12: =((AA25+(0.07/(B27/1000)))*0.13)+U30 -> 0.06161290323 | AA12: =Z12*0.75 -> 0.04620967742
D13: Additional X-Axis fitting points | E13: None | T13: 1 | U13: =W15*1.4+(0.035/(B27/1000)) -> 0.1386451613 | V13: Horizontal | W13: =((W24+(0.07/(B27/1000)))*0.13)+U30 -> 0.09850201499 | X13: =(W13)*0.75 -> 0.07387651124 | Y13: Vertical Middle | Z13: =((Z25+(0.07/(B27/1000)))*0.13)+U30 -> 0.07321915243 | AA13: =Z13*0.75 -> 0.05491436432
D14: Additional Y-Axis fitting points | E14: None | T14: Overlap middle | U14: =IF(E11=T15,U15,IF(E11=T16,U16,IF(E11=T17,U17,)))*IF(E5=X3,0,1) -> 0 | V14: Hotizontal overlaped | W14: =((X24+(0.07/(B27/1000)))*0.13)+U30 -> 0.09850201499 | X14: =(W14)*0.75 -> 0.07387651124 | Y14: Vertical Front | Z14: =((Y25+(0.07/(B27/1000)))*0.13)+U30 -> 0.06794516129 | AA14: =Z14*0.75 -> 0.05095887097
T15: Standard | U15: 0 | V15: Vertical | W15: =IF(E5=X2,((W25+(0.07/(B27/1000)))*0.13)+U30,((W25+(0.07/(B27/1000)))*0.13)+U30) -> 0.09096774194 | X15: =W15*0.75 -> 0.06822580645 | Y15: Back | Z15: Mid | AA15: Quarters
D16: Select material for main sails | E16: Solid ISX | T16: 0.5 | U16: =(W18*2.5)/2+(0.035/(B27/1000)) -> 0.1344178413 | V16: Vertical overlaped | W16: =((X25+(0.07/(B27/1000)))*0.13)+U30 -> 0.09096774194 | X16: =W16*0.75 -> 0.06822580645 | Y16: Horizontal | Z16: =((Z27+(0.07/(B27/1000)))*0.13)+U30 -> 0.09850201499 | AA16: =Z16*0.75 -> 0.07387651124
D17: Select material for triangles | E17: Solid ISX | H17: Plan view - looking from above | T17: 1 | U17: =W18*2.5+(0.035/(B27/1000)) -> 0.25754536 | V17: Mid | W17: Mid | X17: Quarters | Y17: Vertical | Z17: =((Z28+(0.07/(B27/1000)))*0.13)+U30 -> 0.0364516129 | AA17: =Z17*0.75 -> 0.02733870968
D18: Select no. of window vents | E18: 0 | T18: Overlap back | U18: =IF(E5<>X5,0,IF(E12=T15,U19,IF(E12=T16,U20,IF(E12=T17,U21,)))) -> 0 | V18: Horizontal | W18: =((W27+(0.07/(B27/1000)))*0.13)+U30 -> 0.09850201499 | X18: =(W18)*0.75 -> 0.07387651124
T19: Standard | U19: 0 | V19: Vertical | W19: =((Y28+(0.07/(B27/1000)))*0.13)+U30 -> 0.06161290323 | X19: =W19*0.75 -> 0.04620967742
D20: Max length of sail | E20: =(MAX(W30:Y30))*1000 -> 2079.663434 | T20: 0.5 | U20: =IF(E5=X4,W18+(0.035/(B27/1000)),IF(E5=X5,W18/2+(0.035/(B27/1000)),)) -> 0.1097923376 | V20: Vertical overlaped | W20: =((AVERAGE(W28:Y28)+(0.07/(B27/1000)))*0.13)+U30 -> 0.06161290323 | X20: =W20*0.75 -> 0.04620967742
D21: Max width of sail | E21: =(MAX(W31:Y31))*1000 -> 1900 | T21: 1 | U21: =IF(E5=X4,W18*2+(0.035/(B27/1000)),IF(E5=X5,W18+(0.035/(B27/1000)),)) -> 0.2082943526 | W21: front | X21: mid | Y21: back | Z21: tri front | AA21: tri mid/back
U22: Dims in m | V22: Sail perimeter | W22: =((X24+0.07)*2)+((X25+0.07)*2) -> 2.757202216 | X22: =((W27+0.07)*2)+X28+0.07+W28+0.07 -> 2.305589312 | Y22: =((Z27+0.07)*2)+((Z28+0.07)*2) -> 1.918492538 | Z22: =((Y24+0.07)*2)+Y25+0.07 -> 1.803870968 | AA22: =((Z24+0.07)*2)+Z25+0.07 -> 1.960352023
B23: All dims in mm | D23: Please note that sails larger than 2100mm in both directions, will require a colour matched seam. | H23: Total budget cost incl. Installation+VAT+Delivery | K23: =12.15+(E18*50)+W33+X33+Y33+Z33+IF(E7=AA3,AA33,)+IF(AND(E5=X5,E8=AA3),AA33,) -> 2296.185526 | T23: h1 | U23: =B24/B27 -> 0.7096774194 | W23: front + overlaped | Y23: tri front | Z23: tri mid | AA23: tri back
A24: H1 | B24: 2200 | K24: =' '!P4 -> 2640.613355 | T24: h2 | U24: =B25/B27 -> 1.016129032 | V24: Sail length | W24: =U29-(0.07/(B27/1000)) -> 0.6482785272 | X24: =W24+U10 -> 0.6482785272 | Y24: =N49-(0.07/(B27/1000)) -> 0.5903225806 | Z24: =U29-(0.07/(B27/1000)) -> 0.6482785272 | AA24: =U29-(0.07/(B27/1000)) -> 0.6482785272
A25: H2 | B25: 3150 | G25: =' '!A8 -> 0 | T25: y1 | U25: =B27/B27 -> 1 | V25: Sail width | W25: =IF(E5=X3,N46-(0.07/(B27/1000)),N49-(0.07/(B27/1000))) -> 0.5903225806 | X25: =W25+U14 -> 0.5903225806 | Y25: =IF(Y24*0.7<U29,Y24*0.7,(U29*2)-(U30*2)) -> 0.4132258065 | Z25: =IF(Z24*0.7<U25-U27,Z24*0.7,((U25-U27)*2)-(U30*2)) -> 0.453794969 | AA25: =IF(AA24*0.7<U27,AA24*0.7,U27-(U30*2)) -> 0.364516129
A26: X1 | B26: 3700 | D26: =IF(((W13*(B26/1000))*(IF(E13=W8,0.5,2)))>(X11*Y10),Z1,IF(((W18*(B26/1000))*(IF(E13=W8,0.5,2)))>(Z10*X11),Z1,IF(((Z16*(B26/1000))*(IF(E13=W8,0.5,2)))>(AA10*X11),Z1,IF(AND(Y9>4,Y10>4),Z3,IF(AND((U27*(B26/1000))<1.5,E5=X5),Z5,IF(AND(OR(E6=AA3,E7=AA3,E8=AA3),OR(Y25*2<Y24,Z25*2<Z24,AA25*2<AA24)),Z6,IF(Y10>6,Z4,""))))))) -> Warning: Sail too narrow, decrease no. of sails, add X-Axis fittings or increase gap size | T26: x1 | U26: =B26/B27 -> 1.193548387 | W26: mid + overlaped | Z26: back
A27: Y1 | B27: 3100 | T27: r1 | U27: =B28/B27 -> 0.3870967742 | V27: Sail length | W27: =W24 -> 0.6482785272 | X27: <- | Y27: -> | Z27: =W27 -> 0.6482785272
A28: R1 | B28: 1200 | G28: =' '!A11 -> 0 | T28: Roof area (m^2) | U28: =U29*U25 -> 0.6708591724 | V28: Sail width | W28: =((U27/IF(E5=X4,1,2))-(0.07/(B27/1000))) -> 0.364516129 | X28: =W28+U14 -> 0.364516129 | Y28: =W28+U18 -> 0.364516129 | Z28: =((U27)/2)-(0.07/(B27/1000))+U18 -> 0.1709677419
T29: Glazing bar length | U29: =SQRT((U24-U23)^2+(U26/2)^2) -> 0.6708591724 | V29: Costs | W29: front | X29: mid | Y29: right | Z29: tri front | AA29: tri mid/back
T30: 50mm links | U30: =(0.035/(B27/1000)) -> 0.01129032258 | V30: length | W30: =((I72-I76)*(B27/1000))+0.07 -> 2.079663434 | X30: =(W27*(B27/1000))+0.07 -> 2.079663434 | Y30: =X30 -> 2.079663434 | Z30: =N52*(B27/1000) -> 1.9 | AA30: =Y30 -> 2.079663434
V31: width | W31: =((H64-H60)*(B27/1000))+0.07 -> 1.9 | X31: =((J64-J60)*(B27/1000))+0.07 -> 1.2 | Y31: =IF(E5<>X5,MIN(W31,X31),((L64-L60)*(B27/1000))+0.07) -> 1.2 | Z31: =((E44-E48)*(B27/1000))+0.07 -> 1.351 | AA31: =(Z25*(B27/1000))+0.07 -> 1.476764404
V32: perimeter | W32: =W30+W31+((W24*(B27/1000))+0.07)+((W25*(B27/1000))+0.07) -> 7.959326869 | X32: =(X30*2)+X31+(((J68-J72)*(B27/1000))+0.07) -> 6.559326869 | Y32: =(Y30*2)+(Y31*2) -> 6.559326869 | Z32: =(Z30*2)+Z31 -> 5.151 | AA32: =(AA30*2)+AA31 -> 5.636091273
W33: =IF(E4=AA6,2,1)*(((U1*((U6*W30*W31*W1)+(W32*W2)+(X9*W3)+W4))+7.2*X9)+IF(E13=X8,24.7*2*IF(E5=X2,0.5,1),)+IF(E14=X8,24.7*2,)) -> 865.0625913 | X33: =IF(OR(E5=X2,E5=X3),0,IF(E4=AA6,2,1)*(((U1*((U6*X30*X31*W1)+(X32*W2)+(X9*W3)+W4))+7.2*X9)+IF(E13=X8,24.7*2,)+IF(E14=X8,24.7*2,))) -> 664.8333315 | Y33: =IF(E5<>X5,0,IF(E4=AA6,2,1)*(((U1*((U6*Y30*Y31*W1)+(Y32*W2)+(X9*W3)+W4))+7.2*X9)+IF(E13=X8,24.7*2,)+IF(E14=X8,24.7*2,))) -> 0 | Z33: =IF(E5=X3,0,IF(E6=AA3,(U2*((U7*Z30*Z31*W1)+(Z32*W2)+(3*W3)+W4))+7.2*3,)) -> 235.890445 | AA33: =IF(E5=X3,0,IF(OR(E7=AA3,E8=AA3),(U2*((U7*AA30*AA31*W1)+(AA32*W2)+(3*W3)+W4))+7.2*3,))*IF(E4=AA6,2,1) -> 518.2491585
D42: x | E42: y | F42: x | G42: y | H42: x | I42: y | J42: x | K42: y | L42: x | M42: y | N42: Roof plan
D43: f tri 3 | F43: m tri 1 | H43: m tri 2 | J43: b tri 4 | L43: b tri 5 | N43: x-axis | O43: y-axis
D44: =IF(E5=X3,0,IF(E6=AA3,U30,)) -> 0.01129032258 | E44: =IF(E5=X3,0,IF(E6=AA3,O49+(Y25/2),)) -> 0.8774720756 | F44: =IF(AND(E5<>X3,E7=AA3),F46-(Z25/2),) -> 0.3860057413 | G44: =IF(AND(E5<>X3,E7=AA3),U30,) -> 0.01129032258 | H44: =IF(AND(E5<>X3,E7=AA3,E4<>AA5),F46-(Z25/2),) -> 0.3860057413 | I44: =IF(AND(E5<>X3,E7=AA3,E4<>AA5),O46-U30,) -> 1.330428022 | J44: =IF(AND(E5=X5,E8=AA3),J46-(AA25/2),) -> 0 | K44: =IF(AND(E5=X5,E8=AA3),U30,) -> 0 | L44: =IF(AND(E5=X5,E8=AA3,E4<>AA5),J46-(AA25/2),) -> 0 | M44: =IF(AND(E5=X5,E8=AA3,E4<>AA5),O46-U30,) -> 0 | N44: 0 | O44: 0
D45: =IF(E5=X3,0,IF(E6=AA3,AA14,)) -> 0.05095887097 | E45: =IF(E5=X3,0,IF(E6=AA3,E44-(Y25/4),)) -> 0.774165624 | F45: =IF(AND(E5<>X3,E7=AA3),F46-(Z25/4),) -> 0.4994544835 | G45: =IF(AND(E5<>X3,E7=AA3),AA13,) -> 0.05491436432 | H45: =IF(AND(E5<>X3,E7=AA3,E4<>AA5),F46-(Z25/4),) -> 0.4994544835 | I45: =IF(AND(E5<>X3,E7=AA3,E4<>AA5),O46-AA13,) -> 1.28680398 | J45: =IF(AND(E5=X5,E8=AA3),J46-(AA25/4),) -> 0 | K45: =IF(AND(E5=X5,E8=AA3),AA12,) -> 0 | L45: =IF(AND(E5=X5,E8=AA3,E4<>AA5),J46-(AA25/4),) -> 0 | M45: =IF(AND(E5=X5,E8=AA3,E4<>AA5),O46-AA12,) -> 0 | N45: =U25 -> 1 | O45: 0
D46: =IF(E5=X3,0,IF(E6=AA3,Z14,)) -> 0.06794516129 | E46: =IF(E5=X3,0,IF(E6=AA3,E45-(Y25/4),)) -> 0.6708591724 | F46: =IF(AND(E5<>X3,E7=AA3),F52,) -> 0.6129032258 | G46: =IF(AND(E5<>X3,E7=AA3),Z13,) -> 0.07321915243 | H46: =IF(AND(E5<>X3,E7=AA3,E4<>AA5),F52,) -> 0.6129032258 | I46: =IF(AND(E5<>X3,E7=AA3,E4<>AA5),O47-Z13,) -> 1.268499192 | J46: =IF(AND(E5=X5,E8=AA3),J52,) -> 0 | K46: =IF(AND(E5=X5,E8=AA3),Z12,) -> 0 | L46: =IF(AND(E5=X5,E8=AA3,E4<>AA5),J52,) -> 0 | M46: =IF(AND(E5=X5,E8=AA3,E4<>AA5),O47-Z12,) -> 0 | N46: =U25 -> 1 | O46: =U29*2 -> 1.341718345
D47: =IF(E6=AA3,D45,) -> 0.05095887097 | E47: =IF(E5=X3,0,IF(E6=AA3,E46-(Y25/4),)) -> 0.5675527207 | F47: =IF(AND(E5<>X3,E7=AA3),F46+(Z25/4),) -> 0.7263519681 | G47: =IF(AND(E5<>X3,E7=AA3),AA13,) -> 0.05491436432 | H47: =IF(AND(E5<>X3,E7=AA3,E4<>AA5),F46+(Z25/4),) -> 0.7263519681 | I47: =IF(AND(E5<>X3,E7=AA3,E4<>AA5),O47-AA13,) -> 1.28680398 | J47: =IF(AND(E5=X5,E8=AA3),J46+(AA25/4),) -> 0 | K47: =IF(AND(E5=X5,E8=AA3),AA12,) -> 0 | L47: =IF(AND(E5=X5,E8=AA3,E4<>AA5),J46+(AA25/4),) -> 0 | M47: =IF(AND(E5=X5,E8=AA3,E4<>AA5),O47-AA12,) -> 0 | N47: 0 | O47: =U29*2 -> 1.341718345
D48: =D44 -> 0.01129032258 | E48: =IF(E5=X3,0,IF(E6=AA3,O49-(Y25/2),)) -> 0.4642462691 | F48: =IF(AND(E5<>X3,E7=AA3),F46+(Z25/2),) -> 0.8398007103 | G48: =G44 -> 0.01129032258 | H48: =IF(AND(E5<>X3,E7=AA3,E4<>AA5),F46+(Z25/2),) -> 0.8398007103 | I48: =IF(AND(E5<>X3,E7=AA3,E4<>AA5),O46-G44,) -> 1.330428022 | J48: =IF(AND(E5=X5,E8=AA3),J46+(AA25/2),) -> 0 | K48: =K44 -> 0 | L48: =IF(AND(E5=X5,E8=AA3,E4<>AA5),J46+(AA25/2),) -> 0 | M48: =IF(AND(E5=X5,E8=AA3,E4<>AA5),O46-G44,) -> 0 | N48: 0 | O48: 0
D49: =IF(E5=X3,0,IF(E6=AA3,D50-(Y24/4),)) -> 0.1588709677 | E49: =IF(E5=X3,0,IF(E6=AA3,E52-((E52-E48)/2),)) -> 0.5675527207 | F49: =IF(AND(E5<>X3,E7=AA3),F48-((F48-F52)/2),) -> 0.7263519681 | G49: =IF(AND(E5<>X3,E7=AA3),G50-(Z24/4),) -> 0.1733599544 | H49: =IF(AND(E7=AA3,E4<>AA5),F48-((F48-F52)/2),) -> 0.7263519681 | I49: =IF(AND(E5<>X3,E7=AA3,E4<>AA5),I50+(Z24/4),) -> 1.16835839 | J49: =IF(AND(E5=X5,E8=AA3),J48-((J48-J52)/2),) -> 0 | K49: =IF(AND(E5=X5,E8=AA3),K50-(Z24/4),) -> 0 | L49: =IF(AND(E8=AA3,E4<>AA5),J48-((J48-J52)/2),) -> 0 | M49: =IF(AND(E5=X5,E8=AA3,E4<>AA5),M50+(Z24/4),) -> 0 | N49: =U25-U27 -> 0.6129032258 | O49: =U29 -> 0.6708591724
D50: =IF(E5=X3,0,IF(E6=AA3,D51-(Y24/4),)) -> 0.3064516129 | E50: =IF(E5=X3,0,IF(E6=AA3,E48+((E52-E48)*0.75),)) -> 0.6192059466 | F50: =IF(AND(E5<>X3,E7=AA3),F48-((F48-F52)*0.75),) -> 0.6696275969 | G50: =IF(AND(E5<>X3,E7=AA3),U29-(U29/2),) -> 0.3354295862 | H50: =IF(AND(E7=AA3,E4<>AA5),F48-((F48-F52)*0.75),) -> 0.6696275969 | I50: =IF(AND(E5<>X3,E7=AA3,E4<>AA5),O46-(U29/2),) -> 1.006288759 | J50: =IF(AND(E5=X5,E8=AA3),J48-((J48-J52)*0.75),) -> 0 | K50: =IF(AND(E5=X5,E8=AA3),U29-(U29/2),) -> 0 | L50: =IF(AND(E8=AA3,E4<>AA5),J48-((J48-J52)*0.75),) -> 0 | M50: =IF(AND(E5=X5,E8=AA3,E4<>AA5),O46-(U29/2),) -> 0 | N50: =N46 -> 1 | O50: =O49 -> 0.6708591724
D51: =IF(E5=X3,0,IF(E6=AA3,D52-(Y24/4),)) -> 0.4540322581 | E51: =IF(E5=X3,0,IF(E6=AA3,E52-((E52-E48)*0.1),)) -> 0.650197882 | F51: =IF(AND(E5<>X3,E7=AA3),F52+((F48-F52)*0.1),) -> 0.6355929743 | G51: =IF(AND(E5<>X3,E7=AA3),G50+(Z24/4),) -> 0.497499218 | H51: =IF(AND(E7=AA3,E4<>AA5),F52+((F48-F52)*0.1),) -> 0.6355929743 | I51: =IF(AND(E5<>X3,E7=AA3,E4<>AA5),I50-(Z24/4),) -> 0.8442191267 | J51: =IF(AND(E5=X5,E8=AA3),J52+((J48-J52)*0.1),) -> 0 | K51: =IF(AND(E5=X5,E8=AA3),K50+(Z24/4),) -> 0 | L51: =IF(AND(E8=AA3,E4<>AA5),J52+((J48-J52)*0.1),) -> 0 | M51: =IF(AND(E5=X5,E8=AA3,E4<>AA5),M50-(Z24/4),) -> 0 | N51: 0 | O51: 0
D52: =IF(E5=X3,0,IF(E6=AA3,N49-U30,)) -> 0.6016129032 | E52: =IF(E5=X3,0,IF(E6=AA3,O49,)) -> 0.6708591724 | F52: =IF(AND(E5<>X3,E7=AA3),N49,) -> 0.6129032258 | G52: =IF(AND(E5<>X3,E7=AA3),O49-U30,) -> 0.6595688498 | H52: =IF(AND(E5<>X3,E7=AA3,E4<>AA5),N49,) -> 0.6129032258 | I52: =IF(AND(E5<>X3,E7=AA3,E4<>AA5),O49+U30,) -> 0.6821494949 | J52: =IF(AND(E5=X5,E8=AA3),N49+(U27/2),) -> 0 | K52: =IF(AND(E5=X5,E8=AA3),O49-U30,) -> 0 | L52: =IF(AND(E5=X5,E8=AA3,E4<>AA5),J52,) -> 0 | M52: =IF(AND(E5=X5,E8=AA3,E4<>AA5),O49+U30,) -> 0 | N52: =U25-U27 -> 0.6129032258 | O52: =O50 -> 0.6708591724
D53: =D51 -> 0.4540322581 | E53: =E52+((E52-E48)*0.1) -> 0.6915204627 | F53: =IF(AND(E5<>X3,E7=AA3),F52-((F48-F52)*0.1),) -> 0.5902134774 | G53: =G51 -> 0.497499218 | H53: =IF(AND(E7=AA3,E4<>AA5),F52-((F48-F52)*0.1),) -> 0.5902134774 | I53: =I51 -> 0.8442191267 | J53: =IF(AND(E5=X5,E8=AA3),J52-((J48-J52)*0.1),) -> 0 | K53: =K51 -> 0 | L53: =IF(AND(E8=AA3,E4<>AA5),J52-((J48-J52)*0.1),) -> 0 | M53: =M51 -> 0 | N53: 0 | O53: =O47 -> 1.341718345
D54: =D50 -> 0.3064516129 | E54: =E56-((E52-E48)*0.75) -> 0.7225123982 | F54: =IF(AND(E5<>X3,E7=AA3),F56+((F52-F56)*0.75),) -> 0.5561788547 | G54: =G50 -> 0.3354295862 | H54: =IF(AND(E7=AA3,E4<>AA5),F56+((F52-F56)*0.75),) -> 0.5561788547 | I54: =I50 -> 1.006288759 | J54: =IF(AND(E5=X5,E8=AA3),J56+((J52-J56)*0.75),) -> 0 | K54: =K50 -> 0 | L54: =IF(AND(E8=AA3,E4<>AA5),J56+((J52-J56)*0.75),) -> 0 | M54: =M50 -> 0
D55: =D49 -> 0.1588709677 | E55: =E56-((E52-E48)/2) -> 0.774165624 | F55: =F56+((F52-F56)/2) -> 0.4994544835 | G55: =G49 -> 0.1733599544 | H55: =IF(AND(E7=AA3,E4<>AA5),F56+((F52-F56)/2),) -> 0.4994544835 | I55: =I49 -> 1.16835839 | J55: =J56+((J52-J56)/2) -> 0 | K55: =K49 -> 0 | L55: =IF(AND(E8=AA3,E4<>AA5),J56+((J52-J56)/2),) -> 0 | M55: =M49 -> 0
D56: =D44 -> 0.01129032258 | E56: =E44 -> 0.8774720756 | F56: =F44 -> 0.3860057413 | G56: =G44 -> 0.01129032258 | H56: =IF(AND(E7=AA3,E4<>AA5),F44,) -> 0.3860057413 | I56: =I48 -> 1.330428022 | J56: =J44 -> 0 | K56: =K44 -> 0 | L56: =IF(AND(E8=AA3,E4<>AA5),J44,) -> 0 | M56: =M48 -> 0
A57: X-Axis fitting points
A58: Sail 1 | C58: Sail 2 | E58: Sail 3 | H58: x | I58: y | J58: x | K58: y | L58: x | M58: y | N58: x | O58: y | P58: x | Q58: y | R58: x | S58: y
A59: =H62 -> 0.3064516129 | B59: 0 | C59: =J62 -> 0.8064516129 | D59: 0 | E59: =L62 -> 0 | F59: 0 | H59: down front | J59: down mid | L59: down right | N59: up front | P59: up mid | R59: up right
A60: =A59 -> 0.3064516129 | B60: =IF(E14=W8,0.03,0) -> 0 | C60: =C59 -> 0.8064516129 | D60: =IF(E5<X4,0,IF(E14=W8,0.03,)) -> 0 | E60: =E59 -> 0 | F60: =IF(E5<>X5,0,IF(E14=W8,0.03,)) -> 0 | H60: =U30 -> 0.01129032258 | I60: =U30 -> 0.01129032258 | J60: =IF(OR(E5=X4,E5=X5),N52+U30-U14,) -> 0.6241935484 | K60: =IF(OR(E5=X4,E5=X5),U30,) -> 0.01129032258 | L60: =IF(E5=X5,L64-Z28,) -> 0 | M60: =M64 -> 0 | N60: =IF(E4=AA5,0,U30) -> 0.01129032258 | O60: =IF(E4=AA5,0,O46-X24-U30) -> 0.6821494949 | P60: =IF(AND(E4=AA6,OR(E5=X4,E5=X5)),J72,) -> 0.6241935484 | Q60: =IF(AND(E4=AA6,OR(E5=X4,E5=X5)),O64,) -> 0.6821494949 | R60: =IF(AND(E4=AA6,E5=X5),L64-Z28,) -> 0 | S60: =IF(AND(E4=AA6,E5=X5),U29+U30,) -> 0
A61: =H70 -> 0.3064516129 | B61: =IF(E14=W8,U29,0) -> 0 | C61: =J70 -> 0.8064516129 | D61: =IF(E5<X4,0,IF(E14=W8,U29,)) -> 0 | E61: =L70 -> 0 | F61: =IF(E5<>X5,0,IF(E14=W8,U29-0.03,)) -> 0 | H61: =IF(E5=X2,H60+(X25/4),H60+(X25/4)) -> 0.1588709677 | I61: =I62*0.75 -> 0.06822580645 | J61: =IF(OR(E5=X4,E5=X5),J60+(MAX(X28:Y28)/4),) -> 0.7153225806 | K61: =IF(OR(E5=X4,E5=X5),X20,) -> 0.04620967742 | L61: =IF(E5=X5,L62-(Z28/4),) -> 0 | M61: =IF(E5=X5,AA17,) -> 0 | N61: =IF(E4=AA5,0,H71) -> 0.1588709677 | O61: =IF(E4=AA5,0,O60+X15+(U10/6)) -> 0.7503753014 | P61: =IF(AND(E4=AA6,OR(E5=X4,E5=X5)),J71,) -> 0.7153225806 | Q61: =IF(AND(E4=AA6,OR(E5=X4,E5=X5)),O49+X19,) -> 0.7170688498 | R61: =IF(AND(E4=AA6,E5=X5),L62-(Z28/4),) -> 0 | S61: =IF(AND(E4=AA6,E5=X5),AA17+U29,) -> 0
A62: =A61 -> 0.3064516129 | B62: =IF(E14=W8,B61-0.015,0) -> 0 | C62: =C61 -> 0.8064516129 | D62: =IF(E5<X4,0,IF(E14=W8,B61-0.03,)) -> 0 | E62: =E61 -> 0 | F62: =IF(E5<>X5,0,IF(E14=W8,U29,)) -> 0 | H62: =IF(E5=X2,H60+(X25/2),H60+(X25/2)) -> 0.3064516129 | I62: =W16 -> 0.09096774194 | J62: =IF(E5=X4,J64-(J64-J60)/2,IF(E5=X5,J64-(J64-J60)/2,)) -> 0.8064516129 | K62: =IF(OR(E5=X4,E5=X5),W20,) -> 0.06161290323 | L62: =IF(E5=X5,L63-(Z28/4),) -> 0 | M62: =IF(E5=X5,Z17,) -> 0 | N62: =IF(E4=AA5,0,H70) -> 0.3064516129 | O62: =IF(E4=AA5,0,O60+W15+(U10/4)) -> 0.7731172369 | P62: =IF(AND(E4=AA6,OR(E5=X4,E5=X5)),J70,) -> 0.8064516129 | Q62: =IF(AND(E4=AA6,OR(E5=X4,E5=X5)),O50+W19,) -> 0.7324720756 | R62: =IF(AND(E4=AA6,E5=X5),L63-(Z28/4),) -> 0 | S62: =IF(AND(E4=AA6,E5=X5),Z17+U29,) -> 0
A63: =A62 -> 0.3064516129 | B63: =IF(E4=AA5,0,IF(E14=W8,U29,0)) -> 0 | C63: =C62 -> 0.8064516129 | D63: =IF(E4=AA5,0,IF(E5<X4,0,IF(E14=W8,U29,))) -> 0 | E63: =E62 -> 0 | F63: =IF(E4=AA5,0,IF(E5<>X5,0,IF(E14=W8,U29,))) -> 0 | H63: =IF(E5=X2,H62+(X25/4),H62+(X25/4)) -> 0.4540322581 | I63: =I61 -> 0.06822580645 | J63: =IF(OR(E5=X4,E5=X5),J64-(MAX(X28:Y28)/4),) -> 0.8975806452 | K63: =IF(OR(E5=X4,E5=X5),K61,) -> 0.04620967742 | L63: =IF(E5=X5,L64-(Z28/4),) -> 0 | M63: =IF(E5=X5,M61,) -> 0 | N63: =IF(E4=AA5,0,H69) -> 0.4540322581 | O63: =IF(E4=AA5,0,O64+X15-(U10/2)) -> 0.7503753014 | P63: =P62+(P62-P61) -> 0.8975806452 | Q63: =IF(AND(E4=AA6,OR(E5=X4,E5=X5)),Q61,) -> 0.7170688498 | R63: =IF(AND(E4=AA6,E5=X5),L64-(Z28/4),) -> 0 | S63: =IF(AND(E4=AA6,E5=X5),M61+U29,) -> 0
A64: =A63 -> 0.3064516129 | B64: =IF(E4=AA5,0,IF(E14=W8,B61+0.015,0)) -> 0 | C64: =C63 -> 0.8064516129 | D64: =IF(E4=AA5,0,IF(E5<X4,0,IF(E14=W8,B61+0.03,))) -> 0 | E64: =E63 -> 0 | F64: =IF(E4=AA5,0,IF(E5<>X5,0,IF(E14=W8,F63+0.03,))) -> 0 | H64: =IF(E5=X2,H60+X25,H60+X25) -> 0.6016129032 | I64: =U30 -> 0.01129032258 | J64: =IF(OR(E5=X4,E5=X5),J68,) -> 0.9887096774 | K64: =IF(OR(E5=X4,E5=X5),U30,) -> 0.01129032258 | L64: =IF(E5=X5,N50-U30,) -> 0 | M64: =IF(E5=X5,U30,) -> 0 | N64: =IF(E4=AA5,0,IF(E5=X3,H60+X25,W25+H60)) -> 0.6016129032 | O64: =IF(E4=AA5,0,O47-W24-U30) -> 0.6821494949 | P64: =IF(AND(E4=AA6,OR(E5=X4,E5=X5)),J68,) -> 0.9887096774 | Q64: =IF(AND(E4=AA6,OR(E5=X4,E5=X5)),Q60,) -> 0.6821494949 | R64: =IF(AND(E4=AA6,E5=X5),N50-U30,) -> 0 | S64: =IF(AND(E4=AA6,E5=X5),S60,) -> 0
A65: =A59 -> 0.3064516129 | B65: =IF(E4=AA5,0,IF(E14=W8,U29*2,0)) -> 0 | C65: =C59 -> 0.8064516129 | D65: =IF(E4=AA5,0,IF(E5<X4,0,IF(E14=W8,U29*2,))) -> 0 | E65: =E64 -> 0 | F65: =IF(E4=AA5,0,IF(E5<>X5,0,IF(E14=W8,U29*2,))) -> 0 | H65: =H64-X13-(U14/IF(E5=X5,4,4)) -> 0.527736392 | I65: =W24/4 -> 0.1620696318 | J65: =IF(OR(E5=X4,E5=X5),J64-X18,) -> 0.9148331662 | K65: =IF(OR(E5=X4,E5=X5),I65,) -> 0.1620696318 | L65: =IF(E5=X5,L64-AA16,) -> 0 | M65: =IF(E5=X5,K65,) -> 0 | N65: =IF(E4=AA5,0,H67) -> 0.527736392 | O65: =IF(E4=AA5,0,(W24/4)+U29) -> 0.8329288042 | P65: =IF(AND(E4=AA6,OR(E5=X4,E5=X5)),P64-X18,) -> 0.9148331662 | Q65: =IF(AND(E4=AA6,OR(E5=X4,E5=X5)),O65,) -> 0.8329288042 | R65: =IF(AND(E4=AA6,E5=X5),L64-AA16,) -> 0 | S65: =IF(AND(E4=AA6,E5=X5),Q65,) -> 0
A66: =A59 -> 0.3064516129 | B66: =IF(E4=AA5,0,IF(E14=W8,B65-0.03,0)) -> 0 | C66: =C59 -> 0.8064516129 | D66: =IF(E4=AA5,0,IF(E5<X4,0,IF(E14=W8,D65-0.03,))) -> 0 | E66: =E64 -> 0 | F66: =IF(E4=AA5,0,IF(E5<>X5,0,IF(E14=W8,F65-0.03,))) -> 0 | H66: =H64-W13-(U14/IF(E5=X5,2,2)) -> 0.5031108882 | I66: =U29/2 -> 0.3354295862 | J66: =IF(OR(E5=X4,E5=X5),J64-W18,) -> 0.8902076624 | K66: =IF(OR(E5=X4,E5=X5),I66,) -> 0.3354295862 | L66: =IF(E5=X5,L64-Z16,) -> 0 | M66: =IF(E5=X5,K66,) -> 0 | N66: =IF(E4=AA5,0,H66) -> 0.5031108882 | O66: =IF(E4=AA5,0,(U29/2)+U29) -> 1.006288759 | P66: =IF(AND(E4=AA6,OR(E5=X4,E5=X5)),P64-W18,) -> 0.8902076624 | Q66: =IF(OR(E5=X2,E5=X3),0,O66) -> 1.006288759 | R66: =IF(AND(E4=AA6,E5=X5),L64-Z16,) -> 0 | S66: =IF(AND(E4=AA6,E5=X5),Q66,) -> 0
A67: Y-Axis fitting points | H67: =H68-X13+(U14/4) -> 0.527736392 | I67: =(W24*0.75) -> 0.4862088954 | J67: =J65 -> 0.9148331662 | K67: =IF(OR(E5=X4,E5=X5),I67,) -> 0.4862088954 | L67: =IF(E5=X5,L65,) -> 0 | M67: =IF(E5=X5,K67,) -> 0 | N67: =IF(E4=AA5,0,H65) -> 0.527736392 | O67: =IF(E4=AA5,0,(W24*0.75)+U29) -> 1.157068068 | P67: =P65 -> 0.9148331662 | Q67: =IF(OR(E5=X2,E5=X3),0,O67) -> 1.157068068 | R67: =IF(AND(E4=AA6,E5=X5),L65,) -> 0 | S67: =IF(E5=X5,Q67,) -> 0
A68: Sail 1 | C68: Sail 2 | H68: =IF(E5=X3,H60+X25,H60+W25) -> 0.6016129032 | I68: =U29-U30 -> 0.6595688498 | J68: =IF(E5=X4,U25-U30,IF(E5=X5,N52+(U27/4)+(W28/2)+U18,)) -> 0.9887096774 | K68: =IF(OR(E5=X4,E5=X5),U29-U30,) -> 0.6595688498 | L68: =IF(E5=X5,L64,) -> 0 | M68: =IF(E5=X5,K68,) -> 0 | N68: =IF(E4=AA5,0,H64) -> 0.6016129032 | O68: =IF(E4=AA5,0,(U29*2)-U30) -> 1.330428022 | P68: =IF(AND(E4=AA6,OR(E5=X4,E5=X5)),P64,) -> 0.9887096774 | Q68: =IF(OR(E5=X2,E5=X3),0,O72) -> 1.330428022 | R68: =IF(AND(E4=AA6,E5=X5),L64,) -> 0 | S68: =IF(E5=X5,Q68,) -> 0
A69: 0 | B69: =I74 -> 0.3354295862 | C69: =IF(AND(E5<>X2,E13=X8),N49-0.015,0) -> 0 | D69: =K66 -> 0.3354295862 | H69: =IF(E5=X3,H62+(X25/4),H68-(W25/4)) -> 0.4540322581 | I69: =I68-X15+(U10/2) -> 0.5913430433 | J69: =IF(OR(E5=X4,E5=X5),J68-(Y28/4),) -> 0.8975806452 | K69: =IF(OR(E5=X4,E5=X5),U29-X19,) -> 0.6246494949 | L69: =IF(E5=X5,L63,) -> 0 | M69: =IF(E5=X5,U29-AA17,) -> 0 | N69: =IF(E4=AA5,0,H63) -> 0.4540322581 | O69: =IF(E4=AA5,0,(U29-I61)+U29) -> 1.273492538 | P69: =IF(AND(E4=AA6,OR(E5=X4,E5=X5)),J63,) -> 0.8975806452 | Q69: =IF(E4=AA5,0,IF(OR(E5=X2,E5=X3),0,O47-X20)) -> 1.295508667 | R69: =IF(AND(E4=AA6,E5=X5),L63,) -> 0 | S69: =IF(AND(E4=AA6,E5=X5),O47-AA17,) -> 0
A70: =IF(E13=X8,0.03,0) -> 0 | B70: =B69 -> 0.3354295862 | C70: =IF(AND(E5<>X2,E13=X8),C69+0.03,0) -> 0 | D70: =D69 -> 0.3354295862 | H70: =IF(E5=X3,H60+(X25/2),H69-(W25/4)) -> 0.3064516129 | I70: =I72-W15-(U10/4) -> 0.5686011078 | J70: =IF(OR(E5=X4,E5=X5),J69-(Y28/4),) -> 0.8064516129 | K70: =IF(OR(E5=X4,E5=X5),U29-W19,) -> 0.6092462691 | L70: =IF(E5=X5,L62,) -> 0 | M70: =IF(E5=X5,U29-Z17,) -> 0 | N70: =IF(E4=AA5,0,H62) -> 0.3064516129 | O70: =IF(E4=AA5,0,(U29-I62)+U29) -> 1.250750603 | P70: =IF(AND(E4=AA6,OR(E5=X4,E5=X5)),J62,) -> 0.8064516129 | Q70: =IF(E4=AA5,0,IF(OR(E5=X2,E5=X3),0,O47-W20)) -> 1.280105441 | R70: =IF(AND(E4=AA6,E5=X5),L62,) -> 0 | S70: =IF(AND(E4=AA6,E5=X5),O47-Z17,) -> 0
A71: 0 | B71: =O74 -> 1.006288759 | C71: =IF(AND(E13=X8,E5<>X2),C72-0.015,0) -> 0 | D71: =I66 -> 0.3354295862 | H71: =IF(E5=X3,H60+(X25/4),H70-(W25/4)) -> 0.1588709677 | I71: =I72-X15-(U10/6) -> 0.5913430433 | J71: =IF(OR(E5=X4,E5=X5),J70-(Y28/4),) -> 0.7153225806 | K71: =IF(OR(E5=X4,E5=X5),U29-X19,) -> 0.6246494949 | L71: =IF(E5=X5,L61,) -> 0 | M71: =IF(E5=X5,M69,) -> 0 | N71: =IF(E4=AA5,0,H61) -> 0.1588709677 | O71: =O69 -> 1.273492538 | P71: =IF(AND(E4=AA6,OR(E5=X4,E5=X5)),J61,) -> 0.7153225806 | Q71: =IF(OR(E5=X2,E5=X3),0,Q69) -> 1.295508667 | R71: =IF(AND(E4=AA6,E5=X5),L61,) -> 0 | S71: =IF(E5=X5,S69,) -> 0
A72: =IF(E4=AA5,0,IF(E13=X8,0.03,0)) -> 0 | B72: =B71 -> 1.006288759 | C72: =IF(AND(E13=X8,E5<>X2),U25,0) -> 0 | D72: =D71 -> 0.3354295862 | H72: =H60 -> 0.01129032258 | I72: =I68+U10 -> 0.6595688498 | J72: =IF(OR(E5=X4,E5=X5),N49+U30,) -> 0.6241935484 | K72: =IF(OR(E5=X4,E5=X5),K68,) -> 0.6595688498 | L72: =IF(E5=X5,L60,) -> 0 | M72: =IF(E5=X5,M68,) -> 0 | N72: =IF(E4=AA5,0,H60) -> 0.01129032258 | O72: =O68 -> 1.330428022 | P72: =IF(AND(E4=AA6,OR(E5=X4,E5=X5)),J76,) -> 0.6241935484 | Q72: =IF(OR(E5=X2,E5=X3),0,Q68) -> 1.330428022 | R72: =IF(AND(E4=AA6,E5=X5),L60,) -> 0 | S72: =IF(E5=X5,S68,) -> 0
A73: =IF(AND(E5=X5,E13=X8),A74-0.03,0) -> 0 | B73: =U29/2 -> 0.3354295862 | C73: =IF(AND(E5<>X2,E13=X8),C69,0) -> 0 | D73: =Q66 -> 1.006288759 | H73: =H60+X14 -> 0.08516683382 | I73: =I72-(X24/4) -> 0.497499218 | J73: =IF(OR(E5=X4,E5=X5),J72+X18-(U14/4),) -> 0.6980700596 | K73: =K67 -> 0.4862088954 | L73: =IF(E5=X5,L72+AA16,) -> 0 | M73: =IF(E5=X5,M67,) -> 0 | N73: =IF(E4=AA5,0,H60+X14) -> 0.08516683382 | O73: =IF(E4=AA5,0,O72-(X24/4)) -> 1.16835839 | P73: =IF(AND(E4=AA6,OR(E5=X4,E5=X5)),J75,) -> 0.6980700596 | Q73: =Q67 -> 1.157068068 | R73: =IF(AND(E4=AA6,E5=X5),L72+AA16,) -> 0 | S73: =IF(E5=X5,Q73,) -> 0
A74: =IF(AND(E5=X5,E13=X8),N52+(U27/2)+0.015,0) -> 0 | B74: =B73 -> 0.3354295862 | C74: =IF(AND(E5<>X2,E13=X8),C69+0.03,0) -> 0 | D74: =D73 -> 1.006288759 | H74: =H60+W14 -> 0.1097923376 | I74: =I73-(X24/4) -> 0.3354295862 | J74: =IF(OR(E5=X4,E5=X5),J76+W18+(U14/2),) -> 0.7226955634 | K74: =IF(OR(E5=X4,E5=X5),K66,) -> 0.3354295862 | L74: =IF(E5=X5,L72+Z16,) -> 0 | M74: =IF(E5=X5,M66,) -> 0 | N74: =IF(E4=AA5,0,H60+W14) -> 0.1097923376 | O74: =IF(E4=AA5,0,O73-(X24/4)) -> 1.006288759 | P74: =IF(AND(E4=AA6,OR(E5=X4,E5=X5)),J74,) -> 0.7226955634 | Q74: =IF(OR(E5=X2,E5=X3),0,Q66) -> 1.006288759 | R74: =IF(AND(E4=AA6,E5=X5),L72+Z16,) -> 0 | S74: =IF(E5=X5,Q74,) -> 0
A75: =IF(AND(E5=X5,E13=X8,E4=AA6),A76-0.03,0) -> 0 | B75: =U29+(U29/2) -> 1.006288759 | C75: =IF(E4=AA5,0,IF(AND(E13=X8,E5<>X2),C72-0.03,0)) -> 0 | D75: =O66 -> 1.006288759 | H75: =H73 -> 0.08516683382 | I75: =I74-(X24/4) -> 0.1733599544 | J75: =IF(OR(E5=X4,E5=X5),J76+X18+(U14/4),) -> 0.6980700596 | K75: =K65 -> 0.1620696318 | L75: =IF(E5=X5,L73,) -> 0 | M75: =IF(E5=X5,M65,) -> 0 | N75: =IF(E4=AA5,0,N73) -> 0.08516683382 | O75: =IF(E4=AA5,0,O74-(X24/4)) -> 0.8442191267 | P75: =IF(AND(E4=AA6,OR(E5=X4,E5=X5)),J73,) -> 0.6980700596 | Q75: =Q65 -> 0.8329288042 | R75: =IF(AND(E4=AA6,E5=X5),L73,) -> 0 | S75: =IF(E5=X5,Q75,) -> 0
A76: =IF(AND(E5=X5,E13=X8,E4=AA6),A74,0) -> 0 | B76: =B75 -> 1.006288759 | C76: =IF(E4=AA5,0,IF(AND(E13=X8,E5<>X2),U25,0)) -> 0 | D76: =D75 -> 1.006288759 | H76: =H60 -> 0.01129032258 | I76: =U30 -> 0.01129032258 | J76: =IF(OR(E5=X4,E5=X5),J60,) -> 0.6241935484 | K76: =IF(OR(E5=X4,E5=X5),U30,) -> 0.01129032258 | L76: =IF(E5=X5,L60,) -> 0 | M76: =IF(E5=X5,M64,) -> 0 | N76: =IF(E4=AA5,0,H60) -> 0.01129032258 | O76: =O60 -> 0.6821494949 | P76: =IF(AND(E4=AA6,OR(E5=X4,E5=X5)),P60,) -> 0.6241935484 | Q76: =IF(E5=X2,0,Q60) -> 0.6821494949 | R76: =IF(AND(E4=AA6,E5=X5),L60,) -> 0 | S76: =IF(E5=X5,S60,) -> 0

Sheet Georgian Double Hipped
T1: Main material | U1: =IF(E18=T3,5,IF(E18=T4,6,IF(E18=T5,6))) -> 5 | V1: Material cost | W1: 11.35 | X1: Sails | Y1: Warnings front/back | Z1: Warnings mid | AA1: Warnings front/back tri | AB1: Warnings mid tri
T2: Tri material | U2: =IF(E19=T3,5,IF(E19=T4,6,IF(E19=T5,6))) -> 6 | V2: PE | W2: 2.5 | X2: 1 | Y2: =W33 -> 1.973036354 | Z2: =X33 -> 1.744276354 | AA2: =IF(E6<>Y6,0.001,1)*Z33 -> 0.00186 | AB2: =IF(OR(E7=Y6,E8=Y6),1,0.00001)*AA33 -> 1.744276354e-05
T3: Solid ISX | U3: 5 | V3: PN | W3: 3.5 | X3: 2 | Y3: =IF(E5=X2,W34,MIN(W34,Y34)) -> 2.287633889 | Z3: =X34*IF(E5<>X4,1000,1) -> 2.307633889 | AA3: =Z34 -> 1.323 | AB3: =AA34 -> 1.241993448
D4: Select coverage | E4: Cover both sides | T4: Duplex ISX | U4: 6 | V4: IP | W4: 2 | X4: 3 | Y4: Tri sails | Z4: Warning 1 | AA4: Warning: Sail too narrow, increase no. of sails, add X-Axis fittings or increase gap size
D5: Select no. of sails per side | E5: 3 | T5: Solid ISXFR | U5: 6 | V5: No. of vents | W5: X fit points | X5: Y fit points | Y5: No | Z5: Warning 2 | AA5: Warning: Sail too narrow, decrease no. of sails, add Y-Axis fittings or reduce gap size
D6: Front triangle sail | E6: No | T6: Shape | U6: =IF(X9=T7,U7,IF(X9=T8,U8,IF(X9=T9,U9))) -> 1 | V6: 0 | W6: None | X6: None | Y6: Yes | Z6: Warning 3 | AA6: Warning: Sail too wide for standard fabric, please add more sails or increase gap size
D7: Middle left triangle sails | E7: No | T7: Triangle | U7: 0.6 | V7: 1 | W7: Standard | X7: Standard | Y7: Coverage | Z7: Warning 4 | AA7: Warning: Conservatory too long for standard fabric, contact office for more detailed price
D8: Middle right triangle sails | E8: No | T8: Diamond | U8: 0.6 | V8: 2 | W8: No. of corners | X8: 4 | Y8: Cover one side | Z8: Warning 5 | AA8: Warning: Some triangular sails are too thin for this conservatory
D9: Back triangle sail | E9: No | T9: Other | U9: 1 | V9: 3 | W9: Shape | X9: Other | Y9: Cover both sides | Z9: Warning 6 | AA9: Warning: Ridge is too short for a 3 sails per side solution, reduce no. of sails
T10: Overlap front | U10: =IF(E11=T11,U11,IF(E11=T12,U12,IF(E11=T13,U13))) -> 0.04085 | V10: 4 | W10: Curve allowance | X10: 0.4 | Z10: Warning 7
D11: Reduce front gap size | E11: 0.5 | T11: Standard | U11: 0 | V11: 5 | W11: Front | X11: Mid | Y11: Quarters | Z11: Back | AA11: Mid | AB11: Quarters
D12: Reduce middle left gap size | E12: 0.5 | T12: 0.5 | U12: =(X14*1.4)/2+(0.035/(B25/1000)) -> 0.04085 | V12: 6 | W12: Horizontal | X12: =((W27+(0.07/(B25/1000)))*0.13)+W25 -> 0.04674212965 | Y12: =(X12)*0.75 -> 0.03505659724 | Z12: Horizontal | AA12: =((Z27+(0.07/(B25/1000)))*0.13)+W25 -> 0.04674212965 | AB12: =(AA12)*0.75 -> 0.03505659724
D13: Reduce middle right gap size | E13: 0.5 | T13: 1 | U13: =X14*1.4+(0.035/(B25/1000)) -> 0.07545 | W13: Horizontal overlaped | X13: =((X27+(0.07/(B25/1000)))*0.13)+W25 -> 0.05205262965 | Y13: =(X13)*0.75 -> 0.03903947224 | Z13: Horizontal overlaped | AA13: =((Z27+(0.07/(B25/1000)))*0.13)+W25 -> 0.04674212965 | AB13: =(AA13)*0.75 -> 0.03505659724
D14: Reduce back gap size | E14: Standard | T14: Overlap back | U14: =IF(E14=T15,U15,IF(E14=T17,U17,IF(E14=T18,U18))) -> 0 | W14: Vertical | X14: =IF(E5=X2,((W28+(0.07/(B25/1000)))*0.13)+W25,((W28+(0.07/(B25/1000)))*0.13)+W25) -> 0.04942857143 | Y14: =X14*0.75 -> 0.03707142857 | Z14: Vertical | AA14: =IF(E5=X2,((Y28+(0.07/(B25/1000)))*0.13)+W25,((Y28+(0.07/(B25/1000)))*0.13)+W25) -> 0.04942857143 | AB14: =AA14*0.75 -> 0.03707142857
D15: Additional X-Axis fitting points | E15: None | T15: Standard | U15: 0 | W15: Vertical overlaped | X15: =IF(E5=X2,((X28+(0.07/(B25/1000)))*0.13)+W25,((X28+(0.07/(B25/1000)))*0.13)+W25) -> 0.05935578671 | Y15: =X15*0.75 -> 0.04451684003 | Z15: Vertical overlaped | AA15: =IF(E5=X2,((Z28+(0.07/(B25/1000)))*0.13)+W25,((Z28+(0.07/(B25/1000)))*0.13)+W25) -> 0.05935578671 | AB15: =AA15*0.75 -> 0.04451684003
D16: Additional Y-Axis fitting points | E16: None
T17: 0.5 | U17: =(AA14*1.4)/2+(0.035/(B25/1000)) -> 0.04085 | W17: Mid | X17: Mid | Y17: Quarters
D18: Select material for main sails | E18: Solid ISX | T18: 1 | U18: =AA14*1.4+(0.035/(B25/1000)) -> 0.07545 | W18: Horizontal | X18: =((W30+(0.07/(B25/1000)))*0.13)+W25 -> 0.04674212965 | Y18: =(X18)*0.75 -> 0.03505659724
D19: Select material for triangles | E19: Duplex ISX | T19: Overlap middle left | U19: =IF(E12=T20,U20,IF(E12=T21,U21,IF(E12=T22,U22))) -> 0.07636319448 | W19: Vertical | X19: =((W31+(0.07/(B25/1000)))*0.13)+W25 -> 0.04989285714 | Y19: =X19*0.75 -> 0.03741964286
D20: Select no. of window vents | E20: 0 | H20: Plan view - looking from above | T20: Standard | U20: 0 | W20: Vertical overlaped | X20: =((AVERAGE(W31:Y31)+(0.07/(B25/1000)))*0.13)+W25 -> 0.05651100066 | Y20: =X20*0.75 -> 0.0423832505
T21: 0.5 | U21: =((X12*3)/2)+(0.035/(B25/1000)) -> 0.07636319448 | W21: front | X21: mid | Y21: tri front | Z21: tri mid
B22: All dims in mm | D22: Max length of sail | E22: =(MAX(W33:Y33))*1000 -> 1973.036354 | T22: 1 | U22: =X12*3+(0.035/(B25/1000)) -> 0.146476389 | V22: Sail perimeter | W22: =((X27+0.07)*2)+((X28+0.07)*2) -> 1.751667944 | X22: =((W30+0.07)*2)+X31+0.07+W31+0.07 -> 1.600747607 | Y22: =((AA30+0.07)*2)+AA31+0.07 -> 1.073035714 | Z22: =((Z30+0.07)*2)+Z31+0.07 -> 1.017240385
A23: H1 | B23: 2200 | D23: Max width of sail | E23: =(MAX(W34:Y34))*1000 -> 2307.633889 | T23: Overlap middle right | U23: =IF(E5=X3,U19,IF(E13=T20,U20,IF(E13=T21,U21,IF(E13=T22,U22)))) -> 0.07636319448 | V23: Roof area (m^2) | W23: =W24*U27 -> 0.3114779204 | X23: Tri | Y23: Mid | Z23: Quarters
A24: H2 | B24: 3000 | U24: Dims in m | V24: Glazing bar length | W24: =SQRT((U26-U25)^2+(U28/2)^2) -> 0.3114779204 | X24: Vertical mid | Y24: =((Z31+W25)*0.13)+W25 -> 0.03426949076 | Z24: =Y24*0.75 -> 0.02570211807
A25: X1 | B25: 5600 | D25: Please note that sails larger than 2100mm in both directions, will require a colour matched seam. | H25: Total budget cost incl. Installation+VAT+Delivery | J25: =12.15+(E20*50)+W36+X36+Y36+IF(E6=Y6,Z36,)+IF(AND(E9=Y6,E5<>X2),Z36,)+IF(E7=Y6,AA36,)+IF(AND(E5=X4,E8=Y6),AA36,) -> 2666.424694 | T25: h1 | U25: =B23/B25 -> 0.3928571429 | V25: 50mm links | W25: =(0.035/(B25/1000)) -> 0.00625 | X25: Vertical Front/back | Y25: =((AA31+W25)*0.13)+W25 -> 0.03615 | Z25: =Y25*0.75 -> 0.0271125
A26: Y1 | B26: 3100 | J26: =' '!P5 -> 3066.388398 | T26: h2 | U26: =B24/B25 -> 0.5357142857 | W26: front + overlaped | Y26: back + overlaped
A27: R1 | B27: 1880 | G27: =' '!A8 -> 0 | T27: x1 | U27: =B25/B25 -> 1 | V27: Sail length | W27: =W24-(0.07/(B25/1000)) -> 0.2989779204 | X27: =W27+U10 -> 0.3398279204 | Y27: =W24-(0.07/(B25/1000)) -> 0.2989779204 | Z27: =W27+U14 -> 0.2989779204
D28: =IF(((X18*(B25/1000))*(IF(E16=X7,0.5,2)))>(Z3*X10),AA5,IF(((X12*(B25/1000))*(IF(E16=X7,0.5,2)))>(Y3*X10),AA5,IF(AND(Y3>4,Y2>4),AA6,IF(OR(Z31*2<Z30,AA31*2<AA30),AA8,IF(AND((U29*(B25/1000))<0.75,E5=X4),AA9,""))))) ->  | T28: y1 | U28: =B26/B25 -> 0.5535714286 | V28: Sail width | W28: =IF(E5=X3,K57-(U29/2)-(0.07/(B25/1000)),K51-(0.07/(B25/1000))) -> 0.3196428571 | X28: =W28+U19 -> 0.3960060516 | Y28: =IF(E5=X2,K48-(0.07/(B25/1000)),IF(E5=X3,K57-(U29/2)-(0.07/(B25/1000)),K51-(0.07/(B25/1000)))) -> 0.3196428571 | Z28: =Y28+U23 -> 0.3960060516
T29: r1 | U29: =B27/B25 -> 0.3357142857 | W29: mid + overlaped | Z29: tri mid | AA29: tri front/back
G30: =' '!A11 -> 0 | V30: Sail length | W30: =W27 -> 0.2989779204 | X30: <- | Y30: -> | Z30: =W24-(0.07/(B25/1000)) -> 0.2989779204 | AA30: =K51-(0.07/(B25/1000)) -> 0.3196428571
V31: Sail width | W31: =K52-K51-(0.07/(B25/1000)) -> 0.3232142857 | X31: =W31+U19 -> 0.3995774802 | Y31: =W31+U23 -> 0.3995774802 | Z31: =IF(Z30*0.7<(U27-U29)/2,Z30*0.7,(U27-U29)-(2*W25)) -> 0.2092845443 | AA31: =IF(AA30*0.7<U28,AA30*0.7,U28-(2*W25)) -> 0.22375
V32: Costs | W32: front | X32: mid | Y32: back | Z32: tri front/back | AA32: tri mid left/right
V33: length | W33: =((O59-O63)*(B25/1000))+0.07 -> 1.973036354 | X33: =W24*(B25/1000) -> 1.744276354 | Y33: =((S55-S51)*(B25/1000))+0.07 -> 1.744276354 | Z33: =K54*(B25/1000) -> 1.86 | AA33: =W24*(B25/1000) -> 1.744276354
V34: width | W34: =((N51-N47)*(B25/1000))+0.07 -> 2.287633889 | X34: =IF(E5<>X4,W31*(B25/1000),((P51-P47)*(B25/1000))+0.07) -> 2.307633889 | Y34: =((R51-R47)*(B25/1000))+0.07 -> 2.287633889 | Z34: =(AA31*(B25/1000))+0.07 -> 1.323 | AA34: =(Z31*(B25/1000))+0.07 -> 1.241993448
V35: perimeter | W35: =W33+W34+((W27*(B25/1000))+0.07)+((W28*(B25/1000))+0.07) -> 7.864946598 | X35: =(X33*2)+((W31*(B25/1000))+0.07)+X34 -> 7.676186598 | Y35: =Y33+Y34+((Y27*(B25/1000))+0.07)+((Y28*(B25/1000))+0.07) -> 7.636186598 | Z35: =(Z33*2)+Z34 -> 5.043 | AA35: =(AA33*2)+AA34 -> 4.730546156
W36: =IF(E4=Y9,2,1)*(((U1*((U6*W33*W34*W1)+(W35*W2)+(X8*W3)+W4))+7.2*X8)+IF(E16=X7,24.7*2*IF(E5=X2,0.5,1),)+IF(E15=X7,24.7*2,)) -> 926.515543 | X36: =IF(E5<>X4,0,(IF(E4=Y9,2,1)*(((U1*((U6*X33*X34*W1)+(X35*W2)+(X8*W3)+W4))+7.2*X8)+IF(E15=X7,24.7*2,)+IF(E16=X7,24.7*2,)))) -> 866.3593292 | Y36: =IF(E5=X2,0,IF(E4=Y9,2,1)*(((U1*((U6*Y33*Y34*W1)+(Y35*W2)+(X8*W3)+W4))+7.2*X8)+IF(E15=X7,24.7*2,)+IF(E16=X7,24.7*2,))) -> 861.3998219 | Z36: =IF(OR(E6=Y6,E9=Y6),(U2*((U7*Z33*Z34*W1)+(Z35*W2)+(3*W3)+W4))+7.2*3,) -> 0 | AA36: =IF(OR(E7=Y6,E8=Y6),(U2*((U7*AA33*AA34*W1)+(AA35*W2)+(3*W3)+W4))+7.2*3,)*IF(E4=Y9,2,1) -> 0
E44: x | F44: y | G44: x | H44: y | I44: x | J44: y | K44: Roof plan
E45: mid left tri 1 | G45: mid right tri 4 | I45: f tri 3 | K45: x-axis | L45: y-axis | N45: x | O45: y | P45: x | Q45: y | R45: x | S45: y
E46: =IF(E7=Y6,E48-(Z31/2),) -> 0 | F46: =IF(E7=Y6,W25,) -> 0 | G46: =IF(E5<>X4,0,IF(E8=Y6,G48-(Z31/2),)) -> 0 | H46: =IF(E5<>X4,0,IF(E8=Y6,W25,)) -> 0 | I46: =IF(E6=Y6,W25,) -> 0 | J46: =IF(E6=Y6,L51+(AA31/2),) -> 0 | K46: 0 | L46: 0 | N46: down front | P46: down mid | R46: down left
E47: =IF(E7=Y6,E48-(Z31/4),) -> 0 | F47: =IF(E7=Y6,Z24,) -> 0 | G47: =IF(E5<>X4,0,IF(E8=Y6,G48-(Z31/4),)) -> 0 | H47: =IF(E5<>X4,0,IF(E8=Y6,Z24,)) -> 0 | I47: =IF(E6=Y6,Z25,) -> 0 | J47: =IF(E6=Y6,J46-(AA31/4),) -> 0 | K47: =U27 -> 1 | L47: 0 | N47: =W25 -> 0.00625 | O47: =W25 -> 0.00625 | P47: =IF(E5=X4,U27/2-(X31/2),) -> 0.3002112599 | Q47: =IF(E5=X4,W25,) -> 0.00625 | R47: =IF(E5<>X2,R51-Z28,) -> 0.5977439484 | S47: =IF(E5<>X2,W25,) -> 0.00625
E48: =IF(E7=Y6,E54,) -> 0 | F48: =IF(E7=Y6,Y24,) -> 0 | G48: =IF(E5<>X4,0,IF(E8=Y6,G54,)) -> 0 | H48: =IF(E5<>X4,0,IF(E8=Y6,Y24,)) -> 0 | I48: =IF(E6=Y6,Y25,) -> 0 | J48: =IF(E6=Y6,J47-(AA31/4),) -> 0 | K48: =U27 -> 1 | L48: =W24*2 -> 0.6229558408 | N48: =IF(E5=X2,N47+(X28/4),N47+(X28/4)) -> 0.1052515129 | O48: =O49*0.75 -> 0.04451684003 | P48: =IF(E5=X4,P47+(MAX(X31:Y31)/4),) -> 0.40010563 | Q48: =IF(E5=X4,Y20,) -> 0.0423832505 | R48: =IF(E5<>X2,R47+(Z28/4),0) -> 0.6967454613 | S48: =IF(E5<>X2,AB15,) -> 0.04451684003
E49: =IF(E7=Y6,E48+(Z31/4),) -> 0 | F49: =IF(E7=Y6,Z24,) -> 0 | G49: =IF(E5<>X4,0,IF(E8=Y6,G48+(Z31/4),)) -> 0 | H49: =IF(E5<>X4,0,IF(E8=Y6,Z24,)) -> 0 | I49: =IF(E6=Y6,I47,) -> 0 | J49: =IF(E6=Y6,J48-(AA31/4),) -> 0 | K49: 0 | L49: =W24*2 -> 0.6229558408 | N49: =IF(E5=X2,N47+(X28/2),N47+(X28/2)) -> 0.2042530258 | O49: =X15 -> 0.05935578671 | P49: =IF(E5=X4,P51-(P51-P47)/2,) -> 0.5 | Q49: =IF(E5=X4,X20,) -> 0.05651100066 | R49: =IF(E5<>X2,R47+(Z28/2),0) -> 0.7957469742 | S49: =IF(E5<>X2,AA15,) -> 0.05935578671
E50: =IF(E7=Y6,E48+(Z31/2),) -> 0 | F50: =F46 -> 0 | G50: =IF(E5<>X4,0,IF(E8=Y6,G48+(Z31/2),)) -> 0 | H50: =IF(E5<>X4,0,IF(E8=Y6,H46,)) -> 0 | I50: =I46 -> 0 | J50: =IF(E6=Y6,L51-(AA31/2),) -> 0 | K50: 0 | L50: 0 | N50: =IF(E5=X2,N49+(X28/4),N49+(X28/4)) -> 0.3032545387 | O50: =O48 -> 0.04451684003 | P50: =IF(E5=X4,P51-(MAX(X31:Y31)/4),) -> 0.59989437 | Q50: =IF(E5=X4,Q48,) -> 0.0423832505 | R50: =IF(E5<>X2,R49+(Z28/4),0) -> 0.8947484871 | S50: =IF(E5<>X2,S48,) -> 0.04451684003
E51: =IF(E7=Y6,E50-((E50-E54)/2),) -> 0 | F51: =IF(E7=Y6,F52-(Z30/4),) -> 0 | G51: =IF(E5<>X4,0,IF(E8=Y6,G50-((G50-G54)/2),)) -> 0 | H51: =IF(E5<>X4,0,IF(E8=Y6,H52-(Z30/4),)) -> 0 | I51: =IF(E6=Y6,I52-(AA30/4),) -> 0 | J51: =IF(E6=Y6,J54-((J54-J50)/2),) -> 0 | K51: =(U27/2)-(U29/2) -> 0.3321428571 | L51: =W24 -> 0.3114779204 | N51: =N47+X28 -> 0.4022560516 | O51: =W25 -> 0.00625 | P51: =IF(E5=X4,U27/2+(Y31/2),) -> 0.6997887401 | Q51: =IF(E5=X4,W25,) -> 0.00625 | R51: =IF(E5<>X2,U27-W25,0) -> 0.99375 | S51: =S47 -> 0.00625
E52: =IF(E7=Y6,E50-((E50-E54)*0.75),) -> 0 | F52: =IF(E7=Y6,W24-(W24/2),) -> 0 | G52: =IF(E5<>X4,0,IF(E8=Y6,G50-((G50-G54)*0.75),)) -> 0 | H52: =IF(E5<>X4,0,IF(E8=Y6,W24-(W24/2),)) -> 0 | I52: =IF(E6=Y6,I53-(AA30/4),) -> 0 | J52: =IF(E6=Y6,J50+((J54-J50)*0.75),) -> 0 | K52: =(U27/2)+(U29/2) -> 0.6678571429 | L52: =L51 -> 0.3114779204 | N52: =IF(E5=X2,N51-Y12,N51-Y12-(U19/4)) -> 0.3481086558 | O52: =W27/4 -> 0.0747444801 | P52: =IF(E5=X4,P51-Y18-(U23/8),) -> 0.6551867435 | Q52: =IF(E5=X4,O52,) -> 0.0747444801 | R52: =IF(E5<>X2,R51-AB13,) -> 0.9586934028 | S52: =IF(E5<>X2,S53-(Z27/4),) -> 0.0809944801
E53: =IF(E7=Y6,E54+((E50-E54)*0.1),) -> 0 | F53: =IF(E7=Y6,F52+(Z30/4),) -> 0 | G53: =IF(E5<>X4,0,IF(E8=Y6,G54+((G50-G54)*0.1),)) -> 0 | H53: =IF(E5<>X4,0,IF(E8=Y6,H52+(Z30/4),)) -> 0 | I53: =IF(E6=Y6,I54-(AA30/4),) -> 0 | J53: =IF(E6=Y6,J54-((J54-J50)*0.1),) -> 0 | K53: 0 | L53: 0 | N53: =IF(E5=X2,N51-X12,N51-X12-(U19/2)) -> 0.3173323247 | O53: =W24/2 -> 0.1557389602 | P53: =IF(E5=X4,P51-X18-(U23/4),) -> 0.6339558118 | Q53: =IF(E5=X4,O53,) -> 0.1557389602 | R53: =IF(E5<>X2,R51-AA13,) -> 0.9470078703 | S53: =IF(E5<>X2,S54-(Z27/4),) -> 0.1557389602
E54: =IF(E7=Y6,K51+IF(E5=X3,U29/2,),) -> 0 | F54: =IF(E7=Y6,L51-W25,) -> 0 | G54: =IF(E5<>X4,0,IF(E8=Y6,U29+K51,)) -> 0 | H54: =IF(E5<>X4,0,IF(E8=Y6,L51-W25,)) -> 0 | I54: =IF(E6=Y6,K51-W25,) -> 0 | J54: =IF(E6=Y6,L51,) -> 0 | K54: =(U27/2)-(U29/2) -> 0.3321428571 | L54: =L52 -> 0.3114779204 | N54: =IF(E5=X2,N55-Y12,N55-Y12+(U19/4)) -> 0.3099270585 | O54: =W27*0.75 -> 0.2242334403 | P54: =IF(E5=X4,P55-Y18+(U23/6),) -> 0.6392777447 | Q54: =IF(E5=X4,O54,) -> 0.2242334403 | R54: =IF(E5<>X2,R51-AB13,) -> 0.9586934028 | S54: =IF(E5<>X2,S55-(Z27/4),) -> 0.2304834403
E55: =IF(E7=Y6,E54-((E50-E54)*0.1),) -> 0 | F55: =F53 -> 0 | G55: =IF(E5<>X4,0,IF(E8=Y6,G54-((G50-G54)*0.1),)) -> 0 | H55: =IF(E5<>X4,0,IF(E8=Y6,H53,)) -> 0 | I55: =I53 -> 0 | J55: =J54+((J54-J50)*0.1) -> 0 | K55: 0 | L55: =L49 -> 0.6229558408 | N55: =IF(E5=X2,N47+X28,W28+N47) -> 0.3258928571 | O55: =W24-W25 -> 0.3052279204 | P55: =IF(E5=X4,K57-W25,) -> 0.6616071429 | Q55: =IF(E5=X4,W24-W25,) -> 0.3052279204 | R55: =IF(E5<>X2,R51,0) -> 0.99375 | S55: =IF(E5<>X2,S51+Z27,) -> 0.3052279204
E56: =IF(E7=Y6,E58+((E54-E58)*0.75),) -> 0 | F56: =F52 -> 0 | G56: =IF(E5<>X4,0,IF(E8=Y6,G58+((G54-G58)*0.75),)) -> 0 | H56: =IF(E5<>X4,0,IF(E8=Y6,H52,)) -> 0 | I56: =I52 -> 0 | J56: =J58-((J54-J50)*0.75) -> 0 | K56: =U27 -> 1 | L56: 0 | N56: =IF(E5=X2,N49+(X28/4),N55-(W28/4)) -> 0.2459821429 | O56: =O55-Y14+(U10/2) -> 0.2885814918 | P56: =IF(E5=X4,P55-(W31/4),) -> 0.5808035714 | Q56: =IF(E5=X4,W24-Y19,) -> 0.2740582775 | R56: =IF(E5<>X2,R55-(W28/4),) -> 0.9138392857 | S56: =IF(E5<>X2,S55-AB14-(U14/6),) -> 0.2681564918
E57: =E58+((E54-E58)/2) -> 0 | F57: =F51 -> 0 | G57: =IF(E5<>X4,0,IF(E8=Y6,G58+((G54-G58)/2),)) -> 0 | H57: =IF(E5<>X4,0,IF(E8=Y6,H51,)) -> 0 | I57: =I51 -> 0 | J57: =J58-((J54-J50)/2) -> 0 | K57: =(U27/2)+(U29/2) -> 0.6678571429 | L57: =L51 -> 0.3114779204 | N57: =IF(E5=X2,N47+(X28/2),N56-(W28/4)) -> 0.1660714286 | O57: =O59-X14-(U10/4) -> 0.286436849 | P57: =IF(E5=X4,U27/2,) -> 0.5 | Q57: =IF(E5=X4,W24-X19,) -> 0.2615850633 | R57: =IF(E5<>X2,R55-(W28/2),0) -> 0.8339285714 | S57: =IF(E5<>X2,S55-AA14-(U14/4),) -> 0.255799349
E58: =E46 -> 0 | F58: =F46 -> 0 | G58: =IF(E5<>X4,0,IF(E8=Y6,G46,)) -> 0 | H58: =IF(E5<>X4,0,IF(E8=Y6,H46,)) -> 0 | I58: =I46 -> 0 | J58: =J46 -> 0 | K58: =U27 -> 1 | L58: =L55 -> 0.6229558408 | N58: =IF(E5=X2,N47+(X28/4),N57-(W28/4)) -> 0.08616071429 | O58: =O59-Y14-(U10/6) -> 0.3021981585 | P58: =IF(E5=X4,P57-(W31/4),) -> 0.4191964286 | Q58: =IF(E5=X4,W24-Y19,) -> 0.2740582775 | R58: =IF(E5<>X2,R59+(W28/4),0) -> 0.7540178571 | S58: =IF(E5<>X2,S55-AB14-(U14/2),) -> 0.2681564918
A59: x | B59: y | D59: x | E59: y | F59: x | G59: y | H59: Y-Axis fitting points | N59: =N47 -> 0.00625 | O59: =O47+X27 -> 0.3460779204 | P59: =IF(E5=X4,P55-W31,) -> 0.3383928571 | Q59: =IF(E5=X4,Q55,) -> 0.3052279204 | R59: =IF(E5=X3,K54+(U29/2)+W25,IF(E5<>X2,K57+W25,)) -> 0.6741071429 | S59: =IF(E5<>X2,L54-W25,) -> 0.3052279204
A60: mid left tri 2 | D60: mid right tri 5 | F60: b tri 6 | H60: Sail 1 | J60: Sail 2 | N60: =N47+Y13 -> 0.04528947224 | O60: =O59-(X27/4) -> 0.2611209403 | P60: =IF(E5=X4,P59+Y18-(U19/6),) -> 0.3607222553 | Q60: =Q54 -> 0.2242334403 | R60: =IF(E5<>X2,R59+Y12-(U23/4),) -> 0.6900729415 | S60: =IF(E5<>X2,(W27*0.75),) -> 0.2242334403
A61: =IF(AND(E7=Y6,E4<>Y8),E48-(Z31/2),) -> 0 | B61: =IF(AND(E7=Y6,E4<>Y8),L48-W25,) -> 0 | D61: =IF(E5<>X4,0,IF(AND(E8=Y6,E4<>Y8),G48-(Z31/2),)) -> 0 | E61: =IF(E5<>X4,0,IF(AND(E8=Y6,E4<>Y8),L48-W25,)) -> 0 | F61: =IF(E5=X2,0,IF(AND(E9=Y6,E4<>Y10),K48-W25,)) -> 0 | G61: =IF(E5=X2,0,IF(AND(E9=Y6,E4<>Y10),L51+(AA31/2),)) -> 0 | H61: 0 | I61: =O61 -> 0.1761639602 | J61: =IF(AND(E5<>X2,E16=X7),K51-0.015,0) -> 0 | K61: =Q53 -> 0.1557389602 | N61: =N47+X13 -> 0.05830262965 | O61: =O60-(X27/4) -> 0.1761639602 | P61: =IF(E5=X4,P63+X18+(U19/4),) -> 0.3660441882 | Q61: =IF(E5=X4,Q53,) -> 0.1557389602 | R61: =IF(E5<>X2,R63+X12+(U23/2),) -> 0.6826676753 | S61: =IF(E5<>X2,W24/2,) -> 0.1557389602
A62: =IF(AND(E7=Y6,E4<>Y8),E48-(Z31/4),) -> 0 | B62: =IF(AND(E7=Y6,E4<>Y8),L48-Z24,) -> 0 | D62: =IF(E5<>X4,0,IF(AND(E8=Y6,E4<>Y8),G48-(Z31/4),)) -> 0 | E62: =IF(E5<>X4,0,IF(AND(E8=Y6,E4<>Y8),L48-Z24,)) -> 0 | F62: =IF(E5=X2,0,IF(AND(E9=Y6,E4<>Y10),K48-Z25,)) -> 0 | G62: =IF(E5=X2,0,IF(AND(E9=Y6,E4<>Y10),G61-(AA31/4),)) -> 0 | H62: =IF(E16=X7,0.03,0) -> 0 | I62: =I61 -> 0.1761639602 | J62: =IF(AND(E5<>X2,E16=X7),J61+0.03,0) -> 0 | K62: =K61 -> 0.1557389602 | N62: =N60 -> 0.04528947224 | O62: =O61-(X27/4) -> 0.0912069801 | P62: =IF(E5=X4,P63+Y18+(U19/8),) -> 0.3448132565 | Q62: =Q52 -> 0.0747444801 | R62: =IF(E5<>X2,R63+Y12+(U23/4),) -> 0.6518913442 | S62: =IF(E5<>X2,W27/4,) -> 0.0747444801
A63: =IF(AND(E7=Y6,E4<>Y8),E54,) -> 0 | B63: =IF(AND(E7=Y6,E4<>Y8),L49-Y24,) -> 0 | D63: =IF(E5<>X4,0,IF(AND(E8=Y6,E4<>Y8),G54,)) -> 0 | E63: =IF(E5<>X4,0,IF(AND(E8=Y6,E4<>Y8),L49-Y24,)) -> 0 | F63: =IF(E5=X2,0,IF(AND(E9=Y6,E4<>Y10),K48-Y25,)) -> 0 | G63: =IF(E5=X2,0,IF(AND(E9=Y6,E4<>Y10),G62-(AA31/4),)) -> 0 | H63: =IF(E5=X2,0,IF(AND(E5<>X4,E16=X7),H64-0.03,))*0 -> 0 | I63: =I62 -> 0.1761639602 | J63: =IF(AND(E5>1.5,E16=X7),J64-0.03,0) -> 0 | K63: =S53 -> 0.1557389602 | N63: =N47 -> 0.00625 | O63: =W25 -> 0.00625 | P63: =IF(E5=X4,P47,) -> 0.3002112599 | Q63: =IF(E5=X4,W25,) -> 0.00625 | R63: =R47 -> 0.5977439484 | S63: =S47 -> 0.00625
A64: =IF(AND(E7=Y6,E4<>Y8),E48+(Z31/4),) -> 0 | B64: =IF(AND(E7=Y6,E4<>Y8),L49-Z24,) -> 0 | D64: =IF(E5<>X4,0,IF(AND(E8=Y6,E4<>Y8),G48+(Z31/4),)) -> 0 | E64: =IF(E5<>X4,0,IF(AND(E8=Y6,E4<>Y8),L49-Z24,)) -> 0 | F64: =IF(E5=X2,0,IF(AND(E9=Y6,E4<>Y10),K48-Z25,)) -> 0 | G64: =IF(E5=X2,0,IF(AND(E9=Y6,E4<>Y10),G63-(AA31/4),)) -> 0 | H64: =IF(E5=X2,0,IF(AND(E5<>X4,E16=X7),U27,0))*0 -> 0 | I64: =I63 -> 0.1761639602 | J64: =IF(AND(E5>1.5,E16=X7),U27,0) -> 0 | K64: =K63 -> 0.1557389602
A65: =IF(AND(E7=Y6,E4<>Y8),E48+(Z31/2),) -> 0 | B65: =IF(AND(E7=Y6,E4<>Y8),L48-F46,) -> 0 | D65: =IF(E5<>X4,0,IF(AND(E8=Y6,E4<>Y8),G48+(Z31/2),)) -> 0 | E65: =IF(E5<>X4,0,IF(AND(E8=Y6,E4<>Y8),L48-H46,)) -> 0 | F65: =IF(E5=X2,0,IF(AND(E9=Y6,E4<>Y10),F61,)) -> 0 | G65: =IF(E5=X2,0,IF(AND(E9=Y6,E4<>Y10),L51-(AA31/2),)) -> 0 | H65: 0 | I65: =O81 -> 0.4467918806 | J65: =IF(AND(E5<>X2,E16=X7),J61,0) -> 0 | K65: =Q73 -> 0.4672168806 | N65: x | O65: y | P65: x | Q65: y | R65: x | S65: y
A66: =IF(AND(E7=Y6,E4<>Y8),E50-((E50-E54)/2),) -> 0 | B66: =IF(AND(E7=Y6,E4<>Y8),B67+(Z30/4),) -> 0 | D66: =IF(E5<>X4,0,IF(AND(E8=Y6,E4<>Y8),G50-((G50-G54)/2),)) -> 0 | E66: =IF(E5<>X4,0,IF(AND(E8=Y6,E4<>Y8),E67+(Z30/4),)) -> 0 | F66: =IF(E5=X2,0,IF(AND(E9=Y6,E4<>Y10),F65-(AA30/4),)) -> 0 | G66: =IF(AND(E9=Y6,E4<>Y10),G69-((G69-G65)/2),) -> 0 | H66: =IF(E4=Y8,0,IF(E16=X7,0.03,0)) -> 0 | I66: =I65 -> 0.4467918806 | J66: =IF(AND(E5<>X2,E16=X7),J61+0.03,0) -> 0 | K66: =K65 -> 0.4672168806 | N66: up front | P66: up mid | R66: up left
A67: =IF(AND(E7=Y6,E4<>Y8),E50-((E50-E54)*0.75),) -> 0 | B67: =IF(AND(E7=Y6,E4<>Y8),L48-(W24/2),) -> 0 | D67: =IF(E5<>X4,0,IF(AND(E8=Y6,E4<>Y8),G50-((G50-G54)*0.75),)) -> 0 | E67: =IF(E5<>X4,0,IF(AND(E8=Y6,E4<>Y8),L48-(W24/2),)) -> 0 | F67: =IF(E5=X2,0,IF(AND(E9=Y6,E4<>Y10),F65-(AA30/2),)) -> 0 | G67: =IF(AND(E9=Y6,E4<>Y10),G65+((G69-G65)*0.75),) -> 0 | H67: =IF(E5=X2,0,IF(AND(E5=X2,E16=X7),H64-0.03,0)) -> 0 | I67: =O73 -> 0.4672168806 | J67: =IF(E4=Y8,0,IF(AND(E5>1.5,E16=X7),J64-0.03,0)) -> 0 | K67: =S73 -> 0.4672168806 | N67: =IF(E4=Y8,0,W25) -> 0.00625 | O67: =IF(E4=Y8,0,L48-X27-W25) -> 0.2768779204 | P67: =IF(E4=Y8,0,IF(E5=X2,0,P59)) -> 0.3383928571 | Q67: =IF(E5=X4,O71,) -> 0.3177279204 | R67: =IF(E4=Y8,0,IF(E5=X3,K54+(U29/2)+W25,IF(E5<>X2,K57+W25,))) -> 0.6741071429 | S67: =IF(E5<>X2,O71,) -> 0.3177279204
A68: =IF(AND(E7=Y6,E4<>Y8),E54+((E50-E54)*0.1),) -> 0 | B68: =IF(AND(E7=Y6,E4<>Y8),B67-(Z30/4),) -> 0 | D68: =IF(E5<>X4,0,IF(AND(E8=Y6,E4<>Y8),G54+((G50-G54)*0.1),)) -> 0 | E68: =IF(E5<>X4,0,IF(AND(E8=Y6,E4<>Y8),E67-(Z30/4),)) -> 0 | F68: =IF(E5=X2,0,IF(AND(E9=Y6,E4<>Y10),F69+(AA30/4),)) -> 0 | G68: =IF(AND(E9=Y6,E4<>Y10),G69-((G69-G65)*0.1),) -> 0 | H68: =IF(E5=X2,0,IF(AND(E5=X2,E16=X7),U27,0)) -> 0 | I68: =I67 -> 0.4672168806 | J68: =IF(E4=Y8,0,IF(AND(E5>1.5,E16=X7),U27,0)) -> 0 | K68: =K67 -> 0.4672168806 | N68: =IF(E4=Y8,0,N58) -> 0.08616071429 | O68: =IF(E4=Y8,0,O67+Y14+(U10/6)) -> 0.3207576823 | P68: =IF(E4=Y8,0,IF(E5=X2,0,P58)) -> 0.4191964286 | Q68: =IF(E4=Y8,0,IF(E5=X4,Q67+Y19,)) -> 0.3551475633 | R68: =IF(E4=Y8,0,IF(E5<>X2,R59+(W28/4),0)) -> 0.7540178571 | S68: =IF(E4=Y8,0,IF(E5<>X2,S67+AB14-(U14/2),)) -> 0.354799349
A69: =IF(AND(E7=Y6,E4<>Y8),K51+IF(E5=X3,U29/2,),) -> 0 | B69: =IF(AND(E7=Y6,E4<>Y8),L51+W25,) -> 0 | D69: =IF(E5<>X4,0,IF(AND(E8=Y6,E4<>Y8),K51+U29,)) -> 0 | E69: =IF(E5<>X4,0,IF(AND(E8=Y6,E4<>Y8),L51+W25,)) -> 0 | F69: =IF(E5=X2,0,IF(AND(E9=Y6,E4<>Y10),K57+W25,)) -> 0 | G69: =IF(E5=X2,0,IF(AND(E9=Y6,E4<>Y10),L51,)) -> 0 | H69: =IF(OR(E16=X6,E5=X2),0,R59-W25-0.015) -> 0 | I69: =O53 -> 0.1557389602 | N69: =IF(E4=Y8,0,N57) -> 0.1660714286 | O69: =IF(E4=Y8,0,O67+X14+(U10/4)) -> 0.3365189918 | P69: =IF(E4=Y8,0,IF(E5=X2,0,P57)) -> 0.5 | Q69: =IF(E4=Y8,0,IF(E5=X4,Q67+X19,)) -> 0.3676207775 | R69: =IF(E4=Y8,0,IF(E5<>X2,R55-(W28/2),0)) -> 0.8339285714 | S69: =IF(E4=Y8,0,IF(E5<>X2,S71+AA14+(U14/4),)) -> 0.3671564918
A70: =IF(AND(E7=Y6,E4<>Y8),E54-((E50-E54)*0.1),) -> 0 | B70: =B68 -> 0 | D70: =IF(E5<>X4,0,IF(AND(E8=Y6,E4<>Y8),G54-((G50-G54)*0.1),)) -> 0 | E70: =IF(E5<>X4,0,E68) -> 0 | F70: =F68 -> 0 | G70: =IF(AND(E9=Y6,E4<>Y10),G69+((G69-G65)*0.1),) -> 0 | H70: =IF(OR(E16=X6,E5=X2),0,H69+0.03) -> 0 | I70: =I69 -> 0.1557389602 | N70: =IF(E4=Y8,0,N56) -> 0.2459821429 | O70: =IF(E4=Y8,0,O71+Y14-(U10/2)) -> 0.334374349 | P70: =P69+(P69-P68) -> 0.5808035714 | Q70: =IF(E5=X4,Q68,) -> 0.3551475633 | R70: =IF(E4=Y8,0,IF(E5<>X2,R55-(W28/4),)) -> 0.9138392857 | S70: =IF(E4=Y8,0,IF(E5<>X2,S71+AB14+(U14/6),)) -> 0.354799349
A71: =IF(AND(E7=Y6,E4<>Y8),E58+((E54-E58)*0.75),) -> 0 | B71: =B67 -> 0 | D71: =IF(E5<>X4,0,IF(AND(E8=Y6,E4<>Y8),G58+((G54-G58)*0.75),)) -> 0 | E71: =IF(E5<>X4,0,E67) -> 0 | F71: =F67 -> 0 | G71: =IF(AND(E9=Y6,E4<>Y10),G73-((G69-G65)*0.75),) -> 0 | H71: =IF(OR(E16=X6,E5=X2,E4=Y8),0,R67-W25-0.015) -> 0 | I71: =O73 -> 0.4672168806 | N71: =IF(E4=Y8,0,IF(E5=X2,N47+X28,W28+N47)) -> 0.3258928571 | O71: =IF(E4=Y8,0,L49-W27-W25) -> 0.3177279204 | P71: =IF(E4=Y8,0,IF(E5=X4,K57-W25,)) -> 0.6616071429 | Q71: =IF(E5=X4,Q67,) -> 0.3177279204 | R71: =IF(E4=Y8,0,IF(E5<>X2,U27-W25,0)) -> 0.99375 | S71: =IF(E4=Y8,0,IF(E5<>X2,L48-Z27-W25,)) -> 0.3177279204
A72: =IF(AND(E7=Y6,E4<>Y8),E58+((E54-E58)/2),) -> 0 | B72: =B66 -> 0 | D72: =IF(E5<>X4,0,IF(AND(E8=Y6,E4<>Y8),G58+((G54-G58)/2),)) -> 0 | E72: =IF(E5<>X4,0,E66) -> 0 | F72: =F66 -> 0 | G72: =IF(AND(E9=Y6,E4<>Y10),G73-((G69-G65)/2),) -> 0 | H72: =IF(OR(E16=X6,E5=X2,E4=Y8),0,H71+0.03) -> 0 | I72: =I71 -> 0.4672168806 | N72: =IF(E4=Y8,0,N54) -> 0.3099270585 | O72: =IF(E4=Y8,0,(W27/4)+W24) -> 0.3862224005 | P72: =IF(E4=Y8,0,IF(E5=X2,0,P54)) -> 0.6392777447 | Q72: =IF(E5=X4,O72,) -> 0.3862224005 | R72: =IF(E4=Y8,0,IF(E5<>X2,R51-AB13,)) -> 0.9586934028 | S72: =IF(E4=Y8,0,IF(E5<>X2,S73-(Z27/4),)) -> 0.3924724005
A73: =IF(AND(E7=Y6,E4<>Y8),E46,) -> 0 | B73: =B65 -> 0 | D73: =IF(E5<>X4,0,IF(AND(E8=Y6,E4<>Y8),G46,)) -> 0 | E73: =IF(E5<>X4,0,E65) -> 0 | F73: =F65 -> 0 | G73: =IF(AND(E9=Y6,E4<>Y10),G61,) -> 0 | N73: =IF(E4=Y8,0,N53) -> 0.3173323247 | O73: =IF(E4=Y8,0,(W24/2)+W24) -> 0.4672168806 | P73: =IF(E4=Y8,0,IF(E5=X2,0,P53)) -> 0.6339558118 | Q73: =IF(E5=X4,O73,) -> 0.4672168806 | R73: =IF(E4=Y8,0,IF(E5<>X2,R51-AA13,)) -> 0.9470078703 | S73: =IF(E4=Y8,0,IF(E5<>X2,S74-(Z27/4),)) -> 0.4672168806
E74: X-Axis fitting points | N74: =IF(E4=Y8,0,N52) -> 0.3481086558 | O74: =IF(E4=Y8,0,(W27*0.75)+W24) -> 0.5357113607 | P74: =IF(E4=Y8,0,P52) -> 0.6551867435 | Q74: =IF(E5=X4,O74,) -> 0.5357113607 | R74: =IF(E4=Y8,0,IF(E5<>X2,R51-AB13,)) -> 0.9586934028 | S74: =IF(E4=Y8,0,IF(E5<>X2,S75-(Z27/4),)) -> 0.5419613607
E75: Sail 1 | G75: Sail 2 | I75: Sail 3 | N75: =IF(E4=Y8,0,N51) -> 0.4022560516 | O75: =IF(E4=Y8,0,(W24*2)-W25) -> 0.6167058408 | P75: =IF(OR(E5=X2,E4=Y8),0,P51) -> 0.6997887401 | Q75: =IF(E5=X4,O79,) -> 0.6167058408 | R75: =IF(E4=Y8,0,IF(E5<>X2,R51,0)) -> 0.99375 | S75: =IF(E5<>X2,O79,) -> 0.6167058408
E76: =N49 -> 0.2042530258 | F76: 0 | G76: =IF(E5=X2,0,R49) -> 0.7957469742 | H76: 0 | I76: =P49 -> 0.5 | J76: 0 | N76: =IF(E4=Y8,0,N50) -> 0.3032545387 | O76: =IF(E4=Y8,0,(W24-O48)+W24) -> 0.5784390008 | P76: =IF(E4=Y8,0,IF(E5=X2,0,P50)) -> 0.59989437 | Q76: =IF(E4=Y8,0,IF(E5=X4,Q75-Y20,)) -> 0.5743225903 | R76: =IF(E4=Y8,0,IF(E5<>X2,R49+(Z28/4),0)) -> 0.8947484871 | S76: =IF(E4=Y8,0,IF(E5<>X2,L49-AB15,)) -> 0.5784390008
E77: =E76 -> 0.2042530258 | F77: =IF(E15=W7,0.03,0) -> 0 | G77: =G76 -> 0.7957469742 | H77: =IF(E15=W7,0.03,0) -> 0 | I77: =I76 -> 0.5 | J77: =IF(E5<X3,0,IF(E15=W7,0.03,)) -> 0 | N77: =IF(E4=Y8,0,N49) -> 0.2042530258 | O77: =IF(E4=Y8,0,(W24-O49)+W24) -> 0.5636000541 | P77: =IF(E4=Y8,0,IF(E5=X2,0,P49)) -> 0.5 | Q77: =IF(E4=Y8,0,IF(E5=X4,Q75-X20,)) -> 0.5601948401 | R77: =IF(E4=Y8,0,IF(E5<>X2,R47+(Z28/2),0)) -> 0.7957469742 | S77: =IF(E4=Y8,0,IF(E5<>X2,L49-AA15,)) -> 0.5636000541
E78: =N57 -> 0.1660714286 | F78: =IF(E15=W7,W24,0) -> 0 | G78: =IF(E5=X2,0,K47-N57) -> 0.8339285714 | H78: =IF(E15=W7,W24,0) -> 0 | I78: =P57 -> 0.5 | J78: =IF(E5<X3,0,IF(E15=W7,W24,)) -> 0 | N78: =IF(E4=Y8,0,N48) -> 0.1052515129 | O78: =O76 -> 0.5784390008 | P78: =IF(E4=Y8,0,IF(E5=X2,0,P48)) -> 0.40010563 | Q78: =IF(E5=X4,Q76,) -> 0.5743225903 | R78: =IF(E4=Y8,0,IF(E5<>X2,R47+(Z28/4),0)) -> 0.6967454613 | S78: =S76 -> 0.5784390008
E79: =E78 -> 0.1660714286 | F79: =IF(E15=W7,F78-0.015,0) -> 0 | G79: =G78 -> 0.8339285714 | H79: =IF(E15=W7,F78-0.015,0) -> 0 | I79: =I78 -> 0.5 | J79: =IF(E5<X3,0,IF(E15=W7,F78-0.03,)) -> 0 | N79: =IF(E4=Y8,0,N47) -> 0.00625 | O79: =O75 -> 0.6167058408 | P79: =IF(E4=Y8,0,IF(E5=X2,0,P63)) -> 0.3002112599 | Q79: =IF(E5=X4,Q75,) -> 0.6167058408 | R79: =IF(E4=Y8,0,IF(E5<>X2,R51-Z28,)) -> 0.5977439484 | S79: =S75 -> 0.6167058408
E80: =E79 -> 0.1660714286 | F80: =IF(E4=Y8,0,IF(E15=W7,W24,0)) -> 0 | G80: =G79 -> 0.8339285714 | H80: =IF(E4=Y8,0,IF(E15=W7,W24,0)) -> 0 | I80: =I79 -> 0.5 | J80: =IF(E4=Y8,0,IF(E5<X3,0,IF(E15=W7,W24,))) -> 0 | N80: =IF(E4=Y8,0,N47+Y13) -> 0.04528947224 | O80: =IF(E4=Y8,0,O79-(X27/4)) -> 0.5317488607 | P80: =IF(E4=Y8,0,IF(E5=X2,0,P62)) -> 0.3448132565 | Q80: =Q74 -> 0.5357113607 | R80: =IF(E4=Y8,0,R62) -> 0.6518913442 | S80: =IF(E5<>X2,O74,) -> 0.5357113607
E81: =E80 -> 0.1660714286 | F81: =IF(E4=Y8,0,IF(E15=W7,F78+0.015,0)) -> 0 | G81: =G80 -> 0.8339285714 | H81: =IF(E4=Y8,0,IF(E15=W7,F78+0.015,0)) -> 0 | I81: =I80 -> 0.5 | J81: =IF(E4=Y8,0,IF(E5<X3,0,IF(E15=W7,F78+0.03,))) -> 0 | N81: =IF(E4=Y8,0,N47+X13) -> 0.05830262965 | O81: =IF(E4=Y8,0,O80-(X27/4)) -> 0.4467918806 | P81: =IF(E4=Y8,0,IF(E5=X2,0,P61)) -> 0.3660441882 | Q81: =IF(E5=X4,Q73,) -> 0.4672168806 | R81: =IF(E4=Y8,0,R61) -> 0.6826676753 | S81: =IF(E5<>X2,O73,) -> 0.4672168806
E82: =E76 -> 0.2042530258 | F82: =IF(E4=Y8,0,IF(E15=W7,W24*2,0)) -> 0 | G82: =G76 -> 0.7957469742 | H82: =IF(E4=Y8,0,IF(E15=W7,W24*2,0)) -> 0 | I82: =I76 -> 0.5 | J82: =IF(E4=Y8,0,IF(E5<X3,0,IF(E15=W7,W24*2,))) -> 0 | N82: =IF(E4=Y8,0,N80) -> 0.04528947224 | O82: =IF(E4=Y8,0,O81-(X27/4)) -> 0.3618349005 | P82: =IF(E4=Y8,0,IF(E5=X2,0,P60)) -> 0.3607222553 | Q82: =Q72 -> 0.3862224005 | R82: =IF(E4=Y8,0,R60) -> 0.6900729415 | S82: =IF(E5<>X2,O72,) -> 0.3862224005
E83: =E76 -> 0.2042530258 | F83: =IF(E4=Y8,0,IF(E15=W7,F82-0.03,0)) -> 0 | G83: =G82 -> 0.7957469742 | H83: =IF(E4=Y8,0,IF(E15=W7,F82-0.03,0)) -> 0 | I83: =I76 -> 0.5 | J83: =IF(E4=Y8,0,IF(E5<X3,0,IF(E15=W7,J82-0.03,))) -> 0 | N83: =IF(E4=Y8,0,N47) -> 0.00625 | O83: =O67 -> 0.2768779204 | P83: =IF(E5=X2,0,P67) -> 0.3383928571 | Q83: =IF(E5=X4,Q67,) -> 0.3177279204 | R83: =R67 -> 0.6741071429 | S83: =S67 -> 0.3177279204

Sheet Victorian
X1: Main material | Y1: =IF(E16=X3,5,IF(E16=X4,6,IF(E16=X5,6))) -> 5 | Z1: Material cost | AA1: 11.35 | AB1: Sails | AC1: Warning 1 | AD1: Warning: Sail too narrow, increase no. of sails, add X-Axis fittings or increase gap size | AE1: Coverage
X2: Tri material | Y2: =IF(E17=X3,5,IF(E17=X4,6,IF(E17=X5,6))) -> 5 | Z2: PE | AA2: 2.5 | AB2: 1 | AC2: Warning 2 | AD2: Warning: Sail too narrow, decrease no. of sails, add X-Axis fittings or increase gap size | AE2: Cover one side
X3: Solid ISX | Y3: 5 | Z3: PN | AA3: 3.5 | AB3: 2 | AC3: Warning 3 | AD3: Warning: Sail too wide for standard fabric, please add more sails or increase gap size | AE3: Cover both sides
D4: Select coverage | E4: Cover both sides | X4: Duplex ISX | Y4: 6 | Z4: IP | AA4: 2 | AB4: 3 | AC4: Warning 4 | AD4: Warning: Conservatory too long for standard fabric, contact office for more detailed price
D5: Select no. of sails per side | E5: 3 | X5: Solid ISXFR | Y5: 6 | Z5: No. of vents | AA5: Y fit points | AB5: X fit points | AC5: Warning 5 | AD5: Warning: Front triangular sails are too thin for this conservatory
D6: Front triangle sail | E6: Yes | X6: Shape | Y6: =IF(AB9=X7,Y7,IF(AB9=X8,Y8,IF(AB9=X9,Y9))) -> 1 | Z6: 0 | AA6: None | AB6: None | AC6: Warning 6 | AD6: Warning: Middle triangular sails are too thin for this conservatory
D7: Middle triangle sails | E7: No | X7: Triangle | Y7: 0.6 | Z7: 1 | AA7: Standard | AB7: Standard | AC7: Warning 7 | AD7: Warning: Ridge is too short for a 3 sails per side solution, reduce no. of sails
D8: Back triangle sail | E8: Yes | X8: Diamond | Y8: 0.6 | Z8: 2 | AA8: No. of corners | AB8: 4 | AC8: Warnings front | AD8: Warnings mid | AE8: Warnings right | AF8: Warnings front tri | AG8: Warnings mid tri | AH8: Warnings mid tri
X9: Other | Y9: 1 | Z9: 3 | AA9: Shape | AB9: Other | AC9: =AA27 -> 1.547586831 | AD9: =AB27 -> 1.547586831 | AE9: =AC27 -> 1.547586831 | AF9: =IF(E6=AD12,1,0.0001)*AD27 -> 1.5 | AG9: =IF(OR(E7=AD12,E8=AD12),1,0.00001)*AE27 -> 1.547586831 | AH9: =IF(OR(E7=AD12,E8=AD12),1,0.00001)*AF27 -> 1.547586831
D10: Reduce front gap size | E10: Standard | X10: Overlap front | Y10: =IF(E10=X11,Y11,IF(E10=X12,Y12,IF(E10=X13,Y13,))) -> 0 | Z10: 4 | AA10: Curve allowance | AB10: 0.4 | AC10: =AA28 -> 1.9 | AD10: =AB28*IF(E5=AB2,100000,1) -> 1.65 | AE10: =AC28*IF(E5<>AB4,100000,1) -> 1.25 | AF10: =AD28 -> 1.071 | AG10: =IF(E7=AD12,AE28,AE28*AG9) -> 1.129738387 | AH10: =AF28+(Y32*2) -> 1.051810782
D11: Reduce middle gap size | E11: 1 | X11: Point to point | Y11: 0 | Z11: Front | AA11: Mid | AB11: Quarters | AC11: Triangles | AD11: No
D12: Reduce right gap size | E12: Standard | X12: 0.5 | Y12: =(AA12*1.4)/2+(0.035/(B28/1000)) -> 0.05008260041 | Z12: Horizontal long side | AA12: =((AA21+(0.07/(B28/1000)))*0.13)+Y32 -> 0.05904657201 | AB12: =(AA12)*0.75 -> 0.04428492901 | AD12: Yes
D13: Additional X-Axis fitting points | E13: None | X13: 1 | Y13: =AA13*1.4+(0.035/(B28/1000)) -> 0.09141520082 | Z13: Vertical long | AA13: =IF(E5=AB2,((AA21+(0.07/(B28/1000)))*0.13)+Y32,((AA21+(0.07/(B28/1000)))*0.13)+Y32) -> 0.05904657201 | AB13: =AA13*0.75 -> 0.04428492901 | AC13: Tri | AD13: Mid | AE13: Quarters
D14: Additional Y-Axis fitting points | E14: None | X14: Overlap middle | Y14: =IF(E11=X15,Y15,IF(E11=X16,Y16,IF(E11=X17,Y17,))) -> 0.1 | Z14: V short side | AA14: =(((J74-J70)+(Y32*2))*0.13)+Y32 -> 0.03475 | AB14: =AA14*0.75 -> 0.0260625 | AC14: Vertical back | AD14: =((AC25+(Y32*2))*0.13)+Y32 -> 0.04464010041 | AE14: =AD14*0.75 -> 0.03348007531
X15: Standard | Y15: 0 | Z15: H short side | AA15: =(((Y27/2)+Y10)*0.13)+Y32 -> 0.029225 | AB15: =AA15*0.75 -> 0.02191875 | AC15: Vertical middle | AD15: =((AB25+(Y32*2))*0.13)+Y32 -> 0.03475 | AE15: =AD15*0.75 -> 0.0260625
D16: Select material for main sails | E16: Solid ISX | X16: 0.5 | Y16: =Y17/2 -> 0.05 | Z16: Mid | AA16: Mid | AB16: Quarters | AC16: Vertical Front | AD16: =((AA25+(Y32*2))*0.13)+Y32 -> 0.0435575 | AE16: =AD16*0.75 -> 0.032668125
D17: Select material for triangles | E17: Solid ISX | X17: 1 | Y17: =V78-V70 -> 0.1 | Z17: Horizontal | AA17: =((AC21+(Y32*2))*0.13)+Y32 -> 0.05904657201 | AB17: =(AA17)*0.75 -> 0.04428492901 | AC17: Back | AD17: Mid | AE17: Quarters
D18: Select no. of window vents | E18: 0 | X18: Overlap back | Y18: =IF(E5<>AB4,0,IF(E12=X15,Y19,IF(E12=X16,Y20,IF(E12=X17,Y21,)))) -> 0 | Z18: Vertical ridge | AA18: =((AE22+(Y32*2))*0.13)+Y32 -> 0.049375 | AB18: =AA18*0.75 -> 0.03703125 | AC18: Horizontal | AD18: =((AF21+(Y32*2))*0.13)+Y32 -> 0.05904657201 | AE18: =AD18*0.75 -> 0.04428492901
X19: Standard | Y19: 0 | Z19: Vertical fascia | AA19: =((AVERAGE(AD22:AE22)+(Y32*2))*0.13)+Y32 -> 0.055875 | AB19: =AA19*0.75 -> 0.04190625 | AC19: Vertical | AD19: =((AF22+(Y32*2))*0.13)+Y32 -> 0.049375 | AE19: =AD19*0.75 -> 0.03703125
D20: Max length of sail | E20: =(MAX(AA27:AC27))*1000 -> 1547.586831 | J20: Plan view - looking from above | X20: 0.5 | Y20: =IF(E5=AB3,AA17+(0.035/(B28/1000)),IF(E5=AB4,AA17/2+(0.035/(B28/1000)),)) -> 0.03827328601 | AA20: front + overlaped | AC20: mid + overlaped | AF20: back
D21: Max width of sail | E21: =(MAX(AA28:AC28))*1000 -> 1900 | X21: 1 | Y21: =IF(E5=AB3,AA17*2+(0.035/(B28/1000)),IF(E5=AB4,AA17+(0.035/(B28/1000)),)) -> 0.06779657201 | Z21: Sail length | AA21: =Y31-(0.07/(B28/1000)) -> 0.3693967078 | AB21: =AA21+Y10 -> 0.3693967078 | AC21: =AA21 -> 0.3693967078 | AD21: <- | AE21: -> | AF21: =AC21 -> 0.3693967078
Y22: Dims in m | Z22: Sail width | AA22: =J74 -> 0.46625 | AB22: =AA22 -> 0.46625 | AC22: =((Y29/IF(E5=AB3,1,2))-(0.07/(B28/1000))) -> 0.295 | AD22: =AC22+Y14 -> 0.395 | AE22: =AC22+Y18 -> 0.295 | AF22: =((Y29)/2)-(0.07/(B28/1000))+Y18 -> 0.295
B23: All dims in mm | D23: Please note that sails larger than 2100mm in both directions, will require a colour matched seam. | H23: Total budget cost incl. Installation+VAT+Delivery | K23: =12.15+(E18*50)+AA30+AB30+AC30+AD30+IF(E7=AD12,AE30,)+IF(AND(E5=AB4,E8=AD12),AF30,) -> 2571.431295 | X23: h1 | Y23: =B24/B28 -> 0.55 | AA23: tri front | AB23: tri mid | AC23: tri back
A24: H1 | B24: 2200 | K24: =' '!P6 -> 2957.145989 | X24: h2 | Y24: =B25/B28 -> 0.65 | Z24: Sail length | AA24: =V78-(0.07/(B28/1000)) -> 0.3575 | AB24: =W78-(0.07/(B28/1000)) -> 0.3693967078 | AC24: =AB24 -> 0.3693967078
A25: H2 | B25: 2600 | G25: =' '!A8 -> 0 | X25: y2 | Y25: =B29/B28 -> 0.725 | Z25: Sail width | AA25: =IF(AA24*0.7<Y27,AA24*0.7,Y27-(2*Y32)) -> 0.25025 | AB25: =IF(AB24*0.7<(Y25-Y29)*2,AB24*0.7,((Y25-Y29)*2)-(2*Y32)) -> 0.1825 | AC25: =IF(AC24*0.7<Y29,AC24*0.7,Y29-(Y32*2)) -> 0.2585776955
A26: X1 | B26: 2990 | D26: =IF(((AD18*(B28/1000))*(IF(E13=AA7,0.5,2)))>(AE10*AB10),AD2,IF(((AA17*(B28/1000))*(IF(E13=AA7,0.5,2)))>(AD10*AB10),AD2,IF(((AA12*(B28/1000))*(IF(E13=AA7,0.5,2)))>(AC10*AB10),AD2,IF(AND(AC10>4,AC9>4),AD3,IF(AND((Y29*(B28/1000))<1,E5=AB4),AD7,IF(AF9>(AF10*2),AD5,IF(AG9>(AG10*2),AD6,""))))))) ->  | X26: y1 | Y26: =B28/B28 -> 1 | Z26: Costs | AA26: front | AB26: mid | AC26: right | AD26: tri front | AE26: tri mid | AF26: tri back
A27: X2 | B27: 1260 | X27: x2 | Y27: =B27/B28 -> 0.315 | Z27: length | AA27: =((K82-K74)*(B28/1000))+0.07 -> 1.547586831 | AB27: =(AA21*(B28/1000))+0.07 -> 1.547586831 | AC27: =Y31*(B28/1000) -> 1.547586831 | AD27: =(AA24*(B28/1000))+0.07 -> 1.5 | AE27: =(AB24*(B28/1000))+0.07 -> 1.547586831 | AF27: =(AC24*(B28/1000))+0.07 -> 1.547586831
A28: Y1 | B28: 4000 | G28: =' '!A11 -> 0 | X28: x1 | Y28: =B26/B28 -> 0.7475 | Z28: width | AA28: =((J74-J82)*(B28/1000))+0.07 -> 1.9 | AB28: =((L74-L70)*(B28/1000))+0.07 -> 1.65 | AC28: =IF(E5<>AB4,MIN(AA28,AB28),((R74-R70)*(B28/1000))+0.07) -> 1.25 | AD28: =(AA25*(B28/1000))+0.07 -> 1.071 | AE28: =(AB25*(B28/1000)) -> 0.73 | AF28: =(AC25*(B28/1000)) -> 1.034310782
A29: Y2 | B29: 2900 | X29: r1 | Y29: =B30/B28 -> 0.625 | Z29: perimeter | AA29: =(V78+Y31+(J74-J70+(0.07/(B28/1000)))+(K82-K86+(0.07/(B28/1000)))+(V70*1.5))*(B28/1000) -> 6.162586831 | AB29: =AB28+(AB27*2)+(((L78-L82)*(B28/1000))+0.07) -> 5.995173662 | AC29: =(AC27*2)+(AC28*2) -> 5.595173662 | AD29: =(AD27*2)+AD28 -> 4.071 | AE29: =(AE27*2)+AE28 -> 3.825173662 | AF29: =(AF27*2)+AF28 -> 4.129484444
A30: R1 | B30: 2500 | X30: Roof area (m^2) | Y30: =Y31*Y26 -> 0.3868967078 | AA30: =IF(E4=AE3,2,1)*(((Y1*((Y6*AA28*AA27*AA1)+(AA29*AA2)+(5*AA3)+AA4))+7.2*5)+IF(E14=AB7,24.7,)+IF(E13=AB7,24.7*2,)) -> 754.8017709 | AB30: =IF(E5=AB2,0,IF(E4=AE3,2,1)*(((Y1*((Y6*AB27*AB28*AA1)+(AB29*AA2)+(AB8*AA3)+AA4))+7.2*AB8)+IF(E14=AB7,24.7*2,)+IF(E13=AB7,24.7*2,))) -> 657.3036654 | AC30: =IF(E5<>AB4,0,IF(E4=AE3,2,1)*(((Y1*((Y6*AC27*AC28*AA1)+(AC29*AA2)+(AB8*AA3)+AA4))+7.2*AB8)+IF(E14=AB7,24.7*2,)+IF(E13=AB7,24.7*2,))) -> 577.0432232 | AD30: =IF(E6=AD12,(Y2*((Y7*AD27*AD28*AA1)+(AD29*AA2)+(3*AA3)+AA4))+7.2*3,) -> 189.688825 | AE30: =IF(E7=AD12,(Y2*((Y7*AE27*AE28*AA1)+(AE29*AA2)+(3*AA3)+AA4))+7.2*3,)*IF(E4=AE3,2,1) -> 0 | AF30: =IF(E8=AD12,(Y2*((Y7*AF27*AF28*AA1)+(AF29*AA2)+(3*AA3)+AA4))+7.2*3,)*IF(E4=AE3,2,1) -> 380.4438104
X31: Glazing bar length | Y31: =SQRT((Y24-Y23)^2+(Y28/2)^2) -> 0.3868967078
X32: 50mm links | Y32: =(0.035/(B28/1000)) -> 0.00875
N52: x | O52: y | P52: x | Q52: y | R52: x | S52: y | T52: x | U52: y | V52: x | W52: y
N53: front tri 1 | P53: mid tri 2 | R53: mid tri 3 | T53: back tri 4 | V53: back tri 5
N54: =IF(E6=AD12,Y32,) -> 0.00875 | O54: =IF(E6=AD12,W78+(AA25/2),) -> 0.5120217078 | P54: =IF(E7=AD12,P56-(AB25/2)+Y32,) -> 0 | Q54: =IF(E7=AD12,Y32,) -> 0 | R54: =IF(AND(E7=AD12,E4<>AE2),P56-(AB25/2)+Y32,) -> 0 | S54: =IF(AND(E7=AD12,E4<>AE2),W72-Y32,) -> 0 | T54: =IF(AND(E5=AB4,E8=AD12),T56-(AC25/2),) -> 0.5582111523 | U54: =IF(AND(E5=AB4,E8=AD12),Y32,) -> 0.00875 | V54: =IF(AND(E5=AB4,E8=AD12,E4<>AE2),T56-(AC25/2),) -> 0.5582111523 | W54: =IF(AND(E5=AB4,E8=AD12,E4<>AE2),W72-Y32,) -> 0.7650434156
N55: =IF(E6=AD12,AE16,) -> 0.032668125 | O55: =IF(E6=AD12,O54-(AA25/4),) -> 0.4494592078 | P55: =IF(E7=AD12,P56-(AB25/4),) -> 0 | Q55: =IF(E7=AD12,AE15,) -> 0 | R55: =IF(AND(E7=AD12,E4<>AE2),P56-(AB25/4),) -> 0 | S55: =IF(AND(E7=AD12,E4<>AE2),W72-AE15,) -> 0 | T55: =IF(AND(E5=AB4,E8=AD12),T56-(AC25/4),) -> 0.6228555761 | U55: =IF(AND(E5=AB4,E8=AD12),AE14,) -> 0.03348007531 | V55: =IF(AND(E5=AB4,E8=AD12,E4<>AE2),T56-(AC25/4),) -> 0.6228555761 | W55: =IF(AND(E5=AB4,E8=AD12,E4<>AE2),W72-AE15,) -> 0.7477309156
N56: =IF(E6=AD12,AD16,) -> 0.0435575 | O56: =IF(E6=AD12,O55-(AA25/4),) -> 0.3868967078 | P56: =IF(E7=AD12,P62,) -> 0 | Q56: =IF(E7=AD12,AD15,) -> 0 | R56: =IF(AND(E7=AD12,E4<>AE2),P62,) -> 0 | S56: =IF(AND(E7=AD12,E4<>AE2),W73-AD15,) -> 0 | T56: =IF(AND(E5=AB4,E8=AD12),T62,) -> 0.6875 | U56: =IF(AND(E5=AB4,E8=AD12),AD14,) -> 0.04464010041 | V56: =IF(AND(E5=AB4,E8=AD12,E4<>AE2),T62,) -> 0.6875 | W56: =IF(AND(E5=AB4,E8=AD12,E4<>AE2),W72-AD15,) -> 0.7390434156
N57: =IF(E6=AD12,N55,) -> 0.032668125 | O57: =IF(E6=AD12,O56-(AA25/4),) -> 0.3243342078 | P57: =IF(E7=AD12,P56+(AB25/4),) -> 0 | Q57: =IF(E7=AD12,AE15,) -> 0 | R57: =IF(AND(E7=AD12,E4<>AE2),P56+(AB25/4),) -> 0 | S57: =IF(AND(E7=AD12,E4<>AE2),W73-AE15,) -> 0 | T57: =IF(AND(E5=AB4,E8=AD12),T56+(AC25/4),) -> 0.7521444239 | U57: =IF(AND(E5=AB4,E8=AD12),AE14,) -> 0.03348007531 | V57: =IF(AND(E5=AB4,E8=AD12,E4<>AE2),T56+(AC25/4),) -> 0.7521444239 | W57: =IF(AND(E5=AB4,E8=AD12,E4<>AE2),W72-AE15,) -> 0.7477309156
N58: =N54 -> 0.00875 | O58: =IF(E6=AD12,W78-(AA25/2),) -> 0.2617717078 | P58: =IF(E7=AD12,P56+(AB25/2),) -> 0 | Q58: =Q54 -> 0 | R58: =IF(AND(E7=AD12,E4<>AE2),P56+(AB25/2),) -> 0 | S58: =IF(AND(E7=AD12,E4<>AE2),W72-Q54,) -> 0 | T58: =IF(AND(E5=AB4,E8=AD12),T56+(AC25/2),) -> 0.8167888477 | U58: =U54 -> 0.00875 | V58: =IF(AND(E5=AB4,E8=AD12,E4<>AE2),T56+(AC25/2),) -> 0.8167888477 | W58: =IF(AND(E5=AB4,E8=AD12,E4<>AE2),W72-Y32,) -> 0.7650434156
N59: =IF(E6=AD12,N60-(AA24/4),) -> 0.098125 | O59: =IF(E6=AD12,O62-((O62-O58)/2),) -> 0.3243342078 | P59: =IF(E7=AD12,P58-((P58-P62)/2),) -> 0 | Q59: =IF(E7=AD12,Q60-(AB24/4),) -> 0 | R59: =IF(AND(E7=AD12,E4<>AE2),P58-((P58-P62)/2),) -> 0 | S59: =IF(AND(E7=AD12,E4<>AE2),S60+(AB24/4),) -> 0 | T59: =IF(AND(E5=AB4,E8=AD12),T58-((T58-T62)/2),) -> 0.7521444239 | U59: =IF(AND(E5=AB4,E8=AD12),U60-(AB24/4),) -> 0.1010991769 | V59: =IF(AND(E8=AD12,E4<>AE2),T58-((T58-T62)/2),) -> 0.7521444239 | W59: =IF(AND(E5=AB4,E8=AD12,E4<>AE2),W60+(AB24/4),) -> 0.6726942386
N60: =IF(E6=AD12,N61-(AA24/4),) -> 0.1875 | O60: =IF(E6=AD12,O58+((O62-O58)*0.75),) -> 0.3556154578 | P60: =IF(E7=AD12,P58-((P58-P62)*0.75),) -> 0 | Q60: =IF(E7=AD12,Y31-(Y31/2),) -> 0 | R60: =IF(AND(E7=AD12,E4<>AE2),P58-((P58-P62)*0.75),) -> 0 | S60: =IF(AND(E7=AD12,E4<>AE2),W72-(Y31/2),) -> 0 | T60: =IF(AND(E5=AB4,E8=AD12),T58-((T58-T62)*0.75),) -> 0.7198222119 | U60: =IF(AND(E5=AB4,E8=AD12),Y31-(Y31/2),) -> 0.1934483539 | V60: =IF(AND(E8=AD12,E4<>AE2),T58-((T58-T62)*0.75),) -> 0.7198222119 | W60: =IF(AND(E5=AB4,E8=AD12,E4<>AE2),W72-(Y31/2),) -> 0.5803450617
N61: =IF(E6=AD12,N62-(AA24/4),) -> 0.276875 | O61: =IF(E6=AD12,O62-((O62-O58)*0.1),) -> 0.3743842078 | P61: =IF(E7=AD12,P62+((P58-P62)*0.1),) -> 0 | Q61: =IF(E7=AD12,Q60+(AB24/4),) -> 0 | R61: =IF(AND(E7=AD12,E4<>AE2),P62+((P58-P62)*0.1),) -> 0 | S61: =IF(AND(E7=AD12,E4<>AE2),S60-(AB24/4),) -> 0 | T61: =IF(AND(E5=AB4,E8=AD12),T62+((T58-T62)*0.1),) -> 0.7004288848 | U61: =IF(AND(E5=AB4,E8=AD12),U60+(AB24/4),) -> 0.2857975308 | V61: =IF(AND(E8=AD12,E4<>AE2),T62+((T58-T62)*0.1),) -> 0.7004288848 | W61: =IF(AND(E5=AB4,E8=AD12,E4<>AE2),W60-(AB24/4),) -> 0.4879958847
N62: =IF(E6=AD12,V78-Y32,) -> 0.36625 | O62: =IF(E6=AD12,W78,) -> 0.3868967078 | P62: =IF(E7=AD12,V78,) -> 0 | Q62: =IF(E7=AD12,W78-Y32,) -> 0 | R62: =IF(AND(E7=AD12,E4<>AE2),V78,) -> 0 | S62: =IF(AND(E7=AD12,E4<>AE2),W78+Y32,) -> 0 | T62: =IF(AND(E5=AB4,E8=AD12),V78+(Y29/2),) -> 0.6875 | U62: =IF(AND(E5=AB4,E8=AD12),W78-Y32,) -> 0.3781467078 | V62: =IF(AND(E5=AB4,E8=AD12,E4<>AE2),T62,) -> 0.6875 | W62: =IF(AND(E5=AB4,E8=AD12,E4<>AE2),Y31+Y32,) -> 0.3956467078
N63: =N61 -> 0.276875 | O63: =O62+((O62-O58)*0.1) -> 0.3994092078 | P63: =IF(E7=AD12,P62-((P58-P62)*0.1),) -> 0 | Q63: =Q61 -> 0 | R63: =IF(AND(E7=AD12,E4<>AE2),P62-((P58-P62)*0.1),) -> 0 | S63: =S61 -> 0 | T63: =IF(AND(E5=AB4,E8=AD12),T62-((T58-T62)*0.1),) -> 0.6745711152 | U63: =U61 -> 0.2857975308 | V63: =IF(AND(E8=AD12,E4<>AE2),T62-((T58-T62)*0.1),) -> 0.6745711152 | W63: =W61 -> 0.4879958847
N64: =N60 -> 0.1875 | O64: =O66-((O62-O58)*0.75) -> 0.4181779578 | P64: =IF(E7=AD12,P66+((P62-P66)*0.75),) -> 0 | Q64: =Q60 -> 0 | R64: =IF(AND(E7=AD12,E4<>AE2),P66+((P62-P66)*0.75),) -> 0 | S64: =S60 -> 0 | T64: =IF(AND(E5=AB4,E8=AD12),T66+((T62-T66)*0.75),) -> 0.6551777881 | U64: =U60 -> 0.1934483539 | V64: =IF(AND(E8=AD12,E4<>AE2),T66+((T62-T66)*0.75),) -> 0.6551777881 | W64: =W60 -> 0.5803450617
N65: =N59 -> 0.098125 | O65: =O66-((O62-O58)/2) -> 0.4494592078 | P65: =P66+((P62-P66)/2) -> 0 | Q65: =Q59 -> 0 | R65: =IF(AND(E7=AD12,E4<>AE2),P66+((P62-P66)/2),) -> 0 | S65: =S59 -> 0 | T65: =T66+((T62-T66)/2) -> 0.6228555761 | U65: =U59 -> 0.1010991769 | V65: =IF(AND(E8=AD12,E4<>AE2),T66+((T62-T66)/2),) -> 0.6228555761 | W65: =W59 -> 0.6726942386
N66: =N54 -> 0.00875 | O66: =O54 -> 0.5120217078 | P66: =P54 -> 0 | Q66: =Q54 -> 0 | R66: =IF(AND(E7=AD12,E4<>AE2),P54,) -> 0 | S66: =S58 -> 0 | T66: =T54 -> 0.5582111523 | U66: =U54 -> 0.00875 | V66: =IF(AND(E8=AD12,E4<>AE2),T54,) -> 0.5582111523 | W66: =W58 -> 0.7650434156
J68: x | K68: y | L68: x | M68: y | N68: x | O68: y | P68: x | Q68: y | R68: x | S68: y | T68: x | U68: y | V68: Roof plan
J69: Sail 1 | L69: Sail 2 | N69: Sail 3 | P69: Sail 4 | R69: Sail 5 | T69: Sail 6 | V69: x-axis | W69: y-axis
J70: =V70+Y32 -> 0.28375 | K70: =Y32 -> 0.00875 | L70: =IF(E5<>AB2,V78+Y32-Y14,) -> 0.28375 | M70: =IF(E5<>AB2,Y32,) -> 0.00875 | N70: =IF(E4=AE2,0,Y32) -> 0.00875 | O70: =IF(E4=AE2,0,W72-AB21-Y32) -> 0.3956467078 | P70: =IF(E4=AE2,0,IF(E5=AB2,0,L82)) -> 0.38375 | Q70: =IF(E5=AB2,0,O74) -> 0.3956467078 | R70: =IF(E5=AB4,R74-AF22,) -> 0.69625 | S70: =S74 -> 0.00875 | T70: =IF(AND(E4=AE3,E5=AB4),R74-AF22,) -> 0.69625 | U70: =IF(AND(E4=AE3,E5=AB4),Y31+Y32,) -> 0.3956467078 | V70: =Y26-Y25 -> 0.275 | W70: 0
D71: X-Axis fitting points | J71: =J70+((J74-J70)/4) -> 0.329375 | K71: =AB14 -> 0.0260625 | L71: =IF(E5<>AB2,L70+(MAX(AD22:AE22)/4),) -> 0.3825 | M71: =IF(E5<>AB2,AB19,) -> 0.04190625 | N71: =IF(E4=AE2,0,J81) -> 0.0915625 | O71: =IF(E4=AE2,0,O70+AB13+(Y10/6)) -> 0.4399316368 | P71: =IF(E4=AE2,0,IF(E5=AB2,0,L81)) -> 0.4575 | Q71: =IF(E4=AE2,0,IF(E5=AB2,0,Q70+AB18)) -> 0.4326779578 | R71: =IF(E5=AB4,R72-(AF22/4),) -> 0.77 | S71: =IF(E5=AB4,AE19,) -> 0.03703125 | T71: =IF(AND(E4=AE3,E5=AB4),R72-(AF22/4),) -> 0.77 | U71: =IF(AND(E4=AE3,E5=AB4),AE19+Y31,) -> 0.4239279578 | V71: =Y26 -> 1 | W71: 0
D72: Sail 1 | F72: Sail 2 | H72: Sail 3 | J72: =J71+((J74-J70)/4) -> 0.375 | K72: =AA14 -> 0.03475 | L72: =IF(E5=AB3,L74-(L74-L70)/2,IF(E5=AB4,L74-(L74-L70)/2,)) -> 0.48125 | M72: =IF(E5<>AB2,AA19) -> 0.055875 | N72: =IF(E4=AE2,0,J80) -> 0.183125 | O72: =IF(E4=AE2,0,O70+AA13+(Y10/4)) -> 0.4546932798 | P72: =IF(E4=AE2,0,IF(E5=AB2,0,L80)) -> 0.53125 | Q72: =IF(E4=AE2,0,IF(E5=AB2,0,Q70+AA18)) -> 0.4450217078 | R72: =IF(E5=AB4,R73-(AF22/4),) -> 0.84375 | S72: =IF(E5=AB4,AD19,) -> 0.049375 | T72: =IF(AND(E4=AE3,E5=AB4),R73-(AF22/4),) -> 0.84375 | U72: =IF(AND(E4=AE3,E5=AB4),AD19+Y31,) -> 0.4362717078 | V72: =Y26 -> 1 | W72: =Y31*2 -> 0.7737934156
D73: =IF(E14=AA7,V70/2,0) -> 0 | E73: =IF(E14=AA7,W75/2,0) -> 0 | F73: =L72 -> 0.48125 | G73: 0 | H73: =R72 -> 0.84375 | I73: 0 | J73: =J72+((J74-J70)/4) -> 0.420625 | K73: =AB14 -> 0.0260625 | L73: =IF(E5<>AB2,L74-(MAX(AD22:AE22)/4),) -> 0.58 | M73: =IF(E5<>AB2,M71,) -> 0.04190625 | N73: =IF(E4=AE2,0,J79) -> 0.2746875 | O73: =IF(E4=AE2,0,O74+AB13-(Y10/2)) -> 0.4399316368 | P73: =P72+(P72-P71) -> 0.605 | Q73: =IF(E5=AB2,0,Q71) -> 0.4326779578 | R73: =IF(E5=AB4,R74-(AF22/4),) -> 0.9175 | S73: =IF(E5=AB4,S71,) -> 0.03703125 | T73: =IF(AND(E4=AE3,E5=AB4),R74-(AF22/4),) -> 0.9175 | U73: =IF(AND(E4=AE3,E5=AB4),S71+Y31,) -> 0.4239279578 | V73: =V70 -> 0.275 | W73: =Y31*2 -> 0.7737934156
D74: =IF(E14=AA7,D73+0.015,0) -> 0 | E74: =IF(E14=AA7,E73+0.05,0) -> 0 | F74: =F73 -> 0.48125 | G74: =IF(E5<AB3,0,IF(E14=AA7,0.03,)) -> 0 | H74: =H73 -> 0.84375 | I74: =IF(E5<>AB4,0,IF(E14=AA7,0.03,)) -> 0 | J74: =V83-Y32+Y14 -> 0.46625 | K74: =Y32 -> 0.00875 | L74: =IF(E5<>AB2,L78,) -> 0.67875 | M74: =IF(E5<>AB2,Y32,) -> 0.00875 | N74: =IF(E4=AE2,0,IF(E5=AB2,J78,J78)) -> 0.36625 | O74: =IF(E4=AE2,0,W73-AA21-Y32) -> 0.3956467078 | P74: =IF(E4=AE2,0,IF(E5=AB2,0,P70+AC22+Y18)) -> 0.67875 | Q74: =IF(E5=AB2,0,Q70) -> 0.3956467078 | R74: =IF(E5=AB4,V71-Y32,) -> 0.99125 | S74: =IF(E5=AB4,Y32,) -> 0.00875 | T74: =IF(AND(E4=AE3,E5=AB4),V72-Y32,) -> 0.99125 | U74: =IF(AND(E4=AE3,E5=AB4),U70,) -> 0.3956467078 | V74: 0 | W74: =Y31+(Y27/2) -> 0.5443967078
D75: =J80 -> 0.183125 | E75: =IF(E14=AA7,Y31,0) -> 0 | F75: =L80 -> 0.53125 | G75: =IF(E5<AB3,0,IF(E14=AA7,Y31,)) -> 0 | H75: =R80 -> 0.84375 | I75: =IF(E5<>AB4,0,IF(E14=AA7,Y31,)) -> 0 | J75: =J74-AB12-(Y14/4) -> 0.396965071 | K75: =AA21/4 -> 0.09234917695 | L75: =IF(E5<>AB2,L74-AB17,) -> 0.634465071 | M75: =IF(E5<>AB2,K75,) -> 0.09234917695 | N75: =IF(E4=AE2,0,J77) -> 0.346965071 | O75: =IF(E4=AE2,0,(AA21/4)+Y31) -> 0.4792458847 | P75: =IF(E4=AE2,0,IF(E5=AB2,0,P74-AB17)) -> 0.634465071 | Q75: =IF(E5=AB2,0,O75) -> 0.4792458847 | R75: =IF(E5=AB4,R74-AE18,) -> 0.946965071 | S75: =IF(E5=AB4,M75,) -> 0.09234917695 | T75: =IF(AND(E4=AE3,E5=AB4),R74-AE18,) -> 0.946965071 | U75: =IF(AND(E4=AE3,E5=AB4),Q75,) -> 0.4792458847 | V75: 0 | W75: =Y31-(Y27/2) -> 0.2293967078
D76: =D75 -> 0.183125 | E76: =IF(E14=AA7,E75-0.015,0) -> 0 | F76: =F75 -> 0.53125 | G76: =IF(E5<AB3,0,IF(E14=AA7,E75-0.03,)) -> 0 | H76: =H75 -> 0.84375 | I76: =IF(E5<>AB4,0,IF(E14=AA7,E75-0.03,)) -> 0 | J76: =J74-AA12-(Y14/2) -> 0.357203428 | K76: =Y31/2 -> 0.1934483539 | L76: =IF(E5<>AB2,L74-AA17,) -> 0.619703428 | M76: =IF(E5<>AB2,K76,) -> 0.1934483539 | N76: =IF(E4=AE2,0,J76) -> 0.357203428 | O76: =IF(E4=AE2,0,(Y31/2)+Y31) -> 0.5803450617 | P76: =IF(E4=AE2,0,IF(E5=AB2,0,P74-AA17)) -> 0.619703428 | Q76: =IF(E5=AB2,0,O76) -> 0.5803450617 | R76: =IF(E5=AB4,R74-AD18,) -> 0.932203428 | S76: =IF(E5=AB4,M76,) -> 0.1934483539 | T76: =IF(AND(E4=AE3,E5=AB4),R74-AD18,) -> 0.932203428 | U76: =IF(AND(E4=AE3,E5=AB4),Q76,) -> 0.5803450617 | V76: =V70 -> 0.275 | W76: 0
D77: =D76 -> 0.183125 | E77: =IF(E4=AE2,0,IF(E14=AA7,Y31,0)) -> 0 | F77: =F76 -> 0.53125 | G77: =IF(E4=AE2,0,IF(E5<AB3,0,IF(E14=AA7,Y31,))) -> 0 | H77: =H76 -> 0.84375 | I77: =IF(E4=AE2,0,IF(E5<>AB4,0,IF(E14=AA7,Y31,))) -> 0 | J77: =J78-AB12+(Y14/4) -> 0.346965071 | K77: =(AA21*0.75) -> 0.2770475308 | L77: =L75 -> 0.634465071 | M77: =IF(E5<>AB2,K77,) -> 0.2770475308 | N77: =IF(E4=AE2,0,J75) -> 0.396965071 | O77: =IF(E4=AE2,0,(AA21*0.75)+Y31) -> 0.6639442386 | P77: =P75 -> 0.634465071 | Q77: =IF(E5=AB2,0,O77) -> 0.6639442386 | R77: =IF(E5=AB4,R75,) -> 0.946965071 | S77: =IF(E5=AB4,M77,) -> 0.2770475308 | T77: =IF(AND(E4=AE3,E5=AB4),T75,) -> 0.946965071 | U77: =IF(E5=AB4,Q77,) -> 0.6639442386 | V77: =V70 -> 0.275 | W77: =W70 -> 0
D78: =D77 -> 0.183125 | E78: =IF(E4=AE2,0,IF(E14=AA7,E75+0.015,0)) -> 0 | F78: =F77 -> 0.53125 | G78: =IF(E4=AE2,0,IF(E5<AB3,0,IF(E14=AA7,E75+0.03,))) -> 0 | H78: =H77 -> 0.84375 | I78: =IF(E4=AE2,0,IF(E5<>AB4,0,IF(E14=AA7,E75+0.03,))) -> 0 | J78: =V83-Y32 -> 0.36625 | K78: =Y31-Y32 -> 0.3781467078 | L78: =IF(E5=AB3,Y26-Y32,IF(E5=AB4,V78+(Y29/4)+(AE22/2)+(Y18/2),)) -> 0.67875 | M78: =IF(E5<>AB2,Y31-Y32,) -> 0.3781467078 | N78: =IF(E4=AE2,0,J74) -> 0.46625 | O78: =IF(E4=AE2,0,(Y31*2)-Y32) -> 0.7650434156 | P78: =IF(E5=AB2,0,P74) -> 0.67875 | Q78: =IF(E5=AB2,0,O78) -> 0.7650434156 | R78: =IF(E5=AB4,R74,) -> 0.99125 | S78: =IF(E5=AB4,M78,) -> 0.3781467078 | T78: =IF(AND(E4=AE3,E5=AB4),R74,) -> 0.99125 | U78: =IF(E5=AB4,Q78,) -> 0.7650434156 | V78: =Y26-Y29 -> 0.375 | W78: =Y31 -> 0.3868967078
D79: =IF(E4=AE2,0,IF(E14=AA7,D73,0)) -> 0 | E79: =IF(E4=AE2,0,IF(E14=AA7,E74+W74-0.05,0)) -> 0 | F79: =F73 -> 0.48125 | G79: =IF(E4=AE2,0,IF(E5<AB3,0,IF(E14=AA7,Y31*2,))) -> 0 | H79: =H73 -> 0.84375 | I79: =IF(E4=AE2,0,IF(E5<>AB4,0,IF(E14=AA7,Y31*2,))) -> 0 | J79: =J78*0.75 -> 0.2746875 | K79: =K78-AB13+(Y10/2) -> 0.3338617788 | L79: =IF(E5<>AB2,L78-(AE22/4),) -> 0.605 | M79: =IF(E5<>AB2,Y31-AB18,) -> 0.3498654578 | N79: =IF(E4=AE2,0,J73) -> 0.420625 | O79: =IF(E4=AE2,0,W72-K73) -> 0.7477309156 | P79: =IF(E4=AE2,0,IF(E5=AB2,0,L73)) -> 0.58 | Q79: =IF(E4=AE2,0,IF(E5=AB2,0,Q78-AB19)) -> 0.7231371656 | R79: =IF(E5=AB4,R73,) -> 0.9175 | S79: =IF(E5=AB4,Y31-AE19,) -> 0.3498654578 | T79: =IF(AND(E4=AE3,E5=AB4),R73,) -> 0.9175 | U79: =IF(AND(E4=AE3,E5=AB4),W72-AE19,) -> 0.7367621656 | V79: =V73 -> 0.275 | W79: =W73 -> 0.7737934156
D80: =IF(E4=AE2,0,IF(E14=AA7,D74,0)) -> 0 | E80: =IF(E4=AE2,0,IF(E14=AA7,E73+W74-0.05,0)) -> 0 | F80: =F73 -> 0.48125 | G80: =IF(E4=AE2,0,IF(E5<AB3,0,IF(E14=AA7,G79-0.03,))) -> 0 | H80: =H73 -> 0.84375 | I80: =IF(E4=AE2,0,IF(E5<>AB4,0,IF(E14=AA7,G79-0.03,))) -> 0 | J80: =J78/2 -> 0.183125 | K80: =K82-AA13-(Y10/4) -> 0.3191001358 | L80: =IF(E5<>AB2,L79-(AE22/4),) -> 0.53125 | M80: =IF(E5<>AB2,Y31-AA18,) -> 0.3375217078 | N80: =IF(E4=AE2,0,J72) -> 0.375 | O80: =IF(E4=AE2,0,W72-K72) -> 0.7390434156 | P80: =IF(E4=AE2,0,IF(E5=AB2,0,L72)) -> 0.48125 | Q80: =IF(E4=AE2,0,IF(E5=AB2,0,Q78-AA19)) -> 0.7091684156 | R80: =IF(E5=AB4,R72,) -> 0.84375 | S80: =IF(E5=AB4,Y31-AD19,) -> 0.3375217078 | T80: =IF(AND(E4=AE3,E5=AB4),R72,) -> 0.84375 | U80: =IF(AND(E4=AE3,E5=AB4),W72-AD19,) -> 0.7244184156 | V80: =V75 -> 0 | W80: =W75 -> 0.2293967078
D81: Y-Axis fitting points | J81: =J78/4 -> 0.0915625 | K81: =K82-AB13-(Y10/6) -> 0.3338617788 | L81: =IF(E5<>AB2,L80-(AE22/4),) -> 0.4575 | M81: =IF(E5<>AB2,Y31-AB18,) -> 0.3498654578 | N81: =IF(E4=AE2,0,J71) -> 0.329375 | O81: =IF(E4=AE2,0,W72-K71) -> 0.7477309156 | P81: =IF(E4=AE2,0,IF(E5=AB2,0,L71)) -> 0.3825 | Q81: =IF(E5=AB2,0,Q79) -> 0.7231371656 | R81: =IF(E5=AB4,R71,) -> 0.77 | S81: =IF(E5=AB4,S79,) -> 0.3498654578 | T81: =IF(AND(E4=AE3,E5=AB4),R71,) -> 0.77 | U81: =IF(E5=AB4,U79,) -> 0.7367621656 | V81: =V78 -> 0.375 | W81: =Y31 -> 0.3868967078
D82: Sail 1 | F82: Sail 2 | J82: =Y32 -> 0.00875 | K82: =K78+Y10 -> 0.3781467078 | L82: =IF(E5<>AB2,V78+Y32,) -> 0.38375 | M82: =IF(E5<>AB2,M78,) -> 0.3781467078 | N82: =IF(E4=AE2,0,J70) -> 0.28375 | O82: =O78 -> 0.7650434156 | P82: =IF(E4=AE2,0,IF(E5=AB2,0,L86)) -> 0.28375 | Q82: =IF(E5=AB2,0,Q78) -> 0.7650434156 | R82: =IF(E5=AB4,R70,) -> 0.69625 | S82: =IF(E5=AB4,S78,) -> 0.3781467078 | T82: =IF(AND(E4=AE3,E5=AB4),R70,) -> 0.69625 | U82: =IF(E5=AB4,U78,) -> 0.7650434156 | V82: =V74 -> 0 | W82: =W74 -> 0.5443967078
D83: =IF(E13=AB7,V70/2,0) -> 0 | E83: =IF(E13=AB7,W75/2,0) -> 0 | F83: =IF(E13=AB7,IF(E5=AB2,J76,V78-0.015),0) -> 0 | G83: =K76 -> 0.1934483539 | J83: =AB15 -> 0.02191875 | K83: =K82-((K82-K86)/4) -> 0.3409592078 | L83: =IF(E5<>AB2,L82+AB17-(Y14/4),) -> 0.403034929 | M83: =M77 -> 0.2770475308 | N83: =IF(E4=AE2,0,J89) -> 0.255375 | O83: =IF(E4=AE2,0,W73-K89) -> 0.7049744032 | P83: =IF(E4=AE2,0,IF(E5=AB2,0,L85)) -> 0.353034929 | Q83: =Q77 -> 0.6639442386 | R83: =IF(E5=AB4,R82+AE18,) -> 0.740534929 | S83: =IF(E5=AB4,S77,) -> 0.2770475308 | T83: =IF(AND(E4=AE3,E5=AB4),R82+AE18,) -> 0.740534929 | U83: =IF(E5=AB4,Q83,) -> 0.6639442386 | V83: =V78 -> 0.375 | W83: =Y31 -> 0.3868967078
D84: =IF(E13=AB7,D83+0.015,0) -> 0 | E84: =IF(E13=AB7,E83+0.015,0) -> 0 | F84: =IF(E13=AB7,F83+0.03,0) -> 0 | G84: =G83 -> 0.1934483539 | J84: =AA15 -> 0.029225 | K84: =K83-((K82-K86)/4) -> 0.3037717078 | L84: =IF(E5<>AB2,L86+AA17+(Y14/2),) -> 0.392796572 | M84: =IF(E5<>AB2,M76,) -> 0.1934483539 | N84: =IF(E4=AE2,0,J88) -> 0.1844375 | O84: =IF(E4=AE2,0,W73-K88) -> 0.6246855555 | P84: =IF(E4=AE2,0,IF(E5=AB2,0,L84)) -> 0.392796572 | Q84: =IF(E5=AB2,0,Q76) -> 0.5803450617 | R84: =IF(E5=AB4,R82+AD18,) -> 0.755296572 | S84: =IF(E5=AB4,S76,) -> 0.1934483539 | T84: =IF(AND(E4=AE3,E5=AB4),R82+AD18,) -> 0.755296572 | U84: =IF(E5=AB4,Q84,) -> 0.5803450617 | V84: =Y26 -> 1 | W84: =W83 -> 0.3868967078
D85: =IF(E4=AE2,0,IF(E13=AB7,D83,0)) -> 0 | E85: =IF(E4=AE2,0,IF(E13=AB7,E84+W74-0.015,)) -> 0 | F85: =IF(AND(E5>1.5,E13=AB7),F86-0.03,0) -> 0 | G85: =G84 -> 0.1934483539 | J85: =AB15 -> 0.02191875 | K85: =K84-((K82-K86)/4) -> 0.2665842078 | L85: =IF(E5<>AB2,L86+AB17+(Y14/4),) -> 0.353034929 | M85: =M75 -> 0.09234917695 | N85: =IF(E4=AE2,0,J87) -> 0.1135 | O85: =IF(E4=AE2,0,W73-K87) -> 0.578806214 | P85: =IF(E4=AE2,0,IF(E5=AB2,0,L83)) -> 0.403034929 | Q85: =Q75 -> 0.4792458847 | R85: =IF(E5=AB4,R83,) -> 0.740534929 | S85: =IF(E5=AB4,S75,) -> 0.09234917695 | T85: =IF(AND(E4=AE3,E5=AB4),T83,) -> 0.740534929 | U85: =IF(E5=AB4,Q85,) -> 0.4792458847
D86: =IF(E4=AE2,0,IF(E13=AB7,D84,0)) -> 0 | E86: =IF(E4=AE2,0,IF(E13=AB7,E83+W74-0.015,)) -> 0 | F86: =IF(AND(E5>1.5,E13=AB7),Y26,0) -> 0 | G86: =G85 -> 0.1934483539 | J86: =V75+Y32 -> 0.00875 | K86: =W75 -> 0.2293967078 | L86: =IF(E5<>AB2,L70,) -> 0.28375 | M86: =IF(E5<>AB2,Y32,) -> 0.00875 | N86: =IF(E4=AE2,0,Y32) -> 0.00875 | O86: =IF(E4=AE2,0,W74) -> 0.5443967078 | P86: =IF(E5=AB2,0,P70) -> 0.38375 | Q86: =IF(E5=AB2,0,Q70) -> 0.3956467078 | R86: =IF(E5=AB4,R70,) -> 0.69625 | S86: =IF(E5=AB4,S74,) -> 0.00875 | T86: =IF(AND(E4=AE3,E5=AB4),R70,) -> 0.69625 | U86: =IF(E5=AB4,U70,) -> 0.3956467078
D87: =IF(AND(E5=AB4,E13=AB7),D88-0.03,0) -> 0 | E87: =Y31/2 -> 0.1934483539 | F87: =IF(E13=AB7,F83,0) -> 0 | G87: =O76 -> 0.5803450617 | J87: =J90*0.4 -> 0.1135 | K87: =K86*0.85 -> 0.1949872016 | N87: =IF(E4=AE2,0,J83) -> 0.02191875 | O87: =IF(E4=AE2,0,O86-((O86-O90)/4)) -> 0.5072092078
D88: =IF(AND(E5=AB4,E13=AB7),V78+(Y29/2)+0.015,0) -> 0 | E88: =E87 -> 0.1934483539 | F88: =IF(E13=AB7,F83+0.03,0) -> 0 | G88: =G87 -> 0.5803450617 | J88: =J90*0.65 -> 0.1844375 | K88: =K86*0.65 -> 0.1491078601 | N88: =IF(E4=AE2,0,J84) -> 0.029225 | O88: =IF(E4=AE2,0,O87-((O86-O90)/4)) -> 0.4700217078
D89: =IF(AND(E5=AB4,E13=AB7),D88-0.03,0) -> 0 | E89: =O76 -> 0.5803450617 | F89: =IF(E4=AE2,0,IF(AND(E5>1.5,E13=AB7),F86-0.03,0)) -> 0 | G89: =G88 -> 0.5803450617 | J89: =J90*0.9 -> 0.255375 | K89: =K86*0.3 -> 0.06881901234 | N89: =IF(E4=AE2,0,J85) -> 0.02191875 | O89: =IF(E4=AE2,0,O88-((O86-O90)/4)) -> 0.4328342078
D90: =IF(AND(E5=AB4,E13=AB7),D88,0) -> 0 | E90: =E89 -> 0.5803450617 | F90: =IF(E4=AE2,0,IF(AND(E5>1.5,E13=AB7),Y26,0)) -> 0 | G90: =G89 -> 0.5803450617 | J90: =J70 -> 0.28375 | K90: =K70 -> 0.00875 | N90: =IF(E4=AE2,0,J82) -> 0.00875 | O90: =O70 -> 0.3956467078

Sheet 

Sheet 

Sheet 
A1: If job value is below: | B1: Then add: | K1: Lean To | L1: ='Lean To'!K21 -> 1949.748704 | M1: =IF(L1<A2,B2,0) -> 0 | N1: =L1+M1 -> 1949.748704 | O1: =N1*A5 -> 292.4623056 | P1: =O1+N1 -> 2242.21101
A2: 1000 | B2: 100 | K2: Lean To Hipped | L2: ='Lean To Hipped'!K21 -> 2737.139005 | M2: =IF(L2<A2,B2,0) -> 0 | N2: 2737.139005 | O2: =N2*A5 -> 410.5708507 | P2: 3147.709856
K3: Georgian Gable | L3: ='Georgian Gable'!K21 -> 3533.043685 | M3: =IF(L3<A2,B2,0) -> 0 | N3: 3533.043685 | O3: =N3*A5 -> 529.9565528 | P3: 4063.000238
A4: Margin | K4: Georgian Hipped | L4: ='Georgian Hipped'!K23 -> 2296.185526 | M4: =IF(L4<A2,B2,0) -> 0 | N4: 2296.185526 | O4: =N4*A5 -> 344.4278289 | P4: 2640.613355
A5: 0.15 | K5: Georgian Double Hipped | L5: ='Georgian Double Hipped'!$J$25 -> 2666.424694 | M5: =IF(L5<A2,B2,0) -> 0 | N5: 2666.424694 | O5: =N5*A5 -> 399.9637041 | P5: 3066.388398
K6: Victorian | L6: =Victorian!K23 -> 2571.431295 | M6: =IF(L6<A2,B2,0) -> 0 | N6: 2571.431295 | O6: =N6*A5 -> 385.7146942 | P6: 2957.145989
A7: Type in your messages below
K8: 0
K9: 0.05
K10: 0.1
K11: 0.15
